Workbook

Sheet Table S2
A1: Supplementary Table S2: Collection of variants used to compare the branch point prediction (n = 120)
A3: General information | Q3: Acceptor consensus score | W3: Branchpointer scores | AJ3: BPP score | AT3: SVM BPfinder score | BD3: HSF3 | BH3: LaBranchoR | BP3: RNABPS
A4: ID | B4: chr | C4: strand | D4: gene | E4: transcript | F4: intron | G4: cNomen | H4: gNomen | I4: distSS | J4: varType | K4: nb_analyse | L4: Assay.Method | M4: Author | N4: published | O4: Result | P4: class_effect | Q4: MES_wt | R4: MES_mut | S4: delta_MES | T4: SSF_wt | U4: SSF_mut | V4: delta_SSF | W4: to_3prime | X4: BP_num_REF | Y4: BP_num_ALT | Z4: deleted_n | AA4: created_n | AB4: max_prob_REF | AC4: max_prob_ALT | AD4: max_U2_REF | AE4: max_U2_ALT | AF4: PosPB_Branch | AG4: ProbPBarea_Branch | AH4: MutInPBarea_Branch | AI4: Delta_prob | AJ4: bps_WT | AK4: bps_MUT | AL4: bp_pos_WT | AM4: bp_pos_MUT | AN4: zsc_WT | AO4: zsc_MUT | AP4: PosPB_BPP | AQ4: ProbPBarea_BPP | AR4: MutInPBarea_BPP | AS4: Delta_BPP | AT4: ss_dist_WT | AU4: ss_dist_MUT | AV4: bp_seq_WT | AW4: bp_seq_MUT | AX4: svm_scr_WT | AY4: svm_scr_MUT | AZ4: PosPB_SVM | BA4: ProbPBarea_SVM | BB4: MutInPBarea_SVM | BC4: Delta_SVM | BD4: score_wt | BE4: score_mut | BF4: delta_HSF | BG4: interpretation | BH4: LB_pos_WT | BI4: LB_pos_MUT | BJ4: LB_score_WT | BK4: LB_score_MUT | BL4: PosPB_LB | BM4: ProbPBarea_LB | BN4: MutInPBarea_LB | BO4: Delta_LB | BP4: RBPS_posA_WT | BQ4: RBPS_posA_MUT | BR4: RBPS_score_WT | BS4: RBPS_score_MUT | BT4: PosPB_RBPS | BU4: ProbPBarea_RBPS | BV4: MutInPBarea_RBPS | BW4: Delta_RBPS
A5: ABCC8_c.1672-20A>G | B5: chr11 | C5: - | D5: ABCC8 | E5: NM_000352 | F5: intron 11 | G5: c.1672-20 | H5: 17452526 | I5: -20 | J5: substitution | K5: 1 | L5: RTPCR | M5: Thomas PM, Wohllk N, Huang E, Kuhnle U, Rabl W, Gagel RF, et al. Inactivation of the first nucleotide-binding fold of the sulfonylurea receptor, and familial persistent hyperinsulinemic hypoglycemia of infancy. Am J Hum Genet [Internet]. 1996 Sep;59(3):510–8. Available from: https://www.ncbi.nlm.nih.gov/pmc/articles/PMC1914902/ | N5: Yes | O5: use of 3 ss 72 nt upstream of physiological ss | P5: 1 | Q5: 11.36 | R5: 10.45 | S5: =(R5-Q5)/Q5 -> -0.0801056338 | T5: 83.36 | U5: 83.36 | V5: 0 | W5: 20 | X5: 0 | Y5: 0 | Z5: 0 | AA5: 0 | AB5: NA | AC5: NA | AD5: NA | AE5: NA | AF5: c.1672-20 | AG5: =IF(FIND("-",AF5)=3,"c.-"&MID(AF5,FIND("-",AF5)+1,FIND("-",MID(AF5,FIND("-",AF5)+1,LEN(AF5))))&VALUE(RIGHT(AF5,2))+2&"_"&"c.-"&MID(AF5,FIND("-",AF5)+1,FIND("-",MID(AF5,FIND("-",AF5)+1,LEN(AF5))))&VALUE(RIGHT(AF5,2))-1,MID(AF5,1,FIND("-",AF5))&VALUE(RIGHT(AF5,2))+2&"_"&MID(AF5,1,FIND("-",AF5))&VALUE(RIGHT(AF5,2))-1) -> c.1672-22_c.1672-19 | AH5: =IF(AND(VALUE(RIGHT(G5,2))>=VALUE(RIGHT(AG5,2)),VALUE(RIGHT(G5,2))<=VALUE(MID(AG5,FIND("_",AG5)-2,2))),"Yes",IF(NOT(ISERROR(FIND("_",G5))),IF(OR(AND(VALUE(RIGHT(G5,2))<VALUE(RIGHT(AG5,2)),VALUE(MID(G5,FIND("_",G5)-2,2))>=VALUE(MID(AG5,FIND("_",AG5)-2,2))),AND(VALUE(MID(G5,FIND("_",G5)-2,2))>=VALUE(RIGHT(AG5,2)),VALUE(MID(G5,FIND("_",G5)-2,2))<=VALUE(MID(AG5,FIND("_",AG5)-2,2)))),"Yes","No"),"No")) -> Yes | AI5: =IF(AB5="NA","NA",(AC5-AB5)/AB5) -> NA | AJ5: GCCTCAC | AK5: GGGCCAC | AL5: 25 | AM5: 36 | AN5: 7.680555439 | AO5: 7.007778656 | AP5: c.1672-20 | AQ5: =IF(FIND("-",AP5)=3,"c.-"&MID(AP5,FIND("-",AP5)+1,FIND("-",MID(AP5,FIND("-",AP5)+1,LEN(AP5))))&VALUE(RIGHT(AP5,2))+2&"_"&"c.-"&MID(AP5,FIND("-",AP5)+1,FIND("-",MID(AP5,FIND("-",AP5)+1,LEN(AP5))))&VALUE(RIGHT(AP5,2))-1,MID(AP5,1,FIND("-",AP5))&VALUE(RIGHT(AP5,2))+2&"_"&MID(AP5,1,FIND("-",AP5))&VALUE(RIGHT(AP5,2))-1) -> c.1672-22_c.1672-19 | AR5: =IF(AND(VALUE(RIGHT(G5,2))>=VALUE(RIGHT(AQ5,2)),VALUE(RIGHT(G5,2))<=VALUE(MID(AQ5,FIND("_",AQ5)-2,2))),"Yes",IF(NOT(ISERROR(FIND("_",G5))),IF(OR(AND(VALUE(RIGHT(G5,2))<VALUE(RIGHT(AQ5,2)),VALUE(MID(G5,FIND("_",G5)-2,2))>=VALUE(MID(AQ5,FIND("_",AQ5)-2,2))),AND(VALUE(MID(G5,FIND("_",G5)-2,2))>=VALUE(RIGHT(AQ5,2)),VALUE(MID(G5,FIND("_",G5)-2,2))<=VALUE(MID(AQ5,FIND("_",AQ5)-2,2)))),"Yes","No"),"No")) -> Yes | AS5: =(AO5-AN5)/AN5 -> -0.08759480853 | AT5: 27 | AU5: 93 | AV5: gcctcactt | AW5: ctctcattt | AX5: 1.3449685 | AY5: 0.85612616 | AZ5: c.1672-20 | BA5: =IF(FIND("-",AZ5)=3,"c.-"&MID(AZ5,FIND("-",AZ5)+1,FIND("-",MID(AZ5,FIND("-",AZ5)+1,LEN(AZ5))))&VALUE(RIGHT(AZ5,2))+2&"_"&"c.-"&MID(AZ5,FIND("-",AZ5)+1,FIND("-",MID(AZ5,FIND("-",AZ5)+1,LEN(AZ5))))&VALUE(RIGHT(AZ5,2))-1,MID(AZ5,1,FIND("-",AZ5))&VALUE(RIGHT(AZ5,2))+2&"_"&MID(AZ5,1,FIND("-",AZ5))&VALUE(RIGHT(AZ5,2))-1) -> c.1672-22_c.1672-19 | BB5: =IF(AND(VALUE(RIGHT(G5,2))>=VALUE(RIGHT(BA5,2)),VALUE(RIGHT(G5,2))<=VALUE(MID(BA5,FIND("_",BA5)-2,2))),"Yes",IF(NOT(ISERROR(FIND("_",G5))),IF(OR(AND(VALUE(RIGHT(G5,2))<VALUE(RIGHT(BA5,2)),VALUE(MID(G5,FIND("_",G5)-2,2))>=VALUE(MID(BA5,FIND("_",BA5)-2,2))),AND(VALUE(MID(G5,FIND("_",G5)-2,2))>=VALUE(RIGHT(BA5,2)),VALUE(MID(G5,FIND("_",G5)-2,2))<=VALUE(MID(BA5,FIND("_",BA5)-2,2)))),"Yes","No"),"No")) -> Yes | BC5: =(AY5-AX5)/AX5 -> -0.3634600662 | BD5: 98.37 | BE5: 68.74 | BF5: =IF(BD5=0,0,(BE5-BD5)/BD5) -> -0.3012097184 | BH5: -20 | BI5: -31 | BJ5: 0.9388173223 | BK5: 0.3112741709 | BL5: c.1672-20 | BM5: =IF(FIND("-",BL5)=3,"c.-"&MID(BL5,FIND("-",BL5)+1,FIND("-",MID(BL5,FIND("-",BL5)+1,LEN(BL5))))&VALUE(RIGHT(BL5,2))+2&"_"&"c.-"&MID(BL5,FIND("-",BL5)+1,FIND("-",MID(BL5,FIND("-",BL5)+1,LEN(BL5))))&VALUE(RIGHT(BL5,2))-1,MID(BL5,1,FIND("-",BL5))&VALUE(RIGHT(BL5,2))+2&"_"&MID(BL5,1,FIND("-",BL5))&VALUE(RIGHT(BL5,2))-1) -> c.1672-22_c.1672-19 | BN5: =IF(AND(VALUE(RIGHT(G5,2))>=VALUE(RIGHT(BM5,2)),VALUE(RIGHT(G5,2))<=VALUE(MID(BM5,FIND("_",BM5)-2,2))),"Yes",IF(NOT(ISERROR(FIND("_",G5))),IF(OR(AND(VALUE(RIGHT(G5,2))<VALUE(RIGHT(BM5,2)),VALUE(MID(G5,FIND("_",G5)-2,2))>=VALUE(MID(BM5,FIND("_",BM5)-2,2))),AND(VALUE(MID(G5,FIND("_",G5)-2,2))>=VALUE(RIGHT(BM5,2)),VALUE(MID(G5,FIND("_",G5)-2,2))<=VALUE(MID(BM5,FIND("_",BM5)-2,2)))),"Yes","No"),"No")) -> Yes | BO5: =IF(BJ5="","NA",(BK5-BJ5)/BJ5) -> -0.668440107 | BP5: -20 | BQ5: -20 | BR5: 94.54 | BS5: 40.55 | BT5: c.1672-20 | BU5: =IF(FIND("-",BT5)=3,"c.-"&MID(BT5,FIND("-",BT5)+1,FIND("-",MID(BT5,FIND("-",BT5)+1,LEN(BT5))))&VALUE(RIGHT(BT5,2))+2&"_"&"c.-"&MID(BT5,FIND("-",BT5)+1,FIND("-",MID(BT5,FIND("-",BT5)+1,LEN(BT5))))&VALUE(RIGHT(BT5,2))-1,MID(BT5,1,FIND("-",BT5))&VALUE(RIGHT(BT5,2))+2&"_"&MID(BT5,1,FIND("-",BT5))&VALUE(RIGHT(BT5,2))-1) -> c.1672-22_c.1672-19 | BV5: =IF(AND(VALUE(RIGHT(G5,2))>=VALUE(RIGHT(BU5,2)),VALUE(RIGHT(G5,2))<=VALUE(MID(BU5,FIND("_",BU5)-2,2))),"Yes",IF(NOT(ISERROR(FIND("_",G5))),IF(OR(AND(VALUE(RIGHT(G5,2))<VALUE(RIGHT(BU5,2)),VALUE(MID(G5,FIND("_",G5)-2,2))>=VALUE(MID(BU5,FIND("_",BU5)-2,2))),AND(VALUE(MID(G5,FIND("_",G5)-2,2))>=VALUE(RIGHT(BU5,2)),VALUE(MID(G5,FIND("_",G5)-2,2))<=VALUE(MID(BU5,FIND("_",BU5)-2,2)))),"Yes","No"),"No")) -> Yes | BW5: =IF(BR5="","NA",(BS5-BR5)/BR5) -> -0.5710810239
A6: ALPL_c.793-33_793-14del | B6: chr1 | C6: + | D6: ALPL | E6: NM_000478 | F6: intron 7 | G6: c.793-33_793-14 | H6: 21896765 | I6: -19 | J6: del | K6: 1 | L6: minigene | M6: Mentrup B, Girschick H, Jakob F, Hofmann C. A homozygous intronic branch-point deletion in the ALPL gene causes infantile hypophosphatasia. Bone [Internet]. 2017 Jan 1;94:75–83. Available from: http://www.sciencedirect.com/science/article/pii/S8756328216303180 | N6: Yes | O6: skipping exon 8 | P6: 1 | Q6: 3.67 | R6: 5.21 | S6: 0.4196185286 | T6: 74.45 | U6: 74.45 | V6: =(U6-T6)/T6 -> 0 | W6: 31 | X6: 0 | Y6: 0 | Z6: 0 | AA6: 0 | AB6: NA | AC6: NA | AD6: NA | AE6: NA | AF6: c.793-19 | AG6: c.793-21_c.793-18 | AH6: Yes | AI6: NA | AJ6: TGCTGAC | AK6: TCCCTAG | AL6: 24 | AM6: 22 | AN6: 4.795831523 | AO6: 4.999999999 | AP6: c.793-19 | AQ6: c.793-21_c.793-18 | AR6: Yes | AS6: 0.04257207006 | AT6: 26 | AU6: 58 | AV6: tgctgacac | AW6: ctctgatag | AX6: 1.8338751 | AY6: 0.98123866 | AZ6: c.793-19 | BA6: c.793-21_c.793-18 | BB6: Yes | BC6: -0.4649370287 | BD6: 88.96 | BE6: 55.82 | BF6: -0.3725269784 | BG6: Site broken | BH6: -19 | BI6: -21 | BJ6: 0.8574903607 | BK6: 0.3499176502 | BL6: c.793-19 | BM6: c.793-21_c.793-18 | BN6: Yes | BO6: -0.5919281822 | BP6: -19 | BQ6: -26 | BR6: 94.12 | BS6: 58.28 | BT6: c.793-19 | BU6: c.793-21_c.793-18 | BV6: Yes | BW6: -0.3807904802
A7: APC_c.221-29G>C | B7: chr5 | C7: + | D7: APC | E7: NM_000038 | F7: intron 3 | G7: c.221-29 | H7: 112102857 | I7: -29 | J7: substitution | K7: 1 | L7: minigene | M7: Inserm U1245 | N7: No | O7: no effect | P7: 0 | Q7: 7.5 | R7: 7.5 | S7: 0 | T7: 83.8 | U7: 83.8 | V7: 0 | W7: 29 | X7: 1 | Y7: 1 | Z7: 0 | AA7: 1 | AB7: 0.7062122881 | AC7: 0.7062122881 | AD7: 1.3 | AE7: 1.3 | AF7: c.221-27 | AG7: c.221-29_c.221-26 | AH7: Yes | AI7: 0 | AJ7: GTATAAA | AK7: CTATAAA | AL7: 29 | AM7: 29 | AN7: 6.580674349 | AO7: 6.566240531 | AP7: c.221-24 | AQ7: c.221-26_c.221-23 | AR7: No | AS7: -0.002193364481 | AT7: 73 | AU7: 73 | AV7: atataacat | AW7: atataacat | AX7: -0.011151415 | AY7: -0.0064018612 | AZ7: c.221-89 | BA7: c.221-91_c.221-88 | BB7: No | BC7: -0.4259148996 | BD7: 0 | BE7: 0 | BF7: 0 | BG7: No difference between mutant and reference sequence was found with this matrice | BH7: -27 | BI7: -25 | BJ7: 0.6013395786 | BK7: 0.6712226868 | BL7: c.221-27 | BM7: c.221-29_c.221-26 | BN7: Yes | BO7: 0.1162123875 | BP7: -27 | BQ7: -25 | BR7: 74.88 | BS7: 75.87 | BT7: c.221-27 | BU7: c.221-29_c.221-26 | BV7: Yes | BW7: 0.01322115385
A8: APC_c.730-29A>T | B8: chr5 | C8: + | D8: APC | E8: NM_000038 | F8: intron 7 | G8: c.730-29 | H8: 112136947 | I8: -29 | J8: substitution | K8: 1 | L8: minigene | M8: Inserm U1245 | N8: No | O8: no effect | P8: 0 | Q8: 5.97 | R8: 5.97 | S8: 0 | T8: 83.51 | U8: 83.51 | V8: 0 | W8: 29 | X8: 1 | Y8: 1 | Z8: 1 | AA8: 0 | AB8: 0.718764895 | AC8: 0.718764895 | AD8: 2.3 | AE8: 2.3 | AF8: c.730-21 | AG8: c.730-23_c.730-20 | AH8: No | AI8: 0 | AJ8: TACTGAT | AK8: GGCTAAG | AL8: 26 | AM8: 56 | AN8: 5.304272344 | AO8: 7.074535648 | AP8: c.730-21 | AQ8: c.730-23_c.730-20 | AR8: No | AS8: 0.333742913 | AT8: 22 | AU8: 22 | AV8: tgttaactc | AW8: tgttaactc | AX8: 1.4786728 | AY8: 1.4786728 | AZ8: c.730-15 | BA8: c.730-17_c.730-14 | BB8: No | BC8: 0 | BD8: 0 | BE8: 0 | BF8: 0 | BG8: No difference between mutant and reference sequence was found with this matrice | BH8: -21 | BI8: -21 | BJ8: 0.847830832 | BK8: 0.818218708 | BL8: c.730-21 | BM8: c.730-23_c.730-20 | BN8: No | BO8: -0.0349269251 | BP8: -21 | BQ8: -21 | BR8: 88.97 | BS8: 88.04 | BT8: c.730-21 | BU8: c.730-23_c.730-20 | BV8: No | BW8: -0.01045296167
A9: APC_c.835-24A>T | B9: chr5 | C9: + | D9: APC | E9: NM_000038 | F9: intron 8 | G9: c.835-24 | H9: 112151168 | I9: -24 | J9: substitution | K9: 1 | L9: minigene | M9: Inserm U1245 | N9: No | O9: no effect | P9: 0 | Q9: 9.21 | R9: 9.21 | S9: 0 | T9: 83.65 | U9: 83.65 | V9: 0 | W9: 24 | X9: 0 | Y9: 0 | Z9: 0 | AA9: 0 | AB9: 0.443256204 | AC9: 0.443256204 | AD9: NA | AE9: NA | AF9: c.835-24 | AG9: c.835-26_c.835-23 | AH9: Yes | AI9: 0 | AJ9: CTATAAT | AK9: CTATAAT | AL9: 22 | AM9: 22 | AN9: 6.349707289 | AO9: 6.037089515 | AP9: c.835-17 | AQ9: c.835-19_c.835-16 | AR9: No | AS9: -0.04923341495 | AT9: 72 | AU9: 72 | AV9: ccttaacat | AW9: ccttaacat | AX9: 0.73778892 | AY9: 0.74260938 | AZ9: c.835-65 | BA9: c.835-67_c.835-64 | BB9: No | BC9: 0.00653365735 | BD9: 0 | BE9: 0 | BF9: 0 | BG9: No difference between mutant and reference sequence was found with this matrice | BH9: -27 | BI9: -33 | BJ9: 0.383705616 | BK9: 0.4906027317 | BL9: c.835-27 | BM9: c.835-29_c.835-26 | BN9: No | BO9: 0.2785914807 | BP9: -24 | BQ9: -33 | BR9: 47.96 | BS9: 49.77 | BT9: c.835-24 | BU9: c.835-26_c.835-23 | BV9: Yes | BW9: 0.03773978315
A10: BRCA1_c.135-18T>G | B10: chr17 | C10: - | D10: BRCA1 | E10: NM_007294 | F10: intron 3 | G10: c.135-18 | H10: 41258568 | I10: -18 | J10: substitution | K10: 1 | L10: RT-PCR+Seq | M10: Wappenschmidt B, Becker AA, Hauke J, Weber U, Engert S, Köhler J, et al. Analysis of 30 Putative BRCA1 Splicing Mutations in Hereditary Breast and Ovarian Cancer Families Identifies Exonic Splice Site Mutations That Escape In Silico Prediction. PLOS ONE [Internet]. 2012 Dec 11;7(12):e50800. Available from: https://journals.plos.org/plosone/article?id=10.1371/journal.pone.0050800 | N10: Yes | O10: skipping exon 5 | P10: 1 | Q10: 8.19 | R10: 6.96 | S10: -0.1501831502 | T10: 81.18 | U10: 81.18 | V10: 0 | W10: 18 | X10: 0 | Y10: 0 | Z10: 0 | AA10: 0 | AB10: 0.4775348318 | AC10: 0.4775348318 | AD10: NA | AE10: NA | AF10: c.135-30 | AG10: c.135-32_c.135-29 | AH10: No | AI10: 0 | AJ10: AATTAAA | AK10: AATTAAA | AL10: 35 | AM10: 35 | AN10: 4.908082336 | AO10: 4.904981567 | AP10: c.135-30 | AQ10: c.135-32_c.135-29 | AR10: No | AS10: -0.0006317680123 | AT10: 37 | AU10: 37 | AV10: aattaaatt | AW10: aattaaatt | AX10: 0.41754768 | AY10: 0.36087562 | AZ10: c.135-30 | BA10: c.135-32_c.135-29 | BB10: No | BC10: -0.1357259607 | BD10: 0 | BE10: 0 | BF10: 0 | BG10: No Branch Point motif found in this sequence | BH10: -30 | BI10: -30 | BJ10: 0.4350140393 | BK10: 0.4482262135 | BL10: c.135-30 | BM10: c.135-32_c.135-29 | BN10: No | BO10: 0.03037183397 | BP10: -30 | BQ10: -30 | BR10: 61.4 | BS10: 61.08 | BT10: c.135-30 | BU10: c.135-32_c.135-29 | BV10: No | BW10: -0.005211726384
A11: BRCA1_c.135-27T>A | B11: chr17 | C11: - | D11: BRCA1 | E11: NM_007294 | F11: intron 3 | G11: c.135-27 | H11: 41258577 | I11: -27 | J11: substitution | K11: 2 | L11: RT-PCR One Step+Seq+Minigene | M11: CFB + Inserm U1245 | N11: No | O11: skipping exon 5 | P11: 1 | Q11: 8.19 | R11: 8.19 | S11: 0 | T11: 81.18 | U11: 81.18 | V11: 0 | W11: 27 | X11: 0 | Y11: 0 | Z11: 0 | AA11: 0 | AB11: 0.4775348318 | AC11: 0.4775348318 | AD11: NA | AE11: NA | AF11: c.135-30 | AG11: c.135-32_c.135-29 | AH11: No | AI11: 0 | AJ11: AATTAAA | AK11: AATTAAA | AL11: 35 | AM11: 35 | AN11: 4.908082336 | AO11: 4.229818854 | AP11: c.135-30 | AQ11: c.135-32_c.135-29 | AR11: No | AS11: -0.1381931752 | AT11: 37 | AU11: 85 | AV11: aattaaatt | AW11: ttttcatgg | AX11: 0.41754768 | AY11: 0.34761476 | AZ11: c.135-30 | BA11: c.135-32_c.135-29 | BB11: No | BC11: -0.1674848726 | BD11: 0 | BE11: 0 | BF11: 0 | BG11: No Branch Point motif found in this sequence | BH11: -30 | BI11: -30 | BJ11: 0.4350140393 | BK11: 0.7554094195 | BL11: c.135-30 | BM11: c.135-32_c.135-29 | BN11: No | BO11: 0.7365173335 | BP11: -30 | BQ11: -30 | BR11: 61.4 | BS11: 76.79 | BT11: c.135-30 | BU11: c.135-32_c.135-29 | BV11: No | BW11: 0.2506514658
A12: BRCA1_c.302-24_302-22del | B12: chr17 | C12: - | D12: BRCA1 | E12: NM_007294 | F12: intron 5 | G12: c.302-24_302-22 | H12: 41256300 | I12: -22 | J12: del | K12: 1 | L12: RTPCR | M12: Menéndez M, Castellsagué J, Mirete M, Pros E, Feliubadaló L, Osorio A, et al. Assessing the RNA effect of 26 DNA variants in the BRCA1 and BRCA2 genes. Breast Cancer Res Treat [Internet]. 2012 Apr 1;132(3):979–92. Available from: https://doi.org/10.1007/s10549-011-1661-5 | N12: Yes | O12: no effect | P12: 0 | Q12: 11.68 | R12: 11.68 | S12: 0 | T12: 91.36 | U12: 91.36 | V12: 0 | W12: 22 | X12: 0 | Y12: 0 | Z12: 0 | AA12: 0 | AB12: NA | AC12: NA | AD12: NA | AE12: NA | AF12: c.302-30 | AG12: c.302-32_c.302-29 | AH12: No | AI12: NA | AJ12: CTCTAAC | AK12: CTCTAAC | AL12: 40 | AM12: 37 | AN12: 8.045271539 | AO12: 8.325965098 | AP12: c.302-35 | AQ12: c.302-37_c.302-34 | AR12: No | AS12: 0.03488925854 | AT12: 42 | AU12: 39 | AV12: ctctaactg | AW12: ctctaactg | AX12: 1.4063626 | AY12: 1.6037029 | AZ12: c.302-35 | BA12: c.302-37_c.302-34 | BB12: No | BC12: 0.1403196445 | BD12: 67.69 | BE12: 0 | BF12: -1 | BG12: Site broken | BH12: -35 | BI12: -32 | BJ12: 0.3669863045 | BK12: 0.6558051109 | BL12: c.302-35 | BM12: c.302-37_c.302-34 | BN12: No | BO12: 0.7870015934 | BP12: -23 | BQ12: -32 | BR12: 39.12 | BS12: 78.16 | BT12: c.302-23 | BU12: c.302-25_c.302-22 | BV12: Yes | BW12: 0.9979550102
A13: BRCA1_c.4097-28A>G | B13: chr17 | C13: - | D13: BRCA1 | E13: NM_007294 | F13: intron 10 | G13: c.4097-28 | H13: 41243077 | I13: -28 | J13: substitution | K13: 1 | L13: RT-PCR One Step+Seq+Minigene | M13: CFB | N13: No | O13: no effect | P13: 0 | Q13: 8.15 | R13: 8.15 | S13: 0 | T13: 88.48 | U13: 88.48 | V13: 0 | W13: 28 | X13: 3 | Y13: 2 | Z13: 0 | AA13: 0 | AB13: 0.8814584133 | AC13: 0.8906264096 | AD13: 1.5 | AE13: 0.3 | AF13: c.4097-23 | AG13: c.4097-25_c.4097-22 | AH13: No | AI13: 0.01040094027 | AJ13: ATCTGAA | AK13: GTCTGAA | AL13: 28 | AM13: 28 | AN13: 6.726475441 | AO13: 6.716005486 | AP13: c.4097-23 | AQ13: c.4097-25_c.4097-22 | AR13: No | AS13: -0.00155652917 | AT13: 30 | AU13: 30 | AV13: atctgaacc | AW13: gtctgaacc | AX13: 1.2538542 | AY13: 1.4182794 | AZ13: c.4097-23 | BA13: c.4097-25_c.4097-22 | BB13: No | BC13: 0.1311358211 | BD13: 80.83 | BE13: 83.45 | BF13: 0.03241370778 | BH13: -28 | BI13: -30 | BJ13: 0.7812340856 | BK13: 0.5249749422 | BL13: c.4097-28 | BM13: c.4097-30_c.4097-27 | BN13: Yes | BO13: -0.3280183854 | BP13: -28 | BQ13: -23 | BR13: 79.62 | BS13: 62.05 | BT13: c.4097-28 | BU13: c.4097-30_c.4097-27 | BV13: Yes | BW13: -0.2206731977
A14: BRCA1_c.4097-29C>T | B14: chr17 | C14: - | D14: BRCA1 | E14: NM_007294 | F14: intron 10 | G14: c.4097-29 | H14: 41243078 | I14: -29 | J14: substitution | K14: 1 | L14: LCL with puromycin | M14: Houdayer C, Caux‐Moncoutier V, Krieger S, Barrois M, Bonnet F, Bourdon V, et al. Guidelines for splicing analysis in molecular diagnosis derived from a set of 327 combined in silico/in vitro studies on BRCA1 and BRCA2 variants. Human Mutation [Internet]. 2012 ;33(8):1228–38. Available from: https://onlinelibrary.wiley.com/doi/abs/10.1002/humu.22101 | N14: Yes | O14: no effect | P14: 0 | Q14: 8.15 | R14: 8.15 | S14: 0 | T14: 88.48 | U14: 88.48 | V14: 0 | W14: 29 | X14: 3 | Y14: 3 | Z14: 2 | AA14: 1 | AB14: 0.8814584133 | AC14: 0.8814584133 | AD14: 1.5 | AE14: 1.5 | AF14: c.4097-23 | AG14: c.4097-25_c.4097-22 | AH14: No | AI14: 0 | AJ14: ATCTGAA | AK14: ATCTGAA | AL14: 28 | AM14: 28 | AN14: 6.726475441 | AO14: 6.913907025 | AP14: c.4097-23 | AQ14: c.4097-25_c.4097-22 | AR14: No | AS14: 0.02786475409 | AT14: 30 | AU14: 30 | AV14: atctgaacc | AW14: atctgaacc | AX14: 1.2538542 | AY14: 1.2538542 | AZ14: c.4097-23 | BA14: c.4097-25_c.4097-22 | BB14: No | BC14: 0 | BD14: 0 | BE14: 0 | BF14: 0 | BG14: No difference between mutant and reference sequence was found with this matrice | BH14: -28 | BI14: -28 | BJ14: 0.7812340856 | BK14: 0.5053312182 | BL14: c.4097-28 | BM14: c.4097-30_c.4097-27 | BN14: Yes | BO14: -0.3531628643 | BP14: -28 | BQ14: -28 | BR14: 79.62 | BS14: 59.24 | BT14: c.4097-28 | BU14: c.4097-30_c.4097-27 | BV14: Yes | BW14: -0.2559658377
A15: BRCA1_c.4186-41A>C | B15: chr17 | C15: - | D15: BRCA1 | E15: NM_007294 | F15: intron 11 | G15: c.4186-41 | H15: 41234633 | I15: -41 | J15: substitution | K15: 1 | L15: Paxgene | M15: CFB | N15: No | O15: no effect | P15: 0 | Q15: 4.57 | R15: 4.57 | S15: 0 | T15: 78.07 | U15: 78.07 | V15: 0 | W15: 41 | X15: 0 | Y15: 0 | Z15: 0 | AA15: 0 | AB15: NA | AC15: NA | AD15: NA | AE15: NA | AF15: c.4186-31 | AG15: c.4186-33_c.4186-30 | AH15: No | AI15: NA | AJ15: TTCTCAA | AK15: ATTTCAT | AL15: 46 | AM15: 36 | AN15: 6.809017516 | AO15: 5.944878578 | AP15: c.4186-41 | AQ15: c.4186-43_c.4186-40 | AR15: Yes | AS15: -0.1269109583 | AT15: 48 | AU15: 77 | AV15: ttctcaaag | AW15: gtatgatat | AX15: 0.5832068 | AY15: 0.22453165 | AZ15: c.4186-41 | BA15: c.4186-43_c.4186-40 | BB15: Yes | BC15: -0.6150050891 | BD15: 88.49 | BE15: 58.86 | BF15: -0.3348400949 | BG15: Site broken | BH15: -31 | BI15: -31 | BJ15: 0.8337001801 | BK15: 0.9087481499 | BL15: c.4186-31 | BM15: c.4186-33_c.4186-30 | BN15: No | BO15: 0.09001793644 | BP15: -31 | BQ15: -31 | BR15: 80.32 | BS15: 88.3 | BT15: c.4186-31 | BU15: c.4186-33_c.4186-30 | BV15: No | BW15: 0.09935258964
A16: BRCA1_c.4358-31_4358-27del | B16: chr17 | C16: - | D16: BRCA1 | E16: NM_007294 | F16: intron 12 | G16: c.4358-31_4358-27 | H16: 41228658 | I16: -31 | J16: del | K16: 2 | L16: RT-PCR one step +Seq + minigene | M16: CPS + Inserm U1245 | N16: No | O16: skipping exon 14 | P16: 1 | Q16: 7.21 | R16: 7.21 | S16: 0 | T16: 75.76 | U16: 75.76 | V16: =(U16-T16)/T16 -> 0 | W16: 27 | X16: 0 | Y16: 0 | Z16: 0 | AA16: 0 | AB16: NA | AC16: NA | AD16: NA | AE16: NA | AF16: c.4358-31 | AG16: c.4358-33_c.4358-30 | AH16: Yes | AI16: NA | AJ16: CAGTAAA | AK16: GAACAAA | AL16: 36 | AM16: 39 | AN16: 5.916075915 | AO16: 5.904477986 | AP16: c.4358-31 | AQ16: c.4358-33_c.4358-30 | AR16: Yes | AS16: -0.00196040912 | AT16: 70 | AU16: 65 | AV16: ttctaacct | AW16: ttctaacct | AX16: 1.6891752 | AY16: 1.6974565 | AZ16: c.4358-63 | BA16: c.4358-65_c.4358-62 | BB16: No | BC16: 0.004902570201 | BD16: 91.22 | BE16: 0 | BF16: -1 | BG16: Site broken | BH16: -32 | BI16: -27 | BJ16: 0.5745441914 | BK16: 0.5634105802 | BL16: c.4358-32 | BM16: c.4358-34_c.4358-31 | BN16: Yes | BO16: -0.01937816337 | BP16: -32 | BQ16: -27 | BR16: 66.41 | BS16: 64.81 | BT16: c.4358-32 | BU16: c.4358-34_c.4358-31 | BV16: Yes | BW16: -0.02409275711
A17: BRCA1_c.4358-33T>G | B17: chr17 | C17: - | D17: BRCA1 | E17: NM_007294 | F17: intron 12 | G17: c.4358-33 | H17: 41228664 | I17: -33 | J17: substitution | K17: 2 | L17: Minigene | M17: CBCS + Inserm U1245 | N17: No | O17: skipping exon 14 | P17: 1 | Q17: 7.21 | R17: 7.21 | S17: 0 | T17: 75.76 | U17: 75.76 | V17: =(U17-T17)/T17 -> 0 | W17: 33 | X17: 0 | Y17: 0 | Z17: 0 | AA17: 0 | AB17: 0.328384151 | AC17: 0.328384151 | AD17: NA | AE17: NA | AF17: c.4358-31 | AG17: c.4358-33_c.4358-30 | AH17: Yes | AI17: 0 | AJ17: CAGTAAA | AK17: TTCTCAT | AL17: 36 | AM17: 18 | AN17: 5.916075915 | AO17: 5.916079783 | AP17: c.4358-31 | AQ17: c.4358-33_c.4358-30 | AR17: Yes | AS17: 6.53805728e-07 | AT17: 70 | AU17: 70 | AV17: ttctaacct | AW17: ttctaacct | AX17: 1.6891752 | AY17: 1.6842064 | AZ17: c.4358-63 | BA17: c.4358-65_c.4358-62 | BB17: No | BC17: -0.002941553961 | BD17: 0 | BE17: 0 | BF17: 0 | BG17: No difference between mutant and reference sequence was found with this matrice | BH17: -32 | BI17: -25 | BJ17: 0.5745441914 | BK17: 0.5747382641 | BL17: c.4358-32 | BM17: c.4358-34_c.4358-31 | BN17: Yes | BO17: 0.0003377855471 | BP17: -32 | BQ17: -25 | BR17: 66.41 | BS17: 69.96 | BT17: c.4358-32 | BU17: c.4358-34_c.4358-31 | BV17: Yes | BW17: 0.05345580485
A18: BRCA1_c.4358-37G>A | B18: chr17 | C18: - | D18: BRCA1 | E18: NM_007294 | F18: intron 12 | G18: c.4358-37 | H18: 41228668 | I18: -37 | J18: substitution | K18: 1 | L18: Paxgene | M18: CFB | N18: No | O18: no effect | P18: 0 | Q18: 7.21 | R18: 7.21 | S18: 0 | T18: 75.76 | U18: 75.76 | V18: 0 | W18: 37 | X18: 0 | Y18: 0 | Z18: 0 | AA18: 0 | AB18: NA | AC18: NA | AD18: NA | AE18: NA | AF18: c.4358-31 | AG18: c.4358-33_c.4358-30 | AH18: No | AI18: NA | AJ18: CAGTAAA | AK18: CAGTAAA | AL18: 36 | AM18: 36 | AN18: 5.916075915 | AO18: 5.916075915 | AP18: c.4358-31 | AQ18: c.4358-33_c.4358-30 | AR18: No | AS18: 0 | AT18: 70 | AU18: 70 | AV18: ttctaacct | AW18: ttctaacct | AX18: 1.6891752 | AY18: 1.6891752 | AZ18: c.4358-63 | BA18: c.4358-65_c.4358-62 | BB18: No | BC18: 0 | BD18: 0 | BE18: 0 | BF18: 0 | BG18: No difference between mutant and reference sequence was found with this matrice | BH18: -32 | BI18: -32 | BJ18: 0.5745441914 | BK18: 0.5658236742 | BL18: c.4358-32 | BM18: c.4358-34_c.4358-31 | BN18: No | BO18: -0.01517814868 | BP18: -32 | BQ18: -32 | BR18: 66.41 | BS18: 68.64 | BT18: c.4358-32 | BU18: c.4358-34_c.4358-31 | BV18: No | BW18: 0.03357928023
A19: BRCA1_c.442-25G>A | B19: chr17 | C19: - | D19: BRCA1 | E19: NM_007294 | F19: intron 6 | G19: c.442-25 | H19: 41251922 | I19: -25 | J19: substitution | K19: 1 | L19: LCL with puromycin | M19: Houdayer C, Caux‐Moncoutier V, Krieger S, Barrois M, Bonnet F, Bourdon V, et al. Guidelines for splicing analysis in molecular diagnosis derived from a set of 327 combined in silico/in vitro studies on BRCA1 and BRCA2 variants. Human Mutation [Internet]. 2012;33(8):1228–38. Available from: https://onlinelibrary.wiley.com/doi/abs/10.1002/humu.22101 | N19: Yes | O19: no effect | P19: 0 | Q19: 3.71 | R19: 3.71 | S19: 0 | T19: 66.37 | U19: 66.37 | V19: =(U19-T19)/T19 -> 0 | W19: 25 | X19: 1 | Y19: 1 | Z19: 0 | AA19: 0 | AB19: 0.8846926017 | AC19: 0.8501387058 | AD19: 2.1 | AE19: 2.1 | AF19: c.442-24 | AG19: c.442-26_c.442-23 | AH19: Yes | AI19: -0.03905751661 | AJ19: GCTTGAC | AK19: GCTTAAC | AL19: 29 | AM19: 29 | AN19: 7.286702592 | AO19: 7.267067186 | AP19: c.442-24 | AQ19: c.442-26_c.442-23 | AR19: Yes | AS19: -0.002694690242 | AT19: 31 | AU19: 31 | AV19: gcttgactg | AW19: gcttaactg | AX19: 1.2657509 | AY19: 1.2354493 | AZ19: c.442-24 | BA19: c.442-26_c.442-23 | BB19: Yes | BC19: -0.02393962351 | BD19: 69.59 | BE19: 62.7 | BF19: -0.09900847823 | BG19: Site broken | BH19: -24 | BI19: -25 | BJ19: 0.8167583346 | BK19: 0.7265577912 | BL19: c.442-24 | BM19: c.442-26_c.442-23 | BN19: Yes | BO19: -0.1104372488 | BP19: -24 | BQ19: -25 | BR19: 83.42 | BS19: 79.68 | BT19: c.442-24 | BU19: c.442-26_c.442-23 | BV19: Yes | BW19: -0.04483337329
A20: BRCA1_c.4987-20A>G | B20: chr17 | C20: - | D20: BRCA1 | E20: NM_007294 | F20: intron 15 | G20: c.4987-20 | H20: 41219732 | I20: -20 | J20: substitution | K20: 1 | L20: RTPCR | M20: Chen X, Truong T-TN, Weaver J, Bove BA, Cattie K, Armstrong BA, et al. Intronic alterations in BRCA1 and BRCA2: effect on mRNA splicing fidelity and expression. Human Mutation [Internet]. 2006;27(5):427–35. Available from: https://onlinelibrary.wiley.com/doi/abs/10.1002/humu.20319 | N20: Yes | O20: no effect | P20: 0 | Q20: 6.69 | R20: 6.5 | S20: -0.02840059791 | T20: 83.98 | U20: 83.98 | V20: 0 | W20: 20 | X20: 1 | Y20: 2 | Z20: 1 | AA20: 1 | AB20: 0.8029572736 | AC20: 0.8396144605 | AD20: 0.8 | AE20: 0.9 | AF20: c.4987-30 | AG20: c.4987-32_c.4987-29 | AH20: No | AI20: 0.04565272415 | AJ20: AACTCAT | AK20: AACTCAT | AL20: 35 | AM20: 35 | AN20: 4.189798564 | AO20: 4.193720471 | AP20: c.4987-30 | AQ20: c.4987-32_c.4987-29 | AR20: No | AS20: 0.0009360610617 | AT20: 19 | AU20: 19 | AV20: atttgattt | AW20: atttgattt | AX20: -0.86861441 | AY20: -0.86861441 | AZ20: c.4987-12 | BA20: c.4987-14_c.4987-11 | BB20: No | BC20: 0 | BD20: 0 | BE20: 0 | BF20: 0 | BG20: No difference between mutant and reference sequence was found with this matrice | BH20: -30 | BI20: -30 | BJ20: 0.700940609 | BK20: 0.7247487903 | BL20: c.4987-30 | BM20: c.4987-32_c.4987-29 | BN20: No | BO20: 0.03396604645 | BP20: -30 | BQ20: -30 | BR20: 70.33 | BS20: 70.09 | BT20: c.4987-30 | BU20: c.4987-32_c.4987-29 | BV20: No | BW20: -0.003412484004
A21: BRCA1_c.5153-26A>G | B21: chr17 | C21: - | D21: BRCA1 | E21: NM_007294 | F21: intron 17 | G21: c.5153-26 | H21: 41215416 | I21: -26 | J21: substitution | K21: 2 | L21: minigenes + RT-PCR+Seq | M21: IGR + Inserm U1245 | N21: No | O21: skipping exon 19 and skipping exon 18 and 19 | P21: 1 | Q21: 8.78 | R21: 8.78 | S21: 0 | T21: 82.52 | U21: 82.52 | V21: 0 | W21: 26 | X21: 3 | Y21: 3 | Z21: 1 | AA21: 0 | AB21: 0.9109223941 | AC21: 0.9106192279 | AD21: 2.1 | AE21: 2.1 | AF21: c.5153-27 | AG21: c.5153-29_c.5153-26 | AH21: Yes | AI21: -0.0003328122868 | AJ21: ATGTAAC | AK21: TTTCTAT | AL21: 31 | AM21: 18 | AN21: 7.548709829 | AO21: 5.914318131 | AP21: c.5153-26 | AQ21: c.5153-28_c.5153-25 | AR21: Yes | AS21: -0.2165127201 | AT21: 78 | AU21: 78 | AV21: cgctgacct | AW21: cgctgacct | AX21: 2.5889795 | AY21: 2.5889795 | AZ21: c.5153-71 | BA21: c.5153-73_c.5153-70 | BB21: No | BC21: 0 | BD21: 0 | BE21: 0 | BF21: 0 | BG21: No Branch Point motif found in this sequence | BH21: -26 | BI21: -31 | BJ21: 0.7380926013 | BK21: 0.7383508086 | BL21: c.5153-26 | BM21: c.5153-28_c.5153-25 | BN21: Yes | BO21: 0.0003498305234 | BP21: -26 | BQ21: -27 | BR21: 87.61 | BS21: 79.19 | BT21: c.5153-26 | BU21: c.5153-28_c.5153-25 | BV21: Yes | BW21: -0.09610775026
A22: BRCA1_c.5153-26A>T | B22: chr17 | C22: - | D22: BRCA1 | E22: NM_007294 | F22: intron 17 | G22: c.5153-26 | H22: 41215416 | I22: -26 | J22: substitution | K22: 2 | L22: RT-PCR One Step+Seq+Minigene | M22: CFB + Inserm U1245 | N22: No | O22: skipping exon 19 | P22: 1 | Q22: 8.78 | R22: 8.78 | S22: 0 | T22: 82.52 | U22: 82.52 | V22: 0 | W22: 26 | X22: 3 | Y22: 3 | Z22: 3 | AA22: 0 | AB22: 0.9109223941 | AC22: 0.9109223941 | AD22: 2.1 | AE22: 2.1 | AF22: c.5153-27 | AG22: c.5153-29_c.5153-26 | AH22: Yes | AI22: 0 | AJ22: ATGTAAC | AK22: CCGTGAA | AL22: 31 | AM22: 59 | AN22: 7.548709829 | AO22: 7.549492372 | AP22: c.5153-26 | AQ22: c.5153-28_c.5153-25 | AR22: Yes | AS22: 0.0001036658316 | AT22: 78 | AU22: 78 | AV22: cgctgacct | AW22: cgctgacct | AX22: 2.5889795 | AY22: 2.5934037 | AZ22: c.5153-71 | BA22: c.5153-73_c.5153-70 | BB22: No | BC22: 0.001708858645 | BD22: 0 | BE22: 0 | BF22: 0 | BG22: No Branch Point motif found in this sequence | BH22: -26 | BI22: -31 | BJ22: 0.7380926013 | BK22: 0.7383151054 | BL22: c.5153-26 | BM22: c.5153-28_c.5153-25 | BN22: Yes | BO22: 0.0003014582975 | BP22: -26 | BQ22: -31 | BR22: 87.61 | BS22: 72.5 | BT22: c.5153-26 | BU22: c.5153-28_c.5153-25 | BV22: Yes | BW22: -0.1724688962
A23: BRCA1_c.5153-27_5153-23del | B23: chr17 | C23: - | D23: BRCA1 | E23: NM_007294 | F23: intron 17 | G23: c.5153-27_5153-23 | H23: 41215413 | I23: -27 | J23: del | K23: 2 | L23: RT-PCR One Step+Seq+Minigene | M23: CFB + Inserm U1245 | N23: No | O23: skipping exon 19 | P23: 1 | Q23: 8.78 | R23: 8.78 | S23: 0 | T23: 82.52 | U23: 82.52 | V23: 0 | W23: 23 | X23: 0 | Y23: 0 | Z23: 0 | AA23: 0 | AB23: NA | AC23: NA | AD23: NA | AE23: NA | AF23: c.5153-27 | AG23: c.5153-29_c.5153-26 | AH23: Yes | AI23: NA | AJ23: ATGTAAC | AK23: CCGTGAA | AL23: 31 | AM23: 54 | AN23: 7.548709829 | AO23: 7.210782572 | AP23: c.5153-26 | AQ23: c.5153-28_c.5153-25 | AR23: Yes | AS23: -0.04476622695 | AT23: 78 | AU23: 73 | AV23: cgctgacct | AW23: cgctgacct | AX23: 2.5889795 | AY23: 2.5896952 | AZ23: c.5153-71 | BA23: c.5153-73_c.5153-70 | BB23: No | BC23: 0.0002764409683 | BD23: 0 | BE23: 0 | BF23: 0 | BG23: No Branch Point motif found in this sequence | BH23: -26 | BI23: -26 | BJ23: 0.7380926013 | BK23: 0.7773958445 | BL23: c.5153-26 | BM23: c.5153-28_c.5153-25 | BN23: Yes | BO23: 0.05324974548 | BP23: -26 | BQ23: -26 | BR23: 87.61 | BS23: 83.06 | BT23: c.5153-26 | BU23: c.5153-28_c.5153-25 | BV23: Yes | BW23: -0.05193471065
A24: BRCA1_c.5153-34T>G | B24: chr17 | C24: - | D24: BRCA1 | E24: NM_007294 | F24: intron 17 | G24: c.5153-34 | H24: 41215424 | I24: -34 | J24: substitution | K24: 1 | L24: s equence | M24: Houdayer C, Caux‐Moncoutier V, Krieger S, Barrois M, Bonnet F, Bourdon V, et al. Guidelines for splicing analysis in molecular diagnosis derived from a set of 327 combined in silico/in vitro studies on BRCA1 and BRCA2 variants. Human Mutation [Internet]. 2012;33(8):1228–38. Available from: https://onlinelibrary.wiley.com/doi/abs/10.1002/humu.22101 | N24: Yes | O24: no effect | P24: 0 | Q24: 8.78 | R24: 8.78 | S24: 0 | T24: 82.52 | U24: 82.52 | V24: 0 | W24: 34 | X24: 3 | Y24: 2 | Z24: 1 | AA24: 0 | AB24: 0.9109223941 | AC24: 0.911484137 | AD24: 2.1 | AE24: 2.1 | AF24: c.5153-27 | AG24: c.5153-29_c.5153-26 | AH24: No | AI24: 0.0006166748149 | AJ24: ATGTAAC | AK24: ATGTAAC | AL24: 31 | AM24: 31 | AN24: 7.548709829 | AO24: 7.549250994 | AP24: c.5153-26 | AQ24: c.5153-28_c.5153-25 | AR24: No | AS24: 7.168971523e-05 | AT24: 78 | AU24: 78 | AV24: cgctgacct | AW24: cgctgacct | AX24: 2.5889795 | AY24: 2.5845552 | AZ24: c.5153-71 | BA24: c.5153-73_c.5153-70 | BB24: No | BC24: -0.00170889727 | BD24: 0 | BE24: 0 | BF24: 0 | BG24: No Branch Point motif found in this sequence | BH24: -26 | BI24: -26 | BJ24: 0.7380926013 | BK24: 0.8164665699 | BL24: c.5153-26 | BM24: c.5153-28_c.5153-25 | BN24: No | BO24: 0.1061844658 | BP24: -26 | BQ24: -26 | BR24: 87.61 | BS24: 89.01 | BT24: c.5153-26 | BU24: c.5153-28_c.5153-25 | BV24: No | BW24: 0.01597991097
A25: BRCA1_c.5194-18G>A | B25: chr17 | C25: - | D25: BRCA1 | E25: NM_007294 | F25: intron 18 | G25: c.5194-18 | H25: 41209170 | I25: -18 | J25: substitution | K25: 1 | L25: RTPCR/minigene | M25: Théry JC, Krieger S, Gaildrat P, Révillion F, Buisine M-P, Killian A, et al. Contribution of bioinformatics predictions and functional splicing assays to the interpretation of unclassified variants of the BRCA genes. European Journal of Human Genetics [Internet]. 2011 Oct;19(10):1052–8. Available from: https://www.nature.com/articles/ejhg2011100 | N25: Yes | O25: no effect | P25: 0 | Q25: 9.36 | R25: 9.18 | S25: -0.01923076923 | T25: 90.42 | U25: 90.42 | V25: 0 | W25: 18 | X25: 2 | Y25: 1 | Z25: 2 | AA25: 0 | AB25: 0.8721889073 | AC25: 0.8908913411 | AD25: 0.5 | AE25: 0.1 | AF25: c.5194-25 | AG25: c.5194-27_c.5194-24 | AH25: No | AI25: 0.02144309985 | AJ25: TCCTGAT | AK25: TCCTGAT | AL25: 30 | AM25: 30 | AN25: 5.903295584 | AO25: 5.571624642 | AP25: c.5194-25 | AQ25: c.5194-27_c.5194-24 | AR25: No | AS25: -0.05618403106 | AT25: 32 | AU25: 32 | AV25: tcctgatgg | AW25: tcctgatgg | AX25: 1.4331377 | AY25: 1.2059794 | AZ25: c.5194-25 | BA25: c.5194-27_c.5194-24 | BB25: No | BC25: -0.1585041689 | BD25: 0 | BE25: 0 | BF25: 0 | BG25: No difference between mutant and reference sequence was found with this matrice | BH25: -25 | BI25: -25 | BJ25: 0.7505485415 | BK25: 0.7859515548 | BL25: c.5194-25 | BM25: c.5194-27_c.5194-24 | BN25: No | BO25: 0.04716951838 | BP25: -25 | BQ25: -25 | BR25: 87.6 | BS25: 86.43 | BT25: c.5194-25 | BU25: c.5194-27_c.5194-24 | BV25: No | BW25: -0.01335616438
A26: BRCA1_c.5194-18G>T | B26: chr17 | C26: - | D26: BRCA1 | E26: NM_007294 | F26: intron 18 | G26: c.5194-18 | H26: 41209170 | I26: -18 | J26: substitution | K26: 1 | L26: Paxgene | M26: CFB | N26: No | O26: no effect | P26: 0 | Q26: 9.36 | R26: 9.78 | S26: 0.04487179487 | T26: 90.42 | U26: 90.42 | V26: 0 | W26: 18 | X26: 0 | Y26: 0 | Z26: 0 | AA26: 0 | AB26: NA | AC26: NA | AD26: NA | AE26: NA | AF26: c.5194-25 | AG26: c.5194-27_c.5194-24 | AH26: No | AI26: NA | AJ26: TCCTGAT | AK26: TCCTGAT | AL26: 30 | AM26: 30 | AN26: 5.903295584 | AO26: 6.565947541 | AP26: c.5194-25 | AQ26: c.5194-27_c.5194-24 | AR26: No | AS26: 0.1122511904 | AT26: 32 | AU26: 32 | AV26: tcctgatgg | AW26: tcctgatgg | AX26: 1.4331377 | AY26: 1.4916788 | AZ26: c.5194-25 | BA26: c.5194-27_c.5194-24 | BB26: No | BC26: 0.04084820321 | BD26: 0 | BE26: 0 | BF26: 0 | BG26: No difference between mutant and reference sequence was found with this matrice | BH26: -25 | BI26: -25 | BJ26: 0.7505485415 | BK26: 0.7329822183 | BL26: c.5194-25 | BM26: c.5194-27_c.5194-24 | BN26: No | BO26: -0.02340464648 | BP26: -25 | BQ26: -25 | BR26: 87.6 | BS26: 87.09 | BT26: c.5194-25 | BU26: c.5194-27_c.5194-24 | BV26: No | BW26: -0.005821917808
A27: BRCA1_c.5278-22C>G | B27: chr17 | C27: - | D27: BRCA1 | E27: NM_007294 | F27: intron 19 | G27: c.5278-22 | H27: 41203156 | I27: -22 | J27: substitution | K27: 1 | L27: minigene | M27: Baert A, Machackova E, Coene I, Cremin C, Turner K, Portigal‐Todd C, et al. Thorough in silico and in vitro cDNA analysis of 21 putative BRCA1 and BRCA2 splice variants and a complex tandem duplication in BRCA2 allowing the identification of activated cryptic splice donor sites in BRCA2 exon 11. Human Mutation [Internet]. 2018;39(4):515–26. Available from: https://onlinelibrary.wiley.com/doi/abs/10.1002/humu.23390 | N27: Yes | O27: no effect | P27: 0 | Q27: 13.07 | R27: 13.07 | S27: 0 | T27: 90.72 | U27: 90.72 | V27: =(U27-T27)/T27 -> 0 | W27: 22 | X27: 0 | Y27: 0 | Z27: 0 | AA27: 0 | AB27: 0.2678367839 | AC27: 0.2678367839 | AD27: NA | AE27: NA | AF27: c.5278-36 | AG27: c.5278-38_c.5278-35 | AH27: No | AI27: 0 | AJ27: TTATAAC | AK27: TTATAAC | AL27: 61 | AM27: 61 | AN27: 7.787074809 | AO27: 7.787098965 | AP27: c.5278-56 | AQ27: c.5278-58_c.5278-55 | AR27: No | AS27: 3.102069192e-06 | AT27: 63 | AU27: 63 | AV27: ttataacta | AW27: ttataacta | AX27: 1.3712941 | AY27: 1.3284622 | AZ27: c.5278-56 | BA27: c.5278-58_c.5278-55 | BB27: No | BC27: -0.03123465637 | BD27: 70.37 | BE27: 65.44 | BF27: -0.07005826346 | BG27: Site broken | BH27: -56 | BI27: -56 | BJ27: 0.6404232383 | BK27: 0.639662385 | BL27: c.5278-56 | BM27: c.5278-58_c.5278-55 | BN27: No | BO27: -0.001188047598 | BP27: -56 | BQ27: -56 | BR27: 56.93 | BS27: 58.84 | BT27: c.5278-56 | BU27: c.5278-58_c.5278-55 | BV27: No | BW27: 0.03354997365
A28: BRCA1_c.5278-27T>G | B28: chr17 | C28: - | D28: BRCA1 | E28: NM_007294 | F28: intron 19 | G28: c.5278-27 | H28: 41203161 | I28: -27 | J28: substitution | K28: 1 | L28: RT-PCR+Seq | M28: IB | N28: No | O28: no effect | P28: 0 | Q28: 13.07 | R28: 13.07 | S28: 0 | T28: 90.72 | U28: 90.72 | V28: =(U28-T28)/T28 -> 0 | W28: 27 | X28: 0 | Y28: 0 | Z28: 0 | AA28: 0 | AB28: 0.2678367839 | AC28: 0.1423007841 | AD28: NA | AE28: NA | AF28: c.5278-36 | AG28: c.5278-38_c.5278-35 | AH28: No | AI28: -0.4687033573 | AJ28: TTATAAC | AK28: TTATAAC | AL28: 61 | AM28: 61 | AN28: 7.787074809 | AO28: 7.787080664 | AP28: c.5278-56 | AQ28: c.5278-58_c.5278-55 | AR28: No | AS28: 7.518524727e-07 | AT28: 63 | AU28: 63 | AV28: ttataacta | AW28: ttataacta | AX28: 1.3712941 | AY28: 1.3191464 | AZ28: c.5278-56 | BA28: c.5278-58_c.5278-55 | BB28: No | BC28: -0.03802809332 | BD28: 0 | BE28: 0 | BF28: 0 | BG28: No difference between mutant and reference sequence was found with this matrice | BH28: -56 | BI28: -56 | BJ28: 0.6404232383 | BK28: 0.6734820604 | BL28: c.5278-56 | BM28: c.5278-58_c.5278-55 | BN28: No | BO28: 0.05162027262 | BP28: -56 | BQ28: -56 | BR28: 56.93 | BS28: 65.97 | BT28: c.5278-56 | BU28: c.5278-58_c.5278-55 | BV28: No | BW28: 0.1587914983
A29: BRCA1_c.5333-33T>G | B29: chr17 | C29: - | D29: BRCA1 | E29: NM_007294 | F29: intron 20 | G29: c.5333-33 | H29: 41201244 | I29: -33 | J29: substitution | K29: 1 | L29: RT-PCR+Seq | M29: Inserm U1028 | N29: No | O29: no effect | P29: 0 | Q29: 8.67 | R29: 8.67 | S29: 0 | T29: 72.46 | U29: 72.46 | V29: =(U29-T29)/T29 -> 0 | W29: 33 | X29: 3 | Y29: 3 | Z29: 0 | AA29: 3 | AB29: 0.6325362901 | AC29: 0.6325362901 | AD29: 5.7 | AE29: 5.7 | AF29: c.5333-26 | AG29: c.5333-28_c.5333-25 | AH29: No | AI29: 0 | AJ29: CAGTGAT | AK29: CAGTGAT | AL29: 31 | AM29: 31 | AN29: 5.456100438 | AO29: 5.456106189 | AP29: c.5333-26 | AQ29: c.5333-28_c.5333-25 | AR29: No | AS29: 1.053898192e-06 | AT29: 21 | AU29: 21 | AV29: atctaaatg | AW29: atctaaatg | AX29: 0.89099216 | AY29: 0.89099216 | AZ29: c.5333-14 | BA29: c.5333-16_c.5333-13 | BB29: No | BC29: 0 | BD29: 0 | BE29: 0 | BF29: 0 | BG29: No difference between mutant and reference sequence was found with this matrice | BH29: -30 | BI29: -21 | BJ29: 0.5621931553 | BK29: 0.4606046677 | BL29: c.5333-30 | BM29: c.5333-32_c.5333-29 | BN29: No | BO29: -0.1807003281 | BP29: -21 | BQ29: -21 | BR29: 65.92 | BS29: 74.89 | BT29: c.5333-21 | BU29: c.5333-23_c.5333-20 | BV29: No | BW29: 0.1360740291
A30: BRCA1_c.5407-25T>A | B30: chr17 | C30: - | D30: BRCA1 | E30: NM_007294 | F30: intron 21 | G30: c.5407-25 | H30: 41199745 | I30: -25 | J30: substitution | K30: 2 | L30: RT-PCR One Step+Seq+Minigene | M30: CFB + Inserm U1245 | N30: No | O30: skipping exon 23 | P30: 1 | Q30: 4.86 | R30: 4.86 | S30: 0 | T30: 77.96 | U30: 77.96 | V30: =(U30-T30)/T30 -> 0 | W30: 25 | X30: 1 | Y30: 1 | Z30: 0 | AA30: 0 | AB30: 0.6637870221 | AC30: 0.6637870221 | AD30: 0.5 | AE30: 0.5 | AF30: c.5407-27 | AG30: c.5407-29_c.5407-26 | AH30: No | AI30: 0 | AJ30: CTTTGAC | AK30: CTTTGAA | AL30: 40 | AM30: 32 | AN30: 7.281318354 | AO30: 5.744562647 | AP30: c.5407-35 | AQ30: c.5407-37_c.5407-34 | AR30: No | AS30: -0.2110545966 | AT30: 42 | AU30: 42 | AV30: ctttgacac | AW30: ctttgacac | AX30: 0.77210036 | AY30: 0.62745894 | AZ30: c.5407-35 | BA30: c.5407-37_c.5407-34 | BB30: No | BC30: -0.1873349988 | BD30: 0 | BE30: 0 | BF30: 0 | BG30: No difference between mutant and reference sequence was found with this matrice | BH30: -35 | BI30: -27 | BJ30: 0.7968271375 | BK30: 0.4402968585 | BL30: c.5407-35 | BM30: c.5407-37_c.5407-34 | BN30: No | BO30: -0.4474374204 | BP30: -35 | BQ30: -35 | BR30: 88.5 | BS30: 59.31 | BT30: c.5407-35 | BU30: c.5407-37_c.5407-34 | BV30: No | BW30: -0.3298305085
A31: BRCA1_c.5468-41A>G | B31: chr17 | C31: - | D31: BRCA1 | E31: NM_007294 | F31: intron 22 | G31: c.5468-41 | H31: 41197860 | I31: -41 | J31: substitution | K31: 1 | L31: Paxgene | M31: CFB | N31: No | O31: no effect | P31: 0 | Q31: 9.53 | R31: 9.53 | S31: 0 | T31: 89.06 | U31: 89.06 | V31: 0 | W31: 41 | X31: 0 | Y31: 0 | Z31: 0 | AA31: 0 | AB31: NA | AC31: NA | AD31: NA | AE31: NA | AF31: c.5468-27 | AG31: c.5468-29_c.5468-26 | AH31: No | AI31: NA | AJ31: CACTAAT | AK31: CACTAAT | AL31: 32 | AM31: 32 | AN31: 6.584855256 | AO31: 6.456251142 | AP31: c.5468-27 | AQ31: c.5468-29_c.5468-26 | AR31: No | AS31: -0.01953028717 | AT31: 34 | AU31: 34 | AV31: cactaatct | AW31: cactaatct | AX31: 1.8783949 | AY31: 1.8783949 | AZ31: c.5468-27 | BA31: c.5468-29_c.5468-26 | BB31: No | BC31: 0 | BD31: 0 | BE31: 0 | BF31: 0 | BG31: No difference between mutant and reference sequence was found with this matrice | BH31: -27 | BI31: -27 | BJ31: 0.6643111706 | BK31: 0.6905843616 | BL31: c.5468-27 | BM31: c.5468-29_c.5468-26 | BN31: No | BO31: 0.03954952459 | BP31: -27 | BQ31: -27 | BR31: 78.68 | BS31: 76.46 | BT31: c.5468-27 | BU31: c.5468-29_c.5468-26 | BV31: No | BW31: -0.02821555669
A32: BRCA1_c.548-18T>G | B32: chr17 | C32: - | D32: BRCA1 | E32: NM_007294 | F32: intron 7 | G32: c.548-18 | H32: 41249324 | I32: -18 | J32: substitution | K32: 1 | L32: RT-PCR One Step+Seq+Minigene | M32: CFB | N32: No | O32: no effect | P32: 0 | Q32: 2.82 | R32: 1.88 | S32: -0.3333333333 | T32: 67.7 | U32: 67.7 | V32: =(U32-T32)/T32 -> 0 | W32: 18 | X32: 2 | Y32: 2 | Z32: 0 | AA32: 2 | AB32: 0.6801755317 | AC32: 0.6801755317 | AD32: 1.5 | AE32: 1.5 | AF32: c.548-24 | AG32: c.548-26_c.548-23 | AH32: No | AI32: 0 | AJ32: TATTGAT | AK32: TTTTAAT | AL32: 33 | AM32: 52 | AN32: 5.012124084 | AO32: 5.197839935 | AP32: c.548-28 | AQ32: c.548-30_c.548-27 | AR32: No | AS32: 0.03705332262 | AT32: 63 | AU32: 63 | AV32: ttttaaccc | AW32: ttttaaccc | AX32: 1.3674838 | AY32: 1.3619153 | AZ32: c.548-56 | BA32: c.548-58_c.548-55 | BB32: No | BC32: -0.00407207749 | BD32: 0 | BE32: 0 | BF32: 0 | BG32: No Branch Point motif found in this sequence | BH32: -28 | BI32: -28 | BJ32: 0.8058424592 | BK32: 0.791762948 | BL32: c.548-28 | BM32: c.548-30_c.548-27 | BN32: No | BO32: -0.01747179117 | BP32: -28 | BQ32: -28 | BR32: 67.15 | BS32: 62.09 | BT32: c.548-28 | BU32: c.548-30_c.548-27 | BV32: No | BW32: -0.07535368578
A33: BRCA1_c.594-20A>G | B33: chr17 | C33: - | D33: BRCA1 | E33: NM_007294 | F33: intron 8 | G33: c.594-20 | H33: 41247959 | I33: -20 | J33: substitution | K33: 1 | L33: RT-PCR+Seq | M33: IC | N33: No | O33: no effect | P33: 0 | Q33: 10 | R33: 9.45 | S33: -0.055 | T33: 83.3 | U33: 83.3 | V33: 0 | W33: 20 | X33: 1 | Y33: 1 | Z33: 0 | AA33: 0 | AB33: 0.9447185501 | AC33: 0.9447185501 | AD33: 0.5 | AE33: 0.5 | AF33: c.594-26 | AG33: c.594-28_c.594-25 | AH33: No | AI33: 0 | AJ33: TTCTTAT | AK33: TTCTTAT | AL33: 31 | AM33: 31 | AN33: 5.559281968 | AO33: 5.559283426 | AP33: c.594-26 | AQ33: c.594-28_c.594-25 | AR33: No | AS33: 2.622159496e-07 | AT33: 46 | AU33: 46 | AV33: atgtaacta | AW33: atgtaacta | AX33: 0.7556291 | AY33: 0.7556291 | AZ33: c.594-39 | BA33: c.594-41_c.594-38 | BB33: No | BC33: 0 | BD33: 0 | BE33: 0 | BF33: 0 | BG33: No difference between mutant and reference sequence was found with this matrice | BH33: -26 | BI33: -26 | BJ33: 0.9621818066 | BK33: 0.9634233713 | BL33: c.594-26 | BM33: c.594-28_c.594-25 | BN33: No | BO33: 0.001290363986 | BP33: -26 | BQ33: -26 | BR33: 97.78 | BS33: 97.7 | BT33: c.594-26 | BU33: c.594-28_c.594-25 | BV33: No | BW33: -0.0008181632236
A34: BRCA1_c.594-34T>C | B34: chr17 | C34: - | D34: BRCA1 | E34: NM_007294 | F34: intron 8 | G34: c.594-34 | H34: 41247973 | I34: -34 | J34: substitution | K34: 2 | L34: RT PCR One Step + seq | M34: Wappenschmidt B, Becker AA, Hauke J, Weber U, Engert S, Köhler J, et al. Analysis of 30 Putative BRCA1 Splicing Mutations in Hereditary Breast and Ovarian Cancer Families Identifies Exonic Splice Site Mutations That Escape In Silico Prediction. PLOS ONE [Internet]. 2012 Dec 11;7(12):e50800. Available from: https://journals.plos.org/plosone/article?id=10.1371/journal.pone.0050800 | N34: Yes | O34: no effect | P34: 0 | Q34: 10 | R34: 10 | S34: 0 | T34: 83.3 | U34: 83.3 | V34: 0 | W34: 34 | X34: 1 | Y34: 1 | Z34: 0 | AA34: 0 | AB34: 0.9447185501 | AC34: 0.9591868062 | AD34: 0.5 | AE34: 0.4 | AF34: c.594-26 | AG34: c.594-28_c.594-25 | AH34: No | AI34: 0.01531488512 | AJ34: TTCTTAT | AK34: TTCTTAT | AL34: 31 | AM34: 31 | AN34: 5.559281968 | AO34: 5.559281968 | AP34: c.594-26 | AQ34: c.594-28_c.594-25 | AR34: No | AS34: 1.922930969e-12 | AT34: 46 | AU34: 46 | AV34: atgtaacta | AW34: atgtaacta | AX34: 0.7556291 | AY34: 0.74631325 | AZ34: c.594-39 | BA34: c.594-41_c.594-38 | BB34: No | BC34: -0.01232860143 | BD34: 0 | BE34: 0 | BF34: 0 | BG34: No difference between mutant and reference sequence was found with this matrice | BH34: -26 | BI34: -26 | BJ34: 0.9621818066 | BK34: 0.9619235396 | BL34: c.594-26 | BM34: c.594-28_c.594-25 | BN34: No | BO34: -0.0002684180092 | BP34: -26 | BQ34: -26 | BR34: 97.78 | BS34: 97.42 | BT34: c.594-26 | BU34: c.594-28_c.594-25 | BV34: No | BW34: -0.003681734506
A35: BRCA1_c.81-18C>A | B35: chr17 | C35: - | D35: BRCA1 | E35: NM_007294 | F35: intron 2 | G35: c.81-18 | H35: 41267814 | I35: -18 | J35: substitution | K35: 1 | L35: minigene | M35: Théry JC, Krieger S, Gaildrat P, Révillion F, Buisine M-P, Killian A, et al. Contribution of bioinformatics predictions and functional splicing assays to the interpretation of unclassified variants of the BRCA genes. European Journal of Human Genetics [Internet]. 2011 Oct;19(10):1052–8. Available from: https://www.nature.com/articles/ejhg2011100 | N35: Yes | O35: no effect | P35: 0 | Q35: 7.05 | R35: 6.23 | S35: -0.1163120567 | T35: 71.94 | U35: 71.94 | V35: 0 | W35: 18 | X35: 2 | Y35: 2 | Z35: 0 | AA35: 0 | AB35: 0.7519008406 | AC35: 0.7519008406 | AD35: 0.7 | AE35: 0.7 | AF35: c.81-35 | AG35: c.81-37_c.81-34 | AH35: No | AI35: 0 | AJ35: GCCTCAT | AK35: GCCTCAT | AL35: 40 | AM35: 40 | AN35: 4.896842473 | AO35: 4.490770783 | AP35: c.81-35 | AQ35: c.81-37_c.81-34 | AR35: No | AS35: -0.08292520985 | AT35: 42 | AU35: 42 | AV35: gcctcattt | AW35: gcctcattt | AX35: 1.2680694 | AY35: 1.2220771 | AZ35: c.81-35 | BA35: c.81-37_c.81-34 | BB35: No | BC35: -0.03626954487 | BD35: 0 | BE35: 0 | BF35: 0 | BG35: No difference between mutant and reference sequence was found with this matrice | BH35: -41 | BI35: -41 | BJ35: 0.5784581304 | BK35: 0.5756370425 | BL35: c.81-41 | BM35: c.81-43_c.81-40 | BN35: No | BO35: -0.004876909304 | BP35: -35 | BQ35: -35 | BR35: 77.71 | BS35: 75.13 | BT35: c.81-35 | BU35: c.81-37_c.81-34 | BV35: No | BW35: -0.03320036031
A36: BRCA1_c.81-20C>T | B36: chr17 | C36: - | D36: BRCA1 | E36: NM_007294 | F36: intron 2 | G36: c.81-20 | H36: 41267816 | I36: -20 | J36: substitution | K36: 1 | L36: RTPCR | M36: Whiley PJ, Guidugli L, Walker LC, Healey S, Thompson BA, Lakhani SR, et al. Splicing and multifactorial analysis of intronic BRCA1 and BRCA2 sequence variants identifies clinically significant splicing aberrations up to 12 nucleotides from the intron/exon boundary. Human Mutation [Internet]. 2011;32(6):678–87. Available from: https://onlinelibrary.wiley.com/doi/abs/10.1002/humu.21495 | N36: Yes | O36: no effect | P36: 0 | Q36: 7.05 | R36: 7.05 | S36: 0 | T36: 71.94 | U36: 71.94 | V36: 0 | W36: 20 | X36: 2 | Y36: 2 | Z36: 0 | AA36: 0 | AB36: 0.7519008406 | AC36: 0.7519008406 | AD36: 0.7 | AE36: 0.7 | AF36: c.81-35 | AG36: c.81-37_c.81-34 | AH36: No | AI36: 0 | AJ36: GCCTCAT | AK36: GCCTCAT | AL36: 40 | AM36: 40 | AN36: 4.896842473 | AO36: 5.135452339 | AP36: c.81-35 | AQ36: c.81-37_c.81-34 | AR36: No | AS36: 0.04872729062 | AT36: 42 | AU36: 42 | AV36: gcctcattt | AW36: gcctcattt | AX36: 1.2680694 | AY36: 1.2773853 | AZ36: c.81-35 | BA36: c.81-37_c.81-34 | BB36: No | BC36: 0.007346522201 | BD36: 0 | BE36: 0 | BF36: 0 | BG36: No difference between mutant and reference sequence was found with this matrice | BH36: -41 | BI36: -35 | BJ36: 0.5784581304 | BK36: 0.556043148 | BL36: c.81-41 | BM36: c.81-43_c.81-40 | BN36: No | BO36: -0.03874953284 | BP36: -35 | BQ36: -35 | BR36: 77.71 | BS36: 77.6 | BT36: c.81-35 | BU36: c.81-37_c.81-34 | BV36: No | BW36: -0.001415519238
A37: BRCA2_c.-39-26G>A | B37: chr13 | C37: + | D37: BRCA2 | E37: NM_000059 | F37: intron 1 | G37: c.-39-26 | H37: 32890533 | I37: -26 | J37: substitution | K37: 1 | L37: RTPCR | M37: Garibay GR de, Acedo A, García‐Casado Z, Gutiérrez‐Enríquez S, Tosar A, Romero A, et al. Capillary Electrophoresis Analysis of Conventional Splicing Assays: IARC Analytical and Clinical Classification of 31 BRCA2 Genetic Variants. Human Mutation [Internet]. 2014;35(1):53–7. Available from: https://onlinelibrary.wiley.com/doi/abs/10.1002/humu.22456 | N37: Yes | O37: no effect | P37: 0 | Q37: 9.79 | R37: 9.79 | S37: =(R37-Q37)/Q37 -> 0 | T37: 91.36 | U37: 91.36 | V37: 0 | W37: 26 | X37: 2 | Y37: 3 | Z37: 0 | AA37: 1 | AB37: 0.7761189977 | AC37: 0.7731200294 | AD37: 1.7 | AE37: 1.7 | AF37: c.-39-27 | AG37: =IF(FIND("-",AF37)=3,"c.-"&MID(AF37,FIND("-",AF37)+1,FIND("-",MID(AF37,FIND("-",AF37)+1,LEN(AF37))))&VALUE(RIGHT(AF37,2))+2&"_"&"c.-"&MID(AF37,FIND("-",AF37)+1,FIND("-",MID(AF37,FIND("-",AF37)+1,LEN(AF37))))&VALUE(RIGHT(AF37,2))-1,MID(AF37,1,FIND("-",AF37))&VALUE(RIGHT(AF37,2))+2&"_"&MID(AF37,1,FIND("-",AF37))&VALUE(RIGHT(AF37,2))-1) -> c.-39-29_c.-39-26 | AH37: =IF(AND(VALUE(RIGHT(G37,2))>=VALUE(RIGHT(AG37,2)),VALUE(RIGHT(G37,2))<=VALUE(MID(AG37,FIND("_",AG37)-2,2))),"Yes",IF(NOT(ISERROR(FIND("_",G37))),IF(OR(AND(VALUE(RIGHT(G37,2))<VALUE(RIGHT(AG37,2)),VALUE(MID(G37,FIND("_",G37)-2,2))>=VALUE(MID(AG37,FIND("_",AG37)-2,2))),AND(VALUE(MID(G37,FIND("_",G37)-2,2))>=VALUE(RIGHT(AG37,2)),VALUE(MID(G37,FIND("_",G37)-2,2))<=VALUE(MID(AG37,FIND("_",AG37)-2,2)))),"Yes","No"),"No")) -> Yes | AI37: =IF(AB37="NA","NA",(AC37-AB37)/AB37) -> -0.003864057338 | AJ37: GTGTAAG | AK37: GTGTAAA | AL37: 32 | AM37: 32 | AN37: 5.916079783 | AO37: 7.235135588 | AP37: c.-39-27 | AQ37: =IF(FIND("-",AP37)=3,"c.-"&MID(AP37,FIND("-",AP37)+1,FIND("-",MID(AP37,FIND("-",AP37)+1,LEN(AP37))))&VALUE(RIGHT(AP37,2))+2&"_"&"c.-"&MID(AP37,FIND("-",AP37)+1,FIND("-",MID(AP37,FIND("-",AP37)+1,LEN(AP37))))&VALUE(RIGHT(AP37,2))-1,MID(AP37,1,FIND("-",AP37))&VALUE(RIGHT(AP37,2))+2&"_"&MID(AP37,1,FIND("-",AP37))&VALUE(RIGHT(AP37,2))-1) -> c.-39-29_c.-39-26 | AR37: =IF(AND(VALUE(RIGHT(G37,2))>=VALUE(RIGHT(AQ37,2)),VALUE(RIGHT(G37,2))<=VALUE(MID(AQ37,FIND("_",AQ37)-2,2))),"Yes",IF(NOT(ISERROR(FIND("_",G37))),IF(OR(AND(VALUE(RIGHT(G37,2))<VALUE(RIGHT(AQ37,2)),VALUE(MID(G37,FIND("_",G37)-2,2))>=VALUE(MID(AQ37,FIND("_",AQ37)-2,2))),AND(VALUE(MID(G37,FIND("_",G37)-2,2))>=VALUE(RIGHT(AQ37,2)),VALUE(MID(G37,FIND("_",G37)-2,2))<=VALUE(MID(AQ37,FIND("_",AQ37)-2,2)))),"Yes","No"),"No")) -> Yes | AS37: =(AO37-AN37)/AN37 -> 0.2229611252 | AT37: 76 | AU37: 76 | AV37: ttctgagtt | AW37: ttctgagtt | AX37: 0.83842013 | AY37: 0.83842013 | AZ37: c.-39-69 | BA37: =IF(FIND("-",AZ37)=3,"c.-"&MID(AZ37,FIND("-",AZ37)+1,FIND("-",MID(AZ37,FIND("-",AZ37)+1,LEN(AZ37))))&VALUE(RIGHT(AZ37,2))+2&"_"&"c.-"&MID(AZ37,FIND("-",AZ37)+1,FIND("-",MID(AZ37,FIND("-",AZ37)+1,LEN(AZ37))))&VALUE(RIGHT(AZ37,2))-1,MID(AZ37,1,FIND("-",AZ37))&VALUE(RIGHT(AZ37,2))+2&"_"&MID(AZ37,1,FIND("-",AZ37))&VALUE(RIGHT(AZ37,2))-1) -> c.-39-71_c.-39-68 | BB37: =IF(AND(VALUE(RIGHT(G37,2))>=VALUE(RIGHT(BA37,2)),VALUE(RIGHT(G37,2))<=VALUE(MID(BA37,FIND("_",BA37)-2,2))),"Yes",IF(NOT(ISERROR(FIND("_",G37))),IF(OR(AND(VALUE(RIGHT(G37,2))<VALUE(RIGHT(BA37,2)),VALUE(MID(G37,FIND("_",G37)-2,2))>=VALUE(MID(BA37,FIND("_",BA37)-2,2))),AND(VALUE(MID(G37,FIND("_",G37)-2,2))>=VALUE(RIGHT(BA37,2)),VALUE(MID(G37,FIND("_",G37)-2,2))<=VALUE(MID(BA37,FIND("_",BA37)-2,2)))),"Yes","No"),"No")) -> No | BC37: =(AY37-AX37)/AX37 -> 0 | BD37: NA | BE37: NA | BF37: NA | BG37: NA | BH37: -27 | BI37: -27 | BJ37: 0.6000971198 | BK37: 0.4876039624 | BL37: c.-39-27 | BM37: =IF(FIND("-",BL37)=3,"c.-"&MID(BL37,FIND("-",BL37)+1,FIND("-",MID(BL37,FIND("-",BL37)+1,LEN(BL37))))&VALUE(RIGHT(BL37,2))+2&"_"&"c.-"&MID(BL37,FIND("-",BL37)+1,FIND("-",MID(BL37,FIND("-",BL37)+1,LEN(BL37))))&VALUE(RIGHT(BL37,2))-1,MID(BL37,1,FIND("-",BL37))&VALUE(RIGHT(BL37,2))+2&"_"&MID(BL37,1,FIND("-",BL37))&VALUE(RIGHT(BL37,2))-1) -> c.-39-29_c.-39-26 | BN37: =IF(AND(VALUE(RIGHT(G37,2))>=VALUE(RIGHT(BM37,2)),VALUE(RIGHT(G37,2))<=VALUE(MID(BM37,FIND("_",BM37)-2,2))),"Yes",IF(NOT(ISERROR(FIND("_",G37))),IF(OR(AND(VALUE(RIGHT(G37,2))<VALUE(RIGHT(BM37,2)),VALUE(MID(G37,FIND("_",G37)-2,2))>=VALUE(MID(BM37,FIND("_",BM37)-2,2))),AND(VALUE(MID(G37,FIND("_",G37)-2,2))>=VALUE(RIGHT(BM37,2)),VALUE(MID(G37,FIND("_",G37)-2,2))<=VALUE(MID(BM37,FIND("_",BM37)-2,2)))),"Yes","No"),"No")) -> Yes | BO37: =IF(BJ37="","NA",(BK37-BJ37)/BJ37) -> -0.1874582525 | BP37: -27 | BQ37: -27 | BR37: 52.72 | BS37: 32.16 | BT37: c.-39-27 | BU37: =IF(FIND("-",BT37)=3,"c.-"&MID(BT37,FIND("-",BT37)+1,FIND("-",MID(BT37,FIND("-",BT37)+1,LEN(BT37))))&VALUE(RIGHT(BT37,2))+2&"_"&"c.-"&MID(BT37,FIND("-",BT37)+1,FIND("-",MID(BT37,FIND("-",BT37)+1,LEN(BT37))))&VALUE(RIGHT(BT37,2))-1,MID(BT37,1,FIND("-",BT37))&VALUE(RIGHT(BT37,2))+2&"_"&MID(BT37,1,FIND("-",BT37))&VALUE(RIGHT(BT37,2))-1) -> c.-39-29_c.-39-26 | BV37: =IF(AND(VALUE(RIGHT(G37,2))>=VALUE(RIGHT(BU37,2)),VALUE(RIGHT(G37,2))<=VALUE(MID(BU37,FIND("_",BU37)-2,2))),"Yes",IF(NOT(ISERROR(FIND("_",G37))),IF(OR(AND(VALUE(RIGHT(G37,2))<VALUE(RIGHT(BU37,2)),VALUE(MID(G37,FIND("_",G37)-2,2))>=VALUE(MID(BU37,FIND("_",BU37)-2,2))),AND(VALUE(MID(G37,FIND("_",G37)-2,2))>=VALUE(RIGHT(BU37,2)),VALUE(MID(G37,FIND("_",G37)-2,2))<=VALUE(MID(BU37,FIND("_",BU37)-2,2)))),"Yes","No"),"No")) -> Yes | BW37: =IF(BR37="","NA",(BS37-BR37)/BR37) -> -0.3899848255
A38: BRCA2_c.-39-36C>G | B38: chr13 | C38: + | D38: BRCA2 | E38: NM_000059 | F38: intron 1 | G38: c.-39-36 | H38: 32890523 | I38: -36 | J38: substitution | K38: 1 | L38: PAXgene | M38: Houdayer C, Caux‐Moncoutier V, Krieger S, Barrois M, Bonnet F, Bourdon V, et al. Guidelines for splicing analysis in molecular diagnosis derived from a set of 327 combined in silico/in vitro studies on BRCA1 and BRCA2 variants. Human Mutation [Internet]. 2012;33(8):1228–38. Available from: https://onlinelibrary.wiley.com/doi/abs/10.1002/humu.22101 | N38: Yes | O38: no effect | P38: 0 | Q38: 9.79 | R38: 9.79 | S38: 0 | T38: 91.36 | U38: 91.36 | V38: 0 | W38: 36 | X38: 2 | Y38: 2 | Z38: 0 | AA38: 0 | AB38: 0.7761189977 | AC38: 0.7761189977 | AD38: 1.7 | AE38: 1.7 | AF38: c.-39-27 | AG38: c.-39-29_c.-39-26 | AH38: No | AI38: 0 | AJ38: GTGTAAG | AK38: GTGTAAG | AL38: 32 | AM38: 32 | AN38: 5.916079783 | AO38: 5.916079783 | AP38: c.-39-27 | AQ38: c.-39-29_c.-39-26 | AR38: No | AS38: -1.801554649e-15 | AT38: 76 | AU38: 76 | AV38: ttctgagtt | AW38: ttctgagtt | AX38: 0.83842013 | AY38: 0.83387126 | AZ38: c.-39-69 | BA38: c.-39-71_c.-39-68 | BB38: No | BC38: -0.005425525744 | BD38: NA | BE38: NA | BF38: NA | BG38: NA | BH38: -27 | BI38: -27 | BJ38: 0.6000971198 | BK38: 0.5948860049 | BL38: c.-39-27 | BM38: c.-39-29_c.-39-26 | BN38: No | BO38: -0.008683785859 | BP38: -27 | BQ38: -22 | BR38: 52.72 | BS38: 50.05 | BT38: c.-39-27 | BU38: c.-39-29_c.-39-26 | BV38: No | BW38: -0.05064491654
A39: BRCA2_c.426-22G>T | B39: chr13 | C39: + | D39: BRCA2 | E39: NM_000059 | F39: intron 4 | G39: c.426-22 | H39: 32900216 | I39: -22 | J39: substitution | K39: 1 | L39: RT-PCR+Seq | M39: Thomassen M, Blanco A, Montagna M, Hansen TVO, Pedersen IS, Gutiérrez-Enríquez S, et al. Characterization of BRCA1 and BRCA2 splicing variants: a collaborative report by ENIGMA consortium members. Breast Cancer Res Treat [Internet]. 2012 Apr 1;132(3):1009–23. Available from: https://doi.org/10.1007/s10549-011-1674-0 | N39: Yes | O39: no effect | P39: 0 | Q39: 8.99 | R39: 8.99 | S39: 0 | T39: 84.65 | U39: 84.65 | V39: 0 | W39: 22 | X39: 3 | Y39: 3 | Z39: 0 | AA39: 0 | AB39: 0.8833647823 | AC39: 0.8833647823 | AD39: 1.2 | AE39: 1.2 | AF39: c.426-25 | AG39: c.426-27_c.426-24 | AH39: No | AI39: 0 | AJ39: AAATAAC | AK39: AAATAAC | AL39: 35 | AM39: 35 | AN39: 5.683454447 | AO39: 5.683459716 | AP39: c.426-30 | AQ39: c.426-32_c.426-29 | AR39: No | AS39: 9.271514322e-07 | AT39: 37 | AU39: 37 | AV39: aaataacct | AW39: aaataacct | AX39: 0.99806505 | AY39: 1.1440704 | AZ39: c.426-30 | BA39: c.426-32_c.426-29 | BB39: No | BC39: 0.1462884108 | BD39: 0 | BE39: 0 | BF39: =IF(BD39=0,0,(BE39-BD39)/BD39) -> 0 | BG39: No difference between mutant and reference sequence was found with this matrice | BH39: -25 | BI39: -30 | BJ39: 0.4210324287 | BK39: 0.4274792373 | BL39: c.426-25 | BM39: c.426-27_c.426-24 | BN39: No | BO39: 0.01531190506 | BP39: -25 | BQ39: -30 | BR39: 63.99 | BS39: 64.85 | BT39: c.426-25 | BU39: c.426-27_c.426-24 | BV39: No | BW39: 0.01343959994
A40: BRCA2_c.426-24G>A | B40: chr13 | C40: + | D40: BRCA2 | E40: NM_000059 | F40: intron 4 | G40: c.426-24 | H40: 32900214 | I40: -24 | J40: substitution | K40: 1 | L40: LCL with puromycin | M40: Houdayer C, Caux‐Moncoutier V, Krieger S, Barrois M, Bonnet F, Bourdon V, et al. Guidelines for splicing analysis in molecular diagnosis derived from a set of 327 combined in silico/in vitro studies on BRCA1 and BRCA2 variants. Human Mutation [Internet]. 2012;33(8):1228–38. Available from: https://onlinelibrary.wiley.com/doi/abs/10.1002/humu.22101 | N40: Yes | O40: no effect | P40: 0 | Q40: 8.99 | R40: 8.99 | S40: 0 | T40: 84.65 | U40: 84.65 | V40: 0 | W40: 24 | X40: 3 | Y40: 3 | Z40: 2 | AA40: 0 | AB40: 0.8833647823 | AC40: 0.858150118 | AD40: 1.2 | AE40: 1.2 | AF40: c.426-25 | AG40: c.426-27_c.426-24 | AH40: Yes | AI40: -0.02854388676 | AJ40: AAATAAC | AK40: AAATAAC | AL40: 35 | AM40: 35 | AN40: 5.683454447 | AO40: 5.401234536 | AP40: c.426-30 | AQ40: c.426-32_c.426-29 | AR40: No | AS40: -0.0496564041 | AT40: 37 | AU40: 37 | AV40: aaataacct | AW40: aaataacct | AX40: 0.99806505 | AY40: 0.99806505 | AZ40: c.426-30 | BA40: c.426-32_c.426-29 | BB40: No | BC40: 0 | BD40: 81.2 | BE40: 77.31 | BF40: -0.04790640394 | BH40: -25 | BI40: -25 | BJ40: 0.4210324287 | BK40: 0.5608657598 | BL40: c.426-25 | BM40: c.426-27_c.426-24 | BN40: Yes | BO40: 0.3321200971 | BP40: -25 | BQ40: -25 | BR40: 63.99 | BS40: 62.45 | BT40: c.426-25 | BU40: c.426-27_c.426-24 | BV40: Yes | BW40: -0.02406626035
A41: BRCA2_c.426-37T>A | B41: chr13 | C41: + | D41: BRCA2 | E41: NM_000059 | F41: intron 4 | G41: c.426-37 | H41: 32900201 | I41: -37 | J41: substitution | K41: 1 | L41: RTPCR | M41: Whiley PJ, Guidugli L, Walker LC, Healey S, Thompson BA, Lakhani SR, et al. Splicing and multifactorial analysis of intronic BRCA1 and BRCA2 sequence variants identifies clinically significant splicing aberrations up to 12 nucleotides from the intron/exon boundary. Human Mutation [Internet]. 2011;32(6):678–87. Available from: https://onlinelibrary.wiley.com/doi/abs/10.1002/humu.21495 | N41: Yes | O41: no effect | P41: 0 | Q41: 8.99 | R41: 8.99 | S41: 0 | T41: 84.65 | U41: 84.65 | V41: 0 | W41: 37 | X41: 3 | Y41: 3 | Z41: 2 | AA41: 0 | AB41: 0.8833647823 | AC41: 0.8963332206 | AD41: 1.2 | AE41: 1.2 | AF41: c.426-25 | AG41: c.426-27_c.426-24 | AH41: No | AI41: 0.01468072817 | AJ41: AAATAAC | AK41: AAATAAC | AL41: 35 | AM41: 35 | AN41: 5.683454447 | AO41: 5.683454447 | AP41: c.426-30 | AQ41: c.426-32_c.426-29 | AR41: No | AS41: 0 | AT41: 37 | AU41: 37 | AV41: aaataacct | AW41: aaataacct | AX41: 0.99806505 | AY41: 0.99806505 | AZ41: c.426-30 | BA41: c.426-32_c.426-29 | BB41: No | BC41: 0 | BD41: 0 | BE41: 0 | BF41: 0 | BG41: No difference between mutant and reference sequence was found with this matrice | BH41: -25 | BI41: -25 | BJ41: 0.4210324287 | BK41: 0.416211009 | BL41: c.426-25 | BM41: c.426-27_c.426-24 | BN41: No | BO41: -0.01145142128 | BP41: -25 | BQ41: -25 | BR41: 63.99 | BS41: 61.06 | BT41: c.426-25 | BU41: c.426-27_c.426-24 | BV41: No | BW41: -0.04578840444
A42: BRCA2_c.476-24A>G | B42: chr13 | C42: + | D42: BRCA2 | E42: NM_000059 | F42: intron 5 | G42: c.476-24 | H42: 32900355 | I42: -24 | J42: substitution | K42: 1 | L42: LCL with puromycin | M42: Houdayer C, Caux‐Moncoutier V, Krieger S, Barrois M, Bonnet F, Bourdon V, et al. Guidelines for splicing analysis in molecular diagnosis derived from a set of 327 combined in silico/in vitro studies on BRCA1 and BRCA2 variants. Human Mutation [Internet]. 2012 ;33(8):1228–38. Available from: https://onlinelibrary.wiley.com/doi/abs/10.1002/humu.22101 | N42: Yes | O42: no effect | P42: 0 | Q42: 10.49 | R42: 10.49 | S42: 0 | T42: 90.03 | U42: 90.03 | V42: 0 | W42: 24 | X42: 2 | Y42: 2 | Z42: 1 | AA42: 0 | AB42: 0.8745316215 | AC42: 0.8745316215 | AD42: 2.9 | AE42: 2.9 | AF42: c.476-27 | AG42: c.476-29_c.476-26 | AH42: No | AI42: 0 | AJ42: ACTTAAC | AK42: ACTTAAC | AL42: 32 | AM42: 32 | AN42: 7.238700731 | AO42: 5.69883132 | AP42: c.476-27 | AQ42: c.476-29_c.476-26 | AR42: No | AS42: -0.2127273206 | AT42: 34 | AU42: 34 | AV42: acttaacaa | AW42: acttaacag | AX42: 0.59027026 | AY42: 0.81824193 | AZ42: c.476-27 | BA42: c.476-29_c.476-26 | BB42: No | BC42: 0.386215748 | BD42: 0 | BE42: 0 | BF42: 0 | BG42: No difference between mutant and reference sequence was found with this matrice | BH42: -28 | BI42: -28 | BJ42: 0.5806205869 | BK42: 0.6441217661 | BL42: c.476-28 | BM42: c.476-30_c.476-27 | BN42: No | BO42: 0.1093677707 | BP42: -28 | BQ42: -28 | BR42: 76.57 | BS42: 74.68 | BT42: c.476-28 | BU42: c.476-30_c.476-27 | BV42: No | BW42: -0.02468329633
A43: BRCA2_c.517-19C>T | B43: chr13 | C43: + | D43: BRCA2 | E43: NM_000059 | F43: intron 6 | G43: c.517-19 | H43: 32900617 | I43: -19 | J43: substitution | K43: 3 | L43: LCL with puromycin | M43: Houdayer C, Caux‐Moncoutier V, Krieger S, Barrois M, Bonnet F, Bourdon V, et al. Guidelines for splicing analysis in molecular diagnosis derived from a set of 327 combined in silico/in vitro studies on BRCA1 and BRCA2 variants. Human Mutation [Internet]. 2012;33(8):1228–38. Available from: https://onlinelibrary.wiley.com/doi/abs/10.1002/humu.22101 | N43: Yes | O43: no effect | P43: 0 | Q43: 10 | R43: 9.82 | S43: -0.018 | T43: 95.68 | U43: 95.68 | V43: 0 | W43: 19 | X43: 0 | Y43: 1 | Z43: 0 | AA43: 1 | AB43: 0.488909954 | AC43: 0.5353023637 | AD43: NA | AE43: 0.2 | AF43: c.517-29 | AG43: c.517-31_c.517-28 | AH43: No | AI43: 0.09488947662 | AJ43: AAATAAA | AK43: AAATAAA | AL43: 26 | AM43: 26 | AN43: 6.536512105 | AO43: 6.474653937 | AP43: c.517-21 | AQ43: c.517-23_c.517-20 | AR43: No | AS43: -0.009463482597 | AT43: 28 | AU43: 28 | AV43: aaataaact | AW43: aaataaatt | AX43: 0.67797322 | AY43: 0.33855195 | AZ43: c.517-21 | BA43: c.517-23_c.517-20 | BB43: No | BC43: -0.5006411168 | BD43: 0 | BE43: 0 | BF43: 0 | BG43: No difference between mutant and reference sequence was found with this matrice | BH43: -29 | BI43: -29 | BJ43: 0.75493294 | BK43: 0.7761832476 | BL43: c.517-29 | BM43: c.517-31_c.517-28 | BN43: No | BO43: 0.02814860292 | BP43: -29 | BQ43: -29 | BR43: 86.25 | BS43: 86.63 | BT43: c.517-29 | BU43: c.517-31_c.517-28 | BV43: No | BW43: 0.004405797101
A44: BRCA2_c.517-20A>G | B44: chr13 | C44: + | D44: BRCA2 | E44: NM_000059 | F44: intron 6 | G44: c.517-20 | H44: 32900616 | I44: -20 | J44: substitution | K44: 2 | L44: RT-PCR One Step +Seq | M44: Théry JC, Krieger S, Gaildrat P, Révillion F, Buisine M-P, Killian A, et al. Contribution of bioinformatics predictions and functional splicing assays to the interpretation of unclassified variants of the BRCA genes. European Journal of Human Genetics [Internet]. 2011 Oct;19(10):1052–8. Available from: https://www.nature.com/articles/ejhg2011100 | N44: Yes | O44: no effect | P44: 0 | Q44: 10 | R44: 8.98 | S44: -0.102 | T44: 95.68 | U44: 95.68 | V44: 0 | W44: 20 | X44: 0 | Y44: 0 | Z44: 0 | AA44: 0 | AB44: 0.488909954 | AC44: 0.4915420509 | AD44: NA | AE44: NA | AF44: c.517-29 | AG44: c.517-31_c.517-28 | AH44: No | AI44: 0.005383602556 | AJ44: AAATAAA | AK44: AAATAAG | AL44: 26 | AM44: 26 | AN44: 6.536512105 | AO44: 4.029224129 | AP44: c.517-21 | AQ44: c.517-23_c.517-20 | AR44: Yes | AS44: -0.3835819372 | AT44: 28 | AU44: 28 | AV44: aaataaact | AW44: aaataagct | AX44: 0.67797322 | AY44: 0.60174926 | AZ44: c.517-21 | BA44: c.517-23_c.517-20 | BB44: Yes | BC44: -0.1124291606 | BD44: 0 | BE44: 0 | BF44: 0 | BG44: No difference between mutant and reference sequence was found with this matrice | BH44: -29 | BI44: -21 | BJ44: 0.75493294 | BK44: 0.4672040641 | BL44: c.517-29 | BM44: c.517-31_c.517-28 | BN44: No | BO44: -0.3811317014 | BP44: -29 | BQ44: -29 | BR44: 86.25 | BS44: 60.95 | BT44: c.517-29 | BU44: c.517-31_c.517-28 | BV44: No | BW44: -0.2933333333
A45: BRCA2_c.632-44A>T | B45: chr13 | C45: + | D45: BRCA2 | E45: NM_000059 | F45: intron 7 | G45: c.632-44 | H45: 32903536 | I45: -44 | J45: substitution | K45: 1 | L45: RT-PCR One Step +Seq | M45: CFB | N45: No | O45: no effect | P45: 0 | Q45: 8.03 | R45: 8.03 | S45: 0 | T45: 92.6 | U45: 92.6 | V45: 0 | W45: 44 | X45: 0 | Y45: 0 | Z45: 0 | AA45: 0 | AB45: 0.4458758488 | AC45: 0.4458758488 | AD45: NA | AE45: NA | AF45: c.632-26 | AG45: c.632-28_c.632-25 | AH45: No | AI45: 0 | AJ45: TGATAAT | AK45: TGATAAT | AL45: 37 | AM45: 37 | AN45: 6.068688913 | AO45: 6.06868888 | AP45: c.632-32 | AQ45: c.632-34_c.632-31 | AR45: No | AS45: -5.414589628e-09 | AT45: 70 | AU45: 70 | AV45: gtctgacaa | AW45: gtctgacaa | AX45: 0.79097254 | AY45: 0.84252054 | AZ45: c.632-63 | BA45: c.632-65_c.632-62 | BB45: No | BC45: 0.06517040402 | BD45: 0 | BE45: 0 | BF45: 0 | BG45: No difference between mutant and reference sequence was found with this matrice | BH45: -23 | BI45: -28 | BJ45: 0.2767558396 | BK45: 0.2825144529 | BL45: c.632-23 | BM45: c.632-25_c.632-22 | BN45: No | BO45: 0.02080755859 | BP45: -23 | BQ45: -23 | BR45: 56.16 | BS45: 57.72 | BT45: c.632-23 | BU45: c.632-25_c.632-22 | BV45: No | BW45: 0.02777777778
A46: BRCA2_c.682-30A>C | B46: chr13 | C46: + | D46: BRCA2 | E46: NM_000059 | F46: intron 8 | G46: c.682-30 | H46: 32905026 | I46: -30 | J46: substitution | K46: 1 | L46: RT-PCR+Seq | M46: IGR | N46: No | O46: no effect | P46: 0 | Q46: 7.06 | R46: 7.06 | S46: 0 | T46: 87.51 | U46: 87.51 | V46: 0 | W46: 30 | X46: 1 | Y46: 1 | Z46: 0 | AA46: 0 | AB46: 0.7065390583 | AC46: 0.7065390583 | AD46: 1.3 | AE46: 1.3 | AF46: c.682-23 | AG46: c.682-25_c.682-22 | AH46: No | AI46: 0 | AJ46: TAGTGAT | AK46: TAGTGAT | AL46: 28 | AM46: 28 | AN46: 5.807741437 | AO46: 5.807764566 | AP46: c.682-23 | AQ46: c.682-25_c.682-22 | AR46: No | AS46: 3.982472259e-06 | AT46: 17 | AU46: 17 | AV46: ctataattt | AW46: ctataattt | AX46: 0.28468078 | AY46: 0.28468078 | AZ46: c.682-10 | BA46: c.682-12_c.682-9 | BB46: No | BC46: 0 | BD46: 0 | BE46: 0 | BF46: 0 | BG46: No Branch Point motif found in this sequence | BH46: -27 | BI46: -23 | BJ46: 0.7318601012 | BK46: 0.5559898615 | BL46: c.682-27 | BM46: c.682-29_c.682-26 | BN46: No | BO46: -0.2403058172 | BP46: -27 | BQ46: -27 | BR46: 86.44 | BS46: 68.36 | BT46: c.682-27 | BU46: c.682-29_c.682-26 | BV46: No | BW46: -0.2091624248
A47: BRCA2_c.682-32A>G | B47: chr13 | C47: + | D47: BRCA2 | E47: NM_000059 | F47: intron 8 | G47: c.682-32 | H47: 32905024 | I47: -32 | J47: substitution | K47: 1 | L47: RT-PCR+Seq | M47: IB | N47: No | O47: no effect | P47: 0 | Q47: 7.06 | R47: 7.06 | S47: 0 | T47: 87.51 | U47: 87.51 | V47: 0 | W47: 32 | X47: 1 | Y47: 1 | Z47: 0 | AA47: 0 | AB47: 0.7065390583 | AC47: 0.7065390583 | AD47: 1.3 | AE47: 1.3 | AF47: c.682-23 | AG47: c.682-25_c.682-22 | AH47: No | AI47: 0 | AJ47: TAGTGAT | AK47: TAGTGAT | AL47: 28 | AM47: 28 | AN47: 5.807741437 | AO47: 5.818579201 | AP47: c.682-23 | AQ47: c.682-25_c.682-22 | AR47: No | AS47: 0.001866089328 | AT47: 17 | AU47: 17 | AV47: ctataattt | AW47: ctataattt | AX47: 0.28468078 | AY47: 0.28468078 | AZ47: c.682-10 | BA47: c.682-12_c.682-9 | BB47: No | BC47: 0 | BD47: 0 | BE47: 0 | BF47: 0 | BG47: No Branch Point motif found in this sequence | BH47: -27 | BI47: -27 | BJ47: 0.7318601012 | BK47: 0.7629730701 | BL47: c.682-27 | BM47: c.682-29_c.682-26 | BN47: No | BO47: 0.04251218077 | BP47: -27 | BQ47: -27 | BR47: 86.44 | BS47: 88.51 | BT47: c.682-27 | BU47: c.682-29_c.682-26 | BV47: No | BW47: 0.02394724665
A48: BRCA2_c.6842-20T>A | B48: chr13 | C48: + | D48: BRCA2 | E48: NM_000059 | F48: intron 11 | G48: c.6842-20 | H48: 32918675 | I48: -20 | J48: substitution | K48: 3 | L48: RT-PCR+Seq | M48: Menéndez M, Castellsagué J, Mirete M, Pros E, Feliubadaló L, Osorio A, et al. Assessing the RNA effect of 26 DNA variants in the BRCA1 and BRCA2 genes. Breast Cancer Res Treat [Internet]. 2012 Apr 1;132(3):979–92. Available from: https://doi.org/10.1007/s10549-011-1661-5 | N48: Yes | O48: no effect | P48: 0 | Q48: 8.23 | R48: 7.44 | S48: -0.09599027947 | T48: 89.91 | U48: 89.91 | V48: 0 | W48: 20 | X48: 1 | Y48: 0 | Z48: 1 | AA48: 0 | AB48: 0.7033394229 | AC48: 0.400988359 | AD48: 0.2 | AE48: NA | AF48: c.6842-29 | AG48: c.6842-31_c.6842-28 | AH48: No | AI48: -0.4298793073 | AJ48: CCTTAAA | AK48: AAATGAA | AL48: 33 | AM48: 21 | AN48: 6.558281923 | AO48: 5.564230145 | AP48: c.6842-28 | AQ48: c.6842-30_c.6842-27 | AR48: No | AS48: -0.1515719804 | AT48: 50 | AU48: 50 | AV48: aactgatat | AW48: aactgatat | AX48: 0.94138017 | AY48: 0.93420305 | AZ48: c.6842-43 | BA48: c.6842-45_c.6842-42 | BB48: No | BC48: -0.007624039924 | BD48: 0 | BE48: 0 | BF48: 0 | BG48: No difference between mutant and reference sequence was found with this matrice | BH48: -29 | BI48: -23 | BJ48: 0.4803601503 | BK48: 0.4814257026 | BL48: c.6842-29 | BM48: c.6842-31_c.6842-28 | BN48: No | BO48: 0.002218236118 | BP48: -23 | BQ48: -23 | BR48: 58.03 | BS48: 73.59 | BT48: c.6842-23 | BU48: c.6842-25_c.6842-22 | BV48: No | BW48: 0.2681371704
A49: BRCA2_c.6938-26T>C | B49: chr13 | C49: + | D49: BRCA2 | E49: NM_000059 | F49: intron 12 | G49: c.6938-26 | H49: 32920938 | I49: -26 | J49: substitution | K49: 1 | L49: PAXgene | M49: Houdayer C, Caux‐Moncoutier V, Krieger S, Barrois M, Bonnet F, Bourdon V, et al. Guidelines for splicing analysis in molecular diagnosis derived from a set of 327 combined in silico/in vitro studies on BRCA1 and BRCA2 variants. Human Mutation [Internet]. 2012;33(8):1228–38. Available from: https://onlinelibrary.wiley.com/doi/abs/10.1002/humu.22101 | N49: Yes | O49: no effect | P49: 0 | Q49: 5.54 | R49: 5.54 | S49: 0 | T49: 82.7 | U49: 82.7 | V49: 0 | W49: 26 | X49: 2 | Y49: 2 | Z49: 0 | AA49: 0 | AB49: 0.8504717932 | AC49: 0.8513310699 | AD49: 5.1 | AE49: 5.1 | AF49: c.6938-29 | AG49: c.6938-31_c.6938-28 | AH49: No | AI49: 0.001010353037 | AJ49: AACTAAT | AK49: AACTAAT | AL49: 34 | AM49: 34 | AN49: 6.85163197 | AO49: 6.817358509 | AP49: c.6938-29 | AQ49: c.6938-31_c.6938-28 | AR49: No | AS49: -0.005002233151 | AT49: 64 | AU49: 64 | AV49: cagtaacat | AW49: cagtaacat | AX49: 0.96438128 | AY49: 0.96438128 | AZ49: c.6938-57 | BA49: c.6938-59_c.6938-56 | BB49: No | BC49: 0 | BD49: 0 | BE49: 0 | BF49: 0 | BG49: No difference between mutant and reference sequence was found with this matrice | BH49: -29 | BI49: -29 | BJ49: 0.5973892808 | BK49: 0.7511190772 | BL49: c.6938-29 | BM49: c.6938-31_c.6938-28 | BN49: No | BO49: 0.2573360476 | BP49: -29 | BQ49: -29 | BR49: 76.9 | BS49: 78.89 | BT49: c.6938-29 | BU49: c.6938-31_c.6938-28 | BV49: No | BW49: 0.02587776333
A50: BRCA2_c.7008-24_7008-23del | B50: chr13 | C50: + | D50: BRCA2 | E50: NM_000059 | F50: intron 13 | G50: c.7008-24_7008-23 | H50: 32928975 | I50: -23 | J50: del | K50: 1 | L50: RT-PCR+Seq | M50: IGR | N50: No | O50: no effect | P50: 0 | Q50: 10.37 | R50: 10.37 | S50: 0 | T50: 84.19 | U50: 84.19 | V50: 0 | W50: 23 | X50: 0 | Y50: 0 | Z50: 0 | AA50: 0 | AB50: NA | AC50: NA | AD50: NA | AE50: NA | AF50: c.7008-22 | AG50: c.7008-24_c.7008-21 | AH50: Yes | AI50: NA | AJ50: CAATAAA | AK50: CAATAAA | AL50: 32 | AM50: 30 | AN50: 4.575721954 | AO50: 6.229897501 | AP50: c.7008-27 | AQ50: c.7008-29_c.7008-26 | AR50: No | AS50: 0.3615113777 | AT50: 60 | AU50: 58 | AV50: tcctaaata | AW50: tcctaaata | AX50: 0.64168297 | AY50: 0.63680794 | AZ50: c.7008-53 | BA50: c.7008-55_c.7008-52 | BB50: No | BC50: -0.007597256321 | BD50: 85.55 | BE50: 40.73 | BF50: -0.5239041496 | BG50: Site broken | BH50: -22 | BI50: -25 | BJ50: 0.644502759 | BK50: 0.4366632402 | BL50: c.7008-22 | BM50: c.7008-24_c.7008-21 | BN50: Yes | BO50: -0.3224804175 | BP50: -22 | BQ50: -33 | BR50: 79.1 | BS50: 38.46 | BT50: c.7008-22 | BU50: c.7008-24_c.7008-21 | BV50: Yes | BW50: -0.5137800253
A51: BRCA2_c.7008-44A>G | B51: chr13 | C51: + | D51: BRCA2 | E51: NM_000059 | F51: intron 13 | G51: c.7008-44 | H51: 32928954 | I51: -44 | J51: substitution | K51: 1 | L51: LCL with puromycin | M51: Houdayer C, Caux‐Moncoutier V, Krieger S, Barrois M, Bonnet F, Bourdon V, et al. Guidelines for splicing analysis in molecular diagnosis derived from a set of 327 combined in silico/in vitro studies on BRCA1 and BRCA2 variants. Human Mutation [Internet]. 2012;33(8):1228–38. Available from: https://onlinelibrary.wiley.com/doi/abs/10.1002/humu.22101 | N51: Yes | O51: no effect | P51: 0 | Q51: 10.37 | R51: 10.37 | S51: 0 | T51: 84.19 | U51: 84.19 | V51: 0 | W51: 44 | X51: 1 | Y51: 2 | Z51: 0 | AA51: 0 | AB51: 0.7598725718 | AC51: 0.7706398 | AD51: 0.8 | AE51: 0.9 | AF51: c.7008-22 | AG51: c.7008-24_c.7008-21 | AH51: No | AI51: 0.01416978136 | AJ51: CAATAAA | AK51: CAATAAA | AL51: 32 | AM51: 32 | AN51: 4.575721954 | AO51: 4.575721954 | AP51: c.7008-27 | AQ51: c.7008-29_c.7008-26 | AR51: No | AS51: 0 | AT51: 60 | AU51: 60 | AV51: tcctaaata | AW51: tcctaaata | AX51: 0.64168297 | AY51: 0.6696305 | AZ51: c.7008-53 | BA51: c.7008-55_c.7008-52 | BB51: No | BC51: 0.04355348561 | BD51: 0 | BE51: 0 | BF51: 0 | BG51: No difference between mutant and reference sequence was found with this matrice | BH51: -22 | BI51: -22 | BJ51: 0.644502759 | BK51: 0.6343499422 | BL51: c.7008-22 | BM51: c.7008-24_c.7008-21 | BN51: No | BO51: -0.0157529454 | BP51: -22 | BQ51: -22 | BR51: 79.1 | BS51: 79.76 | BT51: c.7008-22 | BU51: c.7008-24_c.7008-21 | BV51: No | BW51: 0.008343868521
A52: BRCA2_c.7008-44A>T | B52: chr13 | C52: + | D52: BRCA2 | E52: NM_000059 | F52: intron 13 | G52: c.7008-44 | H52: 32928954 | I52: -44 | J52: substitution | K52: 1 | L52: O, RT PCR One Step + s equence | M52: Houdayer C, Caux‐Moncoutier V, Krieger S, Barrois M, Bonnet F, Bourdon V, et al. Guidelines for splicing analysis in molecular diagnosis derived from a set of 327 combined in silico/in vitro studies on BRCA1 and BRCA2 variants. Human Mutation [Internet]. 2012;33(8):1228–38. Available from: https://onlinelibrary.wiley.com/doi/abs/10.1002/humu.22101 | N52: Yes | O52: no effect | P52: 0 | Q52: 10.37 | R52: 10.37 | S52: 0 | T52: 84.19 | U52: 84.19 | V52: 0 | W52: 44 | X52: 1 | Y52: 1 | Z52: 0 | AA52: 0 | AB52: 0.7598725718 | AC52: 0.7598725718 | AD52: 0.8 | AE52: 0.8 | AF52: c.7008-22 | AG52: c.7008-24_c.7008-21 | AH52: No | AI52: 0 | AJ52: CAATAAA | AK52: CAATAAA | AL52: 32 | AM52: 32 | AN52: 4.575721954 | AO52: 4.575721954 | AP52: c.7008-27 | AQ52: c.7008-29_c.7008-26 | AR52: No | AS52: 0 | AT52: 60 | AU52: 60 | AV52: tcctaaata | AW52: tcctaaata | AX52: 0.64168297 | AY52: 0.72208191 | AZ52: c.7008-53 | BA52: c.7008-55_c.7008-52 | BB52: No | BC52: 0.1252938659 | BD52: 0 | BE52: 0 | BF52: 0 | BG52: No difference between mutant and reference sequence was found with this matrice | BH52: -22 | BI52: -22 | BJ52: 0.644502759 | BK52: 0.6339389682 | BL52: c.7008-22 | BM52: c.7008-24_c.7008-21 | BN52: No | BO52: -0.01639060601 | BP52: -22 | BQ52: -22 | BR52: 79.1 | BS52: 79.98 | BT52: c.7008-22 | BU52: c.7008-24_c.7008-21 | BV52: No | BW52: 0.01112515803
A53: BRCA2_c.7436-22C>T | B53: chr13 | C53: + | D53: BRCA2 | E53: NM_000059 | F53: intron 14 | G53: c.7436-22 | H53: 32930543 | I53: -22 | J53: substitution | K53: 1 | L53: Paxgene | M53: CFB | N53: No | O53: no effect | P53: 0 | Q53: 5.16 | R53: 5.16 | S53: 0 | T53: 83.71 | U53: 83.71 | V53: 0 | W53: 22 | X53: 2 | Y53: 2 | Z53: 0 | AA53: 0 | AB53: 0.7168944671 | AC53: 0.7168944671 | AD53: 3.2 | AE53: 3.2 | AF53: c.7436-19 | AG53: c.7436-21_c.7436-18 | AH53: No | AI53: 0 | AJ53: TGCTAAG | AK53: TGTTAAG | AL53: 24 | AM53: 24 | AN53: 5.195927646 | AO53: 5.147975707 | AP53: c.7436-19 | AQ53: c.7436-21_c.7436-18 | AR53: No | AS53: -0.009228754273 | AT53: 26 | AU53: 26 | AV53: tgctaagta | AW53: tgttaagta | AX53: 0.92750271 | AY53: 0.32947512 | AZ53: c.7436-19 | BA53: c.7436-21_c.7436-18 | BB53: No | BC53: -0.644771798 | BD53: 79.34 | BE53: 55.5 | BF53: -0.3004789513 | BG53: Site broken | BH53: -19 | BI53: -19 | BJ53: 0.6698949933 | BK53: 0.5718215704 | BL53: c.7436-19 | BM53: c.7436-21_c.7436-18 | BN53: No | BO53: -0.1464011881 | BP53: -19 | BQ53: -19 | BR53: 80.2 | BS53: 68.27 | BT53: c.7436-19 | BU53: c.7436-21_c.7436-18 | BV53: No | BW53: -0.1487531172
A54: BRCA2_c.7618-22T>C | B54: chr13 | C54: + | D54: BRCA2 | E54: NM_000059 | F54: intron 15 | G54: c.7618-22 | H54: 32931857 | I54: -22 | J54: substitution | K54: 1 | L54: RT-PCR one step +Seq | M54: CPS | N54: No | O54: no effect | P54: 0 | Q54: 7.11 | R54: 7.11 | S54: 0 | T54: 84.47 | U54: 84.47 | V54: =(U54-T54)/T54 -> 0 | W54: 22 | X54: 1 | Y54: 1 | Z54: 0 | AA54: 0 | AB54: 0.5590297142 | AC54: 0.5242127908 | AD54: 0.8 | AE54: 0.9 | AF54: c.7618-39 | AG54: c.7618-41_c.7618-38 | AH54: No | AI54: -0.06228098883 | AJ54: TGTTTAC | AK54: TGTTTAC | AL54: 49 | AM54: 49 | AN54: 6.397241714 | AO54: 6.347529981 | AP54: c.7618-44 | AQ54: c.7618-46_c.7618-43 | AR54: No | AS54: -0.007770807365 | AT54: 61 | AU54: 61 | AV54: gtgtgatac | AW54: gtgtgatac | AX54: 0.6207079 | AY54: 0.6207079 | AZ54: c.7618-54 | BA54: c.7618-56_c.7618-53 | BB54: No | BC54: 0 | BD54: 0 | BE54: 0 | BF54: 0 | BG54: No Branch Point motif found in this sequence | BH54: -39 | BI54: -39 | BJ54: 0.6001644731 | BK54: 0.5989521742 | BL54: c.7618-39 | BM54: c.7618-41_c.7618-38 | BN54: No | BO54: -0.002019944406 | BP54: -39 | BQ54: -39 | BR54: 76.81 | BS54: 76.35 | BT54: c.7618-39 | BU54: c.7618-41_c.7618-38 | BV54: No | BW54: -0.005988803541
A55: BRCA2_c.7618-37A>G | B55: chr13 | C55: + | D55: BRCA2 | E55: NM_000059 | F55: intron 15 | G55: c.7618-37 | H55: 32931842 | I55: -37 | J55: substitution | K55: 1 | L55: RT-PCR+Seq | M55: IB | N55: No | O55: no effect | P55: 0 | Q55: 7.11 | R55: 7.11 | S55: 0 | T55: 84.47 | U55: 84.47 | V55: =(U55-T55)/T55 -> 0 | W55: 37 | X55: 1 | Y55: 0 | Z55: 1 | AA55: 0 | AB55: 0.5590297142 | AC55: 0.3754026524 | AD55: 0.8 | AE55: NA | AF55: c.7618-39 | AG55: c.7618-41_c.7618-38 | AH55: No | AI55: -0.3284746001 | AJ55: TGTTTAC | AK55: TGTTTAC | AL55: 49 | AM55: 49 | AN55: 6.397241714 | AO55: 6.084747582 | AP55: c.7618-44 | AQ55: c.7618-46_c.7618-43 | AR55: No | AS55: -0.04884826084 | AT55: 61 | AU55: 61 | AV55: gtgtgatac | AW55: gtgtgatac | AX55: 0.6207079 | AY55: 0.6207079 | AZ55: c.7618-54 | BA55: c.7618-56_c.7618-53 | BB55: No | BC55: 0 | BD55: 0 | BE55: 0 | BF55: 0 | BG55: No Branch Point motif found in this sequence | BH55: -39 | BI55: -39 | BJ55: 0.6001644731 | BK55: 0.7424539924 | BL55: c.7618-39 | BM55: c.7618-41_c.7618-38 | BN55: No | BO55: 0.2370842089 | BP55: -39 | BQ55: -39 | BR55: 76.81 | BS55: 90.01 | BT55: c.7618-39 | BU55: c.7618-41_c.7618-38 | BV55: No | BW55: 0.1718526234
A56: BRCA2_c.7806-40A>G | B56: chr13 | C56: + | D56: BRCA2 | E56: NM_000059 | F56: intron 16 | G56: c.7806-40 | H56: 32936620 | I56: -40 | J56: substitution | K56: 3 | L56: O par etude d UV à distance, RT PCR One Step + s equence + test monoall elique cassette Rouen | M56: Houdayer C, Caux‐Moncoutier V, Krieger S, Barrois M, Bonnet F, Bourdon V, et al. Guidelines for splicing analysis in molecular diagnosis derived from a set of 327 combined in silico/in vitro studies on BRCA1 and BRCA2 variants. Human Mutation [Internet]. 2012;33(8):1228–38. Available from: https://onlinelibrary.wiley.com/doi/abs/10.1002/humu.22101 | N56: Yes | O56: no effect | P56: 0 | Q56: 8.33 | R56: 8.33 | S56: 0 | T56: 98.6 | U56: 98.6 | V56: =(U56-T56)/T56 -> 0 | W56: 40 | X56: 1 | Y56: 1 | Z56: 0 | AA56: 0 | AB56: 0.5946667814 | AC56: 0.5331555363 | AD56: 2.5 | AE56: 2.5 | AF56: c.7806-29 | AG56: c.7806-31_c.7806-28 | AH56: No | AI56: -0.1034381725 | AJ56: TGATAAT | AK56: TGATAAT | AL56: 28 | AM56: 28 | AN56: 6.995092851 | AO56: 6.994192898 | AP56: c.7806-23 | AQ56: c.7806-25_c.7806-22 | AR56: No | AS56: -0.0001286550004 | AT56: 30 | AU56: 30 | AV56: tgataatat | AW56: tgataatat | AX56: 0.72490898 | AY56: 0.72490898 | AZ56: c.7806-23 | BA56: c.7806-25_c.7806-22 | BB56: No | BC56: 0 | BD56: 67.63 | BE56: 38 | BF56: -0.4381191779 | BG56: Site broken | BH56: -29 | BI56: -29 | BJ56: 0.5247655511 | BK56: 0.5081914067 | BL56: c.7806-29 | BM56: c.7806-31_c.7806-28 | BN56: No | BO56: -0.03158390319 | BP56: -29 | BQ56: -29 | BR56: 44.15 | BS56: 42.16 | BT56: c.7806-29 | BU56: c.7806-31_c.7806-28 | BV56: No | BW56: -0.04507361268
A57: BRCA2_c.794-18del | B57: chr13 | C57: + | D57: BRCA2 | E57: NM_000059 | F57: intron 9 | G57: c.794-18 | H57: 32906391 | I57: -18 | J57: del | K57: 1 | L57: RT-PCR+Seq | M57: IB | N57: No | O57: no effect | P57: 0 | Q57: 9.62 | R57: 8.59 | S57: -0.1070686071 | T57: 89.21 | U57: 89.21 | V57: =(U57-T57)/T57 -> 0 | W57: 18 | X57: 2 | Y57: 2 | Z57: 0 | AA57: 0 | AB57: 0.8633482961 | AC57: 0.8633482961 | AD57: 1.8 | AE57: 1.8 | AF57: c.794-27 | AG57: c.794-29_c.794-26 | AH57: No | AI57: 0 | AJ57: TATTAAT | AK57: TATTAAT | AL57: 32 | AM57: 31 | AN57: 8.038991676 | AO57: 7.679409499 | AP57: c.794-27 | AQ57: c.794-29_c.794-26 | AR57: No | AS57: -0.0447297611 | AT57: 34 | AU57: 33 | AV57: tattaatgt | AW57: tattaatgt | AX57: 1.1234697 | AY57: 1.091147 | AZ57: c.794-27 | BA57: c.794-29_c.794-26 | BB57: No | BC57: -0.02877042434 | BD57: 0 | BE57: 0 | BF57: 0 | BG57: No Branch Point motif found in this sequence | BH57: -27 | BI57: -26 | BJ57: 0.8392826319 | BK57: 0.8254044652 | BL57: c.794-27 | BM57: c.794-29_c.794-26 | BN57: No | BO57: -0.01653574868 | BP57: -27 | BQ57: -26 | BR57: 85.21 | BS57: 83.51 | BT57: c.794-27 | BU57: c.794-29_c.794-26 | BV57: No | BW57: -0.01995071001
A58: BRCA2_c.8633-26A>G | B58: chr13 | C58: + | D58: BRCA2 | E58: NM_000059 | F58: intron 20 | G58: c.8633-26 | H58: 32950781 | I58: -26 | J58: substitution | K58: 1 | L58: Paxgene | M58: CFB | N58: No | O58: no effect | P58: 0 | Q58: 6.97 | R58: 6.97 | S58: 0 | T58: 86.09 | U58: 86.09 | V58: 0 | W58: 26 | X58: 2 | Y58: 2 | Z58: 0 | AA58: 1 | AB58: 0.6540818911 | AC58: 0.6540818911 | AD58: 2.5 | AE58: 2.5 | AF58: c.8633-21 | AG58: c.8633-23_c.8633-20 | AH58: No | AI58: 0 | AJ58: AATTAAT | AK58: GATTAAT | AL58: 26 | AM58: 26 | AN58: 4.694479163 | AO58: 4.746158378 | AP58: c.8633-21 | AQ58: c.8633-23_c.8633-20 | AR58: No | AS58: 0.01100850881 | AT58: 25 | AU58: 25 | AV58: taataatcc | AW58: taataatcc | AX58: 1.0921396 | AY58: 1.0921396 | AZ58: c.8633-18 | BA58: c.8633-20_c.8633-17 | BB58: No | BC58: 0 | BD58: 0 | BE58: 0 | BF58: 0 | BG58: No Branch Point motif found in this sequence | BH58: -26 | BI58: -25 | BJ58: 0.5621737838 | BK58: 0.5177339911 | BL58: c.8633-26 | BM58: c.8633-28_c.8633-25 | BN58: Yes | BO58: -0.07904992 | BP58: -26 | BQ58: -21 | BR58: 50.05 | BS58: 60.02 | BT58: c.8633-26 | BU58: c.8633-28_c.8633-25 | BV58: Yes | BW58: 0.1992007992
A59: BRCA2_c.8633-30A>G | B59: chr13 | C59: + | D59: BRCA2 | E59: NM_000059 | F59: intron 20 | G59: c.8633-30 | H59: 32950777 | I59: -30 | J59: substitution | K59: 1 | L59: RT-PCR+Seq | M59: Inserm U1028 | N59: No | O59: no effect | P59: 0 | Q59: 6.97 | R59: 6.97 | S59: 0 | T59: 86.09 | U59: 86.09 | V59: =(U59-T59)/T59 -> 0 | W59: 30 | X59: 2 | Y59: 2 | Z59: 0 | AA59: 1 | AB59: 0.6540818911 | AC59: 0.8938678588 | AD59: 2.5 | AE59: 2.6 | AF59: c.8633-21 | AG59: c.8633-23_c.8633-20 | AH59: No | AI59: 0.3665993064 | AJ59: AATTAAT | AK59: AATTAAT | AL59: 26 | AM59: 26 | AN59: 4.694479163 | AO59: 5.044682693 | AP59: c.8633-21 | AQ59: c.8633-23_c.8633-20 | AR59: No | AS59: 0.07459901692 | AT59: 25 | AU59: 25 | AV59: taataatcc | AW59: taataatcc | AX59: 1.0921396 | AY59: 1.0921396 | AZ59: c.8633-18 | BA59: c.8633-20_c.8633-17 | BB59: No | BC59: 0 | BD59: 0 | BE59: 0 | BF59: 0 | BG59: No Branch Point motif found in this sequence | BH59: -26 | BI59: -25 | BJ59: 0.5621737838 | BK59: 0.4132605493 | BL59: c.8633-26 | BM59: c.8633-28_c.8633-25 | BN59: No | BO59: -0.2648882583 | BP59: -26 | BQ59: -26 | BR59: 50.05 | BS59: 48.53 | BT59: c.8633-26 | BU59: c.8633-28_c.8633-25 | BV59: No | BW59: -0.03036963037
A60: BRCA2_c.9257-18C>A | B60: chr13 | C60: + | D60: BRCA2 | E60: NM_000059 | F60: intron 24 | G60: c.9257-18 | H60: 32968808 | I60: -18 | J60: substitution | K60: 1 | L60: RTPCR | M60: Chen X, Truong T-TN, Weaver J, Bove BA, Cattie K, Armstrong BA, et al. Intronic alterations in BRCA1 and BRCA2: effect on mRNA splicing fidelity and expression. Human Mutation [Internet]. 2006;27(5):427–35. Available from: https://onlinelibrary.wiley.com/doi/abs/10.1002/humu.20319 | N60: Yes | O60: no effect | P60: 0 | Q60: 13.32 | R60: 13.17 | S60: -0.01126126126 | T60: 90.93 | U60: 90.93 | V60: =(U60-T60)/T60 -> 0 | W60: NA | X60: NA | Y60: NA | Z60: NA | AA60: NA | AB60: NA | AC60: NA | AD60: NA | AE60: NA | AF60: c.9257-NA | AG60: NA | AH60: NA | AI60: NA | AJ60: TAATAAC | AK60: TAATAAC | AL60: 33 | AM60: 33 | AN60: 7.688685364 | AO60: 8.488394632 | AP60: c.9257-28 | AQ60: c.9257-30_c.9257-27 | AR60: No | AS60: 0.1040111841 | AT60: 35 | AU60: 35 | AV60: taataacat | AW60: taataacat | AX60: 1.52267 | AY60: 1.4746409 | AZ60: c.9257-28 | BA60: c.9257-30_c.9257-27 | BB60: No | BC60: -0.03154268489 | BD60: 0 | BE60: 0 | BF60: 0 | BG60: No Branch Point motif found in this sequence | BH60: -28 | BI60: -28 | BJ60: 0.4099786282 | BK60: 0.4281646609 | BL60: c.9257-28 | BM60: c.9257-30_c.9257-27 | BN60: No | BO60: 0.04435848974 | BP60: -28 | BQ60: -28 | BR60: 57.01 | BS60: 58.09 | BT60: c.9257-28 | BU60: c.9257-30_c.9257-27 | BV60: No | BW60: 0.0189440449
A61: BRCA2_c.9649-20C>T | B61: chr13 | C61: + | D61: BRCA2 | E61: NM_000059 | F61: intron 26 | G61: c.9649-20 | H61: 32972279 | I61: -20 | J61: substitution | K61: 3 | L61: RTPCR | M61: Houdayer C, Caux‐Moncoutier V, Krieger S, Barrois M, Bonnet F, Bourdon V, et al. Guidelines for splicing analysis in molecular diagnosis derived from a set of 327 combined in silico/in vitro studies on BRCA1 and BRCA2 variants. Human Mutation [Internet]. 2012;33(8):1228–38. Available from: https://onlinelibrary.wiley.com/doi/abs/10.1002/humu.22101 | N61: Yes | O61: no effect | P61: 0 | Q61: 8.54 | R61: 8.8 | S61: 0.03044496487 | T61: 91.4 | U61: 91.4 | V61: =(U61-T61)/T61 -> 0 | W61: 20 | X61: 1 | Y61: 1 | Z61: 1 | AA61: 0 | AB61: 0.6360849025 | AC61: 0.6031335124 | AD61: 1.1 | AE61: 1.1 | AF61: c.9649-28 | AG61: =IF(FIND("-",AF61)=3,"c.-"&MID(AF61,FIND("-",AF61)+1,FIND("-",MID(AF61,FIND("-",AF61)+1,LEN(AF61))))&VALUE(RIGHT(AF61,2))+2&"_"&"c.-"&MID(AF61,FIND("-",AF61)+1,FIND("-",MID(AF61,FIND("-",AF61)+1,LEN(AF61))))&VALUE(RIGHT(AF61,2))-1,MID(AF61,1,FIND("-",AF61))&VALUE(RIGHT(AF61,2))+2&"_"&MID(AF61,1,FIND("-",AF61))&VALUE(RIGHT(AF61,2))-1) -> c.9649-30_c.9649-27 | AH61: =IF(AND(VALUE(RIGHT(G61,2))>=VALUE(RIGHT(AG61,2)),VALUE(RIGHT(G61,2))<=VALUE(MID(AG61,FIND("_",AG61)-2,2))),"Yes",IF(NOT(ISERROR(FIND("_",G61))),IF(OR(AND(VALUE(RIGHT(G61,2))<VALUE(RIGHT(AG61,2)),VALUE(MID(G61,FIND("_",G61)-2,2))>=VALUE(MID(AG61,FIND("_",AG61)-2,2))),AND(VALUE(MID(G61,FIND("_",G61)-2,2))>=VALUE(RIGHT(AG61,2)),VALUE(MID(G61,FIND("_",G61)-2,2))<=VALUE(MID(AG61,FIND("_",AG61)-2,2)))),"Yes","No"),"No")) -> No | AI61: -0.0518034462 | AJ61: ACATAAT | AK61: ACATAAT | AL61: 39 | AM61: 39 | AN61: 4.190231651 | AO61: 4.282491083 | AP61: c.9649-34 | AQ61: c.9649-36_c.9649-33 | AR61: No | AS61: 0.0220177401 | AT61: 66 | AU61: 66 | AV61: ctttgattt | AW61: ctttgattt | AX61: 0.44434315 | AY61: 0.44434315 | AZ61: c.9649-59 | BA61: c.9649-61_c.9649-58 | BB61: No | BC61: 0 | BD61: 0 | BE61: 0 | BF61: 0 | BG61: No difference between mutant and reference sequence was found with this matrice | BH61: -28 | BI61: -28 | BJ61: 0.7241140604 | BK61: 0.7362648249 | BL61: c.9649-28 | BM61: c.9649-30_c.9649-27 | BN61: No | BO61: 0.01678018026 | BP61: -28 | BQ61: -28 | BR61: 54.96 | BS61: 58.26 | BT61: c.9649-28 | BU61: c.9649-30_c.9649-27 | BV61: No | BW61: 0.06004366812
A62: BRCA2_c.9649-37A>C | B62: chr13 | C62: + | D62: BRCA2 | E62: NM_000059 | F62: intron 26 | G62: c.9649-37 | H62: 32972262 | I62: -37 | J62: substitution | K62: 1 | L62: PAXgene | M62: Houdayer C, Caux‐Moncoutier V, Krieger S, Barrois M, Bonnet F, Bourdon V, et al. Guidelines for splicing analysis in molecular diagnosis derived from a set of 327 combined in silico/in vitro studies on BRCA1 and BRCA2 variants. Human Mutation [Internet]. 2012;33(8):1228–38. Available from: https://onlinelibrary.wiley.com/doi/abs/10.1002/humu.22101 | N62: Yes | O62: no effect | P62: 0 | Q62: 8.54 | R62: 8.54 | S62: 0 | T62: 91.4 | U62: 91.4 | V62: =(U62-T62)/T62 -> 0 | W62: 37 | X62: 1 | Y62: 1 | Z62: 0 | AA62: 1 | AB62: 0.6360849025 | AC62: 0.6594371387 | AD62: 1.1 | AE62: 1.5 | AF62: c.9649-28 | AG62: c.9649-30_c.9649-27 | AH62: No | AI62: 0.03671245163 | AJ62: ACATAAT | AK62: ACCTAAT | AL62: 39 | AM62: 39 | AN62: 4.190231651 | AO62: 5.584739901 | AP62: c.9649-34 | AQ62: c.9649-36_c.9649-33 | AR62: No | AS62: 0.3327997986 | AT62: 66 | AU62: 66 | AV62: ctttgattt | AW62: ctttgattt | AX62: 0.44434315 | AY62: 0.44963776 | AZ62: c.9649-59 | BA62: c.9649-61_c.9649-58 | BB62: No | BC62: 0.01191558821 | BD62: 0 | BE62: 0 | BF62: 0 | BG62: No Branch Point motif found in this sequence | BH62: -28 | BI62: -28 | BJ62: 0.7241140604 | BK62: 0.7367548347 | BL62: c.9649-28 | BM62: c.9649-30_c.9649-27 | BN62: No | BO62: 0.01745688275 | BP62: -28 | BQ62: -28 | BR62: 54.96 | BS62: 50.42 | BT62: c.9649-28 | BU62: c.9649-30_c.9649-27 | BV62: No | BW62: -0.0826055313
A63: BRCA2_c.9649-37A>G | B63: chr13 | C63: + | D63: BRCA2 | E63: NM_000059 | F63: intron 26 | G63: c.9649-37 | H63: 32972262 | I63: -37 | J63: substitution | K63: 1 | L63: Paxgene | M63: CFB | N63: No | O63: no effect | P63: 0 | Q63: 8.54 | R63: 8.54 | S63: 0 | T63: 91.4 | U63: 91.4 | V63: 0 | W63: 37 | X63: 1 | Y63: 0 | Z63: 0 | AA63: 0 | AB63: 0.6360849025 | AC63: 0.4366214496 | AD63: 1.1 | AE63: NA | AF63: c.9649-28 | AG63: c.9649-30_c.9649-27 | AH63: No | AI63: -0.31357992 | AJ63: ACATAAT | AK63: ACGTAAT | AL63: 39 | AM63: 39 | AN63: 4.190231651 | AO63: 4.356175434 | AP63: c.9649-34 | AQ63: c.9649-36_c.9649-33 | AR63: No | AS63: 0.03960253195 | AT63: 66 | AU63: 66 | AV63: ctttgattt | AW63: ctttgattt | AX63: 0.44434315 | AY63: 0.44434315 | AZ63: c.9649-59 | BA63: c.9649-61_c.9649-58 | BB63: No | BC63: 0 | BD63: 0 | BE63: 0 | BF63: 0 | BG63: No Branch Point motif found in this sequence | BH63: -28 | BI63: -28 | BJ63: 0.7241140604 | BK63: 0.6103446484 | BL63: c.9649-28 | BM63: c.9649-30_c.9649-27 | BN63: No | BO63: -0.1571153196 | BP63: -28 | BQ63: -28 | BR63: 54.96 | BS63: 51.12 | BT63: c.9649-28 | BU63: c.9649-30_c.9649-27 | BV63: No | BW63: -0.06986899563
A64: C21orf2_c.643-23A>T | B64: chr21 | C64: - | D64: C21orf2 | E64: NM_004928 | F64: intron 6 | G64: c.643-23 | H64: 45750232 | I64: -23 | J64: substitution | K64: 1 | L64: LCLs | M64: Wang Z, Iida A, Miyake N, Nishiguchi KM, Fujita K, Nakazawa T, et al. Axial Spondylometaphyseal Dysplasia Is Caused by C21orf2 Mutations. PLOS ONE [Internet]. 2016 Mar 14;11(3):e0150555. Available from: https://journals.plos.org/plosone/article?id=10.1371/journal.pone.0150555 | N64: Yes | O64: retention intron 6 | P64: 1 | Q64: 9.1 | R64: 9.1 | S64: 0 | T64: 82.68 | U64: 82.68 | V64: =(U64-T64)/T64 -> 0 | W64: 23 | X64: 1 | Y64: 1 | Z64: 1 | AA64: 0 | AB64: 0.9225152627 | AC64: 0.8405327842 | AD64: 0.9 | AE64: 2.2 | AF64: c.643-23 | AG64: c.643-25_c.643-22 | AH64: Yes | AI64: -0.08886842509 | AJ64: GGCTTAG | AK64: CCGTGCC | AL64: 28 | AM64: 40 | AN64: 5.567764363 | AO64: 7.404816984 | AP64: c.643-23 | AQ64: c.643-25_c.643-22 | AR64: Yes | AS64: 0.329944391 | AT64: 30 | AU64: NA | AV64: ggcttagtc | AW64: NA | AX64: 0.26692072 | AY64: 0 | AZ64: c.643-23 | BA64: c.643-25_c.643-22 | BB64: Yes | BC64: -1 | BD64: 79.24 | BE64: 49.61 | BF64: -0.3739273094 | BG64: Site broken | BH64: -23 | BI64: -35 | BJ64: 0.9442570806 | BK64: 0.3397221863 | BL64: c.643-23 | BM64: c.643-25_c.643-22 | BN64: Yes | BO64: -0.6402227811 | BP64: -23 | BQ64: -47 | BR64: 91.14 | BS64: 54.98 | BT64: c.643-23 | BU64: c.643-25_c.643-22 | BV64: Yes | BW64: -0.3967522493
A65: CDH1_c.532-18C>T | B65: chr16 | C65: + | D65: CDH1 | E65: NM_004360 | F65: intron 4 | G65: c.532-18 | H65: 68842578 | I65: -18 | J65: substitution | K65: 1 | L65: minigene | M65: Inserm U1245 | N65: No | O65: no effect | P65: 0 | Q65: 10.59 | R65: 10.98 | S65: 0.03682719547 | T65: 91.62 | U65: 91.62 | V65: =(U65-T65)/T65 -> 0 | W65: 18 | X65: 3 | Y65: 3 | Z65: 2 | AA65: 0 | AB65: 0.9301214813 | AC65: 0.9301214813 | AD65: 4 | AE65: 4 | AF65: c.532-27 | AG65: c.532-29_c.532-26 | AH65: No | AI65: 0 | AJ65: TACTAAT | AK65: TACTAAT | AL65: 32 | AM65: 32 | AN65: 7.606074065 | AO65: 7.607692976 | AP65: c.532-27 | AQ65: c.532-29_c.532-26 | AR65: No | AS65: 0.0002128444908 | AT65: 34 | AU65: 34 | AV65: tactaattc | AW65: tactaattc | AX65: 1.7837941 | AY65: 1.79311 | AZ65: c.532-27 | BA65: c.532-29_c.532-26 | BB65: No | BC65: 0.005222519796 | BD65: 68.9 | BE65: 67.37 | BF65: -0.02220609579 | BH65: -27 | BI65: -27 | BJ65: 0.6622362733 | BK65: 0.6573819518 | BL65: c.532-27 | BM65: c.532-29_c.532-26 | BN65: No | BO65: -0.007330195696 | BP65: -27 | BQ65: -27 | BR65: 88.23 | BS65: 89.2 | BT65: c.532-27 | BU65: c.532-29_c.532-26 | BV65: No | BW65: 0.01099399297
A66: CFTR_c.1117-26_1117-25del | B66: chr7 | C66: + | D66: CFTR | E66: NM_000492 | F66: intron 8 | G66: c.1117-26_1117-25 | H66: 117182044 | I66: -25 | J66: del | K66: 1 | L66: minigene | M66: Inserm U1078 | N66: No | O66: no effect | P66: 0 | Q66: 9.65 | R66: 9.65 | S66: 0 | T66: 83.22 | U66: 83.22 | V66: 0 | W66: 26 | X66: 0 | Y66: 0 | Z66: 0 | AA66: 0 | AB66: NA | AC66: NA | AD66: NA | AE66: NA | AF66: c.1117-29 | AG66: c.1117-31_c.1117-28 | AH66: No | AI66: NA | AJ66: TTCTGAT | AK66: TTCTGAT | AL66: 41 | AM66: 39 | AN66: 7.736412315 | AO66: 7.732837345 | AP66: c.1117-36 | AQ66: c.1117-38_c.1117-35 | AR66: No | AS66: -0.0004620966808 | AT66: 54 | AU66: 52 | AV66: cattaatgc | AW66: cattaatgc | AX66: 1.3030257 | AY66: 1.3048488 | AZ66: c.1117-47 | BA66: c.1117-49_c.1117-46 | BB66: No | BC66: 0.001399128198 | BD66: 0 | BE66: 0 | BF66: 0 | BG66: No difference between mutant and reference sequence was found with this matrice | BH66: -29 | BI66: -27 | BJ66: 0.5660375357 | BK66: 0.5397231579 | BL66: c.1117-29 | BM66: c.1117-31_c.1117-28 | BN66: No | BO66: -0.04648875053 | BP66: -29 | BQ66: -34 | BR66: 57.57 | BS66: 63.23 | BT66: c.1117-29 | BU66: c.1117-31_c.1117-28 | BV66: No | BW66: 0.09831509467
A67: CFTR_c.1393-18G>A | B67: chr7 | C67: + | D67: CFTR | E67: NM_000492 | F67: intron 10 | G67: c.1393-18 | H67: 117199500 | I67: -18 | J67: substitution | K67: 1 | L67: minigene | M67: Inserm U1078 | N67: No | O67: no effect | P67: 0 | Q67: 6.56 | R67: 6.46 | S67: -0.01524390244 | T67: 89.86 | U67: 89.86 | V67: 0 | W67: 18 | X67: 2 | Y67: 2 | Z67: 1 | AA67: 0 | AB67: 0.8176678566 | AC67: 0.8176678566 | AD67: 3.1 | AE67: 3.1 | AF67: c.1393-23 | AG67: c.1393-25_c.1393-22 | AH67: No | AI67: 0 | AJ67: ACCTAAT | AK67: ACCTAAT | AL67: 28 | AM67: 28 | AN67: 4.553913701 | AO67: 4.434732014 | AP67: c.1393-23 | AQ67: c.1393-25_c.1393-22 | AR67: No | AS67: -0.02617126601 | AT67: 24 | AU67: 24 | AV67: taatgatgg | AW67: taataatgg | AX67: 0.7448887 | AY67: 0.8075334 | AZ67: c.1393-17 | BA67: c.1393-19_c.1393-16 | BB67: Yes | BC67: 0.08409940975 | BD67: 0 | BE67: 0 | BF67: 0 | BG67: No difference between mutant and reference sequence was found with this matrice | BH67: -23 | BI67: -23 | BJ67: 0.4841208458 | BK67: 0.478395313 | BL67: c.1393-23 | BM67: c.1393-25_c.1393-22 | BN67: No | BO67: -0.01182666026 | BP67: -23 | BQ67: -23 | BR67: 63.02 | BS67: 58.85 | BT67: c.1393-23 | BU67: c.1393-25_c.1393-22 | BV67: No | BW67: -0.06616947001
A68: CFTR_c.1585-22A>C | B68: chr7 | C68: + | D68: CFTR | E68: NM_000492 | F68: intron 11 | G68: c.1585-22 | H68: 117227771 | I68: -22 | J68: substitution | K68: 1 | L68: minigene | M68: Inserm U1078 | N68: No | O68: no effect | P68: 0 | Q68: 7.86 | R68: 7.86 | S68: 0 | T68: 80.92 | U68: 80.92 | V68: 0 | W68: 22 | X68: 2 | Y68: 2 | Z68: 0 | AA68: 0 | AB68: 0.7479812532 | AC68: 0.7479812532 | AD68: 2 | AE68: 2 | AF68: c.1585-29 | AG68: c.1585-31_c.1585-28 | AH68: No | AI68: 0 | AJ68: AAGTGAC | AK68: AAGTGAC | AL68: 34 | AM68: 34 | AN68: 4.726105978 | AO68: 5.153749136 | AP68: c.1585-29 | AQ68: c.1585-31_c.1585-28 | AR68: No | AS68: 0.09048530859 | AT68: 36 | AU68: 36 | AV68: aagtgactc | AW68: aagtgactc | AX68: 1.4228608 | AY68: 1.4705426 | AZ68: c.1585-29 | BA68: c.1585-31_c.1585-28 | BB68: No | BC68: 0.03351121909 | BD68: 80.91 | BE68: 92.74 | BF68: 0.1462118403 | BH68: -29 | BI68: -29 | BJ68: 0.6672506928 | BK68: 0.758631587 | BL68: c.1585-29 | BM68: c.1585-31_c.1585-28 | BN68: No | BO68: 0.1369513665 | BP68: -29 | BQ68: -29 | BR68: 76.46 | BS68: 72.43 | BT68: c.1585-29 | BU68: c.1585-31_c.1585-28 | BV68: No | BW68: -0.05270729793
A69: CFTR_c.2620-22A>G | B69: chr7 | C69: + | D69: CFTR | E69: NM_000492 | F69: intron 15 | G69: c.2620-22 | H69: 117242858 | I69: -22 | J69: substitution | K69: 1 | L69: minigene | M69: Inserm U1078 | N69: No | O69: no effect | P69: 0 | Q69: 12.6 | R69: 12.6 | S69: =(R69-Q69)/Q69 -> 0 | T69: 95.65 | U69: 95.65 | V69: 0 | W69: 22 | X69: 0 | Y69: 1 | Z69: 0 | AA69: 1 | AB69: 0.4287197207 | AC69: 0.6433484097 | AD69: NA | AE69: 2 | AF69: c.2620-23 | AG69: c.2620-25_c.2620-22 | AH69: Yes | AI69: =IF(AB69="NA","NA",(AC69-AB69)/AB69) -> 0.5006270499 | AJ69: AAATCAA | AK69: AAATCAG | AL69: 28 | AM69: 28 | AN69: 5.989639891 | AO69: 5.567764363 | AP69: c.2620-23 | AQ69: =IF(FIND("-",AP69)=3,"c.-"&MID(AP69,FIND("-",AP69)+1,FIND("-",MID(AP69,FIND("-",AP69)+1,LEN(AP69))))&VALUE(RIGHT(AP69,2))+2&"_"&"c.-"&MID(AP69,FIND("-",AP69)+1,FIND("-",MID(AP69,FIND("-",AP69)+1,LEN(AP69))))&VALUE(RIGHT(AP69,2))-1,MID(AP69,1,FIND("-",AP69))&VALUE(RIGHT(AP69,2))+2&"_"&MID(AP69,1,FIND("-",AP69))&VALUE(RIGHT(AP69,2))-1) -> c.2620-25_c.2620-22 | AR69: =IF(AND(VALUE(RIGHT(G69,2))>=VALUE(RIGHT(AQ69,2)),VALUE(RIGHT(G69,2))<=VALUE(MID(AQ69,FIND("_",AQ69)-2,2))),"Yes",IF(NOT(ISERROR(FIND("_",G69))),IF(OR(AND(VALUE(RIGHT(G69,2))<VALUE(RIGHT(AQ69,2)),VALUE(MID(G69,FIND("_",G69)-2,2))>=VALUE(MID(AQ69,FIND("_",AQ69)-2,2))),AND(VALUE(MID(G69,FIND("_",G69)-2,2))>=VALUE(RIGHT(AQ69,2)),VALUE(MID(G69,FIND("_",G69)-2,2))<=VALUE(MID(AQ69,FIND("_",AQ69)-2,2)))),"Yes","No"),"No")) -> Yes | AS69: =(AO69-AN69)/AN69 -> -0.07043420572 | AT69: 30 | AU69: 30 | AV69: aaatcaact | AW69: aaatcagct | AX69: -0.016530517 | AY69: 0.030216361 | AZ69: c.2620-23 | BA69: =IF(FIND("-",AZ69)=3,"c.-"&MID(AZ69,FIND("-",AZ69)+1,FIND("-",MID(AZ69,FIND("-",AZ69)+1,LEN(AZ69))))&VALUE(RIGHT(AZ69,2))+2&"_"&"c.-"&MID(AZ69,FIND("-",AZ69)+1,FIND("-",MID(AZ69,FIND("-",AZ69)+1,LEN(AZ69))))&VALUE(RIGHT(AZ69,2))-1,MID(AZ69,1,FIND("-",AZ69))&VALUE(RIGHT(AZ69,2))+2&"_"&MID(AZ69,1,FIND("-",AZ69))&VALUE(RIGHT(AZ69,2))-1) -> c.2620-25_c.2620-22 | BB69: =IF(AND(VALUE(RIGHT(G69,2))>=VALUE(RIGHT(BA69,2)),VALUE(RIGHT(G69,2))<=VALUE(MID(BA69,FIND("_",BA69)-2,2))),"Yes",IF(NOT(ISERROR(FIND("_",G69))),IF(OR(AND(VALUE(RIGHT(G69,2))<VALUE(RIGHT(BA69,2)),VALUE(MID(G69,FIND("_",G69)-2,2))>=VALUE(MID(BA69,FIND("_",BA69)-2,2))),AND(VALUE(MID(G69,FIND("_",G69)-2,2))>=VALUE(RIGHT(BA69,2)),VALUE(MID(G69,FIND("_",G69)-2,2))<=VALUE(MID(BA69,FIND("_",BA69)-2,2)))),"Yes","No"),"No")) -> Yes | BC69: =(AY69-AX69)/AX69 -> -2.827913852 | BD69: 0 | BE69: 0 | BF69: 0 | BG69: No Branch Point motif found in this sequence | BH69: -23 | BI69: -23 | BJ69: 0.7209387422 | BK69: 0.9031518698 | BL69: c.2620-23 | BM69: =IF(FIND("-",BL69)=3,"c.-"&MID(BL69,FIND("-",BL69)+1,FIND("-",MID(BL69,FIND("-",BL69)+1,LEN(BL69))))&VALUE(RIGHT(BL69,2))+2&"_"&"c.-"&MID(BL69,FIND("-",BL69)+1,FIND("-",MID(BL69,FIND("-",BL69)+1,LEN(BL69))))&VALUE(RIGHT(BL69,2))-1,MID(BL69,1,FIND("-",BL69))&VALUE(RIGHT(BL69,2))+2&"_"&MID(BL69,1,FIND("-",BL69))&VALUE(RIGHT(BL69,2))-1) -> c.2620-25_c.2620-22 | BN69: =IF(AND(VALUE(RIGHT(G69,2))>=VALUE(RIGHT(BM69,2)),VALUE(RIGHT(G69,2))<=VALUE(MID(BM69,FIND("_",BM69)-2,2))),"Yes",IF(NOT(ISERROR(FIND("_",G69))),IF(OR(AND(VALUE(RIGHT(G69,2))<VALUE(RIGHT(BM69,2)),VALUE(MID(G69,FIND("_",G69)-2,2))>=VALUE(MID(BM69,FIND("_",BM69)-2,2))),AND(VALUE(MID(G69,FIND("_",G69)-2,2))>=VALUE(RIGHT(BM69,2)),VALUE(MID(G69,FIND("_",G69)-2,2))<=VALUE(MID(BM69,FIND("_",BM69)-2,2)))),"Yes","No"),"No")) -> Yes | BO69: =IF(BJ69="","NA",(BK69-BJ69)/BJ69) -> 0.2527442582 | BP69: -23 | BQ69: -23 | BR69: 70.52 | BS69: 77.79 | BT69: c.2620-23 | BU69: =IF(FIND("-",BT69)=3,"c.-"&MID(BT69,FIND("-",BT69)+1,FIND("-",MID(BT69,FIND("-",BT69)+1,LEN(BT69))))&VALUE(RIGHT(BT69,2))+2&"_"&"c.-"&MID(BT69,FIND("-",BT69)+1,FIND("-",MID(BT69,FIND("-",BT69)+1,LEN(BT69))))&VALUE(RIGHT(BT69,2))-1,MID(BT69,1,FIND("-",BT69))&VALUE(RIGHT(BT69,2))+2&"_"&MID(BT69,1,FIND("-",BT69))&VALUE(RIGHT(BT69,2))-1) -> c.2620-25_c.2620-22 | BV69: =IF(AND(VALUE(RIGHT(G69,2))>=VALUE(RIGHT(BU69,2)),VALUE(RIGHT(G69,2))<=VALUE(MID(BU69,FIND("_",BU69)-2,2))),"Yes",IF(NOT(ISERROR(FIND("_",G69))),IF(OR(AND(VALUE(RIGHT(G69,2))<VALUE(RIGHT(BU69,2)),VALUE(MID(G69,FIND("_",G69)-2,2))>=VALUE(MID(BU69,FIND("_",BU69)-2,2))),AND(VALUE(MID(G69,FIND("_",G69)-2,2))>=VALUE(RIGHT(BU69,2)),VALUE(MID(G69,FIND("_",G69)-2,2))<=VALUE(MID(BU69,FIND("_",BU69)-2,2)))),"Yes","No"),"No")) -> Yes | BW69: =IF(BR69="","NA",(BS69-BR69)/BR69) -> 0.1030913216
A70: CFTR_c.2620-26A>G | B70: chr7 | C70: + | D70: CFTR | E70: NM_000492 | F70: intron 15 | G70: c.2620-26 | H70: 117242854 | I70: -26 | J70: substitution | K70: 1 | L70: minigene | M70: Inserm U1078 | N70: No | O70: no effect | P70: 0 | Q70: 12.6 | R70: 12.6 | S70: 0 | T70: 95.65 | U70: 95.65 | V70: 0 | W70: 26 | X70: 0 | Y70: 1 | Z70: 0 | AA70: 1 | AB70: 0.4287197207 | AC70: 0.546215691 | AD70: NA | AE70: 2 | AF70: c.2620-23 | AG70: c.2620-25_c.2620-22 | AH70: No | AI70: 0.2740624344 | AJ70: AAATCAA | AK70: AAGTCAA | AL70: 28 | AM70: 28 | AN70: 5.989639891 | AO70: 5.659494387 | AP70: c.2620-23 | AQ70: c.2620-25_c.2620-22 | AR70: No | AS70: -0.05511942459 | AT70: 30 | AU70: 30 | AV70: aaatcaact | AW70: aagtcaact | AX70: -0.016530517 | AY70: 0.054822773 | AZ70: c.2620-23 | BA70: c.2620-25_c.2620-22 | BB70: No | BC70: -4.316458463 | BD70: 0 | BE70: 0 | BF70: 0 | BG70: No Branch Point motif found in this sequence | BH70: -23 | BI70: -23 | BJ70: 0.7209387422 | BK70: 0.7760910392 | BL70: c.2620-23 | BM70: c.2620-25_c.2620-22 | BN70: No | BO70: 0.0765006703 | BP70: -23 | BQ70: -23 | BR70: 70.52 | BS70: 79.98 | BT70: c.2620-23 | BU70: c.2620-25_c.2620-22 | BV70: No | BW70: 0.1341463415
A71: CFTR_c.3140-33A>G | B71: chr7 | C71: + | D71: CFTR | E71: NM_000492 | F71: intron 19 | G71: c.3140-33 | H71: 117251602 | I71: -33 | J71: substitution | K71: 1 | L71: minigene | M71: Inserm U1078 | N71: No | O71: no effect | P71: 0 | Q71: 4.35 | R71: 4.35 | S71: 0 | T71: 77.84 | U71: 77.84 | V71: 0 | W71: 33 | X71: 1 | Y71: 1 | Z71: 0 | AA71: 1 | AB71: 0.7525507379 | AC71: 0.7844161792 | AD71: 3.8 | AE71: 3.8 | AF71: c.3140-27 | AG71: c.3140-29_c.3140-26 | AH71: No | AI71: 0.04234324645 | AJ71: AAATTAC | AK71: AAATTAC | AL71: 56 | AM71: 56 | AN71: 7.065803041 | AO71: 7.300086234 | AP71: c.3140-51 | AQ71: c.3140-53_c.3140-50 | AR71: No | AS71: 0.03315733428 | AT71: 94 | AU71: 94 | AV71: ttctaattt | AW71: ttctaattt | AX71: 1.1846727 | AY71: 1.1846727 | AZ71: c.3140-87 | BA71: c.3140-89_c.3140-86 | BB71: No | BC71: 0 | BD71: 0 | BE71: 0 | BF71: =IF(BD71=0,0,(BE71-BD71)/BD71) -> 0 | BG71: No Branch Point motif found in this sequence | BH71: -27 | BI71: -38 | BJ71: 0.573443532 | BK71: 0.5294581056 | BL71: c.3140-27 | BM71: c.3140-29_c.3140-26 | BN71: No | BO71: -0.07670402397 | BP71: -38 | BQ71: -38 | BR71: 59.94 | BS71: 53.65 | BT71: c.3140-38 | BU71: c.3140-40_c.3140-37 | BV71: No | BW71: -0.1049382716
A72: CFTR_c.3469-20T>C | B72: chr7 | C72: + | D72: CFTR | E72: NM_000492 | F72: intron 21 | G72: c.3469-20 | H72: 117267556 | I72: -20 | J72: substitution | K72: 1 | L72: minigene | M72: Inserm U1078 | N72: No | O72: no effect | P72: 0 | Q72: 9.83 | R72: 9.64 | S72: -0.01932858596 | T72: 94.94 | U72: 94.94 | V72: 0 | W72: 20 | X72: 1 | Y72: 1 | Z72: 0 | AA72: 0 | AB72: 0.5621877687 | AC72: 0.5621877687 | AD72: 0.5 | AE72: 0.5 | AF72: c.3469-31 | AG72: c.3469-33_c.3469-30 | AH72: No | AI72: 0 | AJ72: TCTTAAA | AK72: TCTTAAA | AL72: 35 | AM72: 35 | AN72: 7.600738492 | AO72: 7.590835613 | AP72: c.3469-30 | AQ72: c.3469-32_c.3469-29 | AR72: No | AS72: -0.001302883787 | AT72: 62 | AU72: 62 | AV72: aactaattg | AW72: aactaattg | AX72: 0.71168009 | AY72: 0.71168009 | AZ72: c.3469-55 | BA72: c.3469-57_c.3469-54 | BB72: No | BC72: 0 | BD72: 0 | BE72: 0 | BF72: 0 | BG72: No difference between mutant and reference sequence was found with this matrice | BH72: -31 | BI72: -31 | BJ72: 0.8038797975 | BK72: 0.7873315215 | BL72: c.3469-31 | BM72: c.3469-33_c.3469-30 | BN72: No | BO72: -0.02058551042 | BP72: -31 | BQ72: -31 | BR72: 72.61 | BS72: 62.2 | BT72: c.3469-31 | BU72: c.3469-33_c.3469-30 | BV72: No | BW72: -0.143368682
A73: CFTR_c.4243-20A>G | B73: chr7 | C73: + | D73: CFTR | E73: NM_000492 | F73: intron 26 | G73: c.4243-20 | H73: 117306942 | I73: -20 | J73: substitution | K73: 1 | L73: minigene | M73: Inserm U1078 | N73: No | O73: no effect | P73: 0 | Q73: 4.63 | R73: 3.47 | S73: -0.2505399568 | T73: 0 | U73: 0 | V73: 0 | W73: 20 | X73: 1 | Y73: 1 | Z73: 0 | AA73: 0 | AB73: 0.8993157553 | AC73: 0.8993157553 | AD73: 0 | AE73: 0 | AF73: c.4243-20 | AG73: c.4243-22_c.4243-19 | AH73: Yes | AI73: 0 | AJ73: CACTAAC | AK73: CGCTAAC | AL73: 21 | AM73: 21 | AN73: 4.669682522 | AO73: 4.690415733 | AP73: c.4243-16 | AQ73: c.4243-18_c.4243-15 | AR73: No | AS73: 0.004439961585 | AT73: 50 | AU73: 50 | AV73: gtctgacct | AW73: gtctgacct | AX73: 2.2220184 | AY73: 2.2220184 | AZ73: c.4243-43 | BA73: c.4243-45_c.4243-42 | BB73: No | BC73: 0 | BD73: 92.38 | BE73: 62.76 | BF73: -0.3206321715 | BG73: Site broken | BH73: -20 | BI73: -16 | BJ73: 0.541965127 | BK73: 0.5837044716 | BL73: c.4243-20 | BM73: c.4243-22_c.4243-19 | BN73: Yes | BO73: 0.07701481612 | BP73: -16 | BQ73: -16 | BR73: 72.66 | BS73: 88.32 | BT73: c.4243-16 | BU73: c.4243-18_c.4243-15 | BV73: No | BW73: 0.21552436
A74: COL4A5_c.2245-40A>G | B74: chrX | C74: + | D74: COL4A5 | E74: NM_000495 | F74: intron 28 | G74: c.2245-40 | H74: 107849932 | I74: -40 | J74: substitution | K74: 1 | L74: minigene | M74: Chiereghin C, Robusto M, Mastrangelo A, Castorina P, Montini G, Giani M, et al. Alport syndrome cold cases: Missing mutations identified by exome sequencing and functional analysis. PLOS ONE [Internet]. 2017 Jun 1;12(6):e0178630. Available from: https://journals.plos.org/plosone/article?id=10.1371/journal.pone.0178630 | N74: Yes | O74: skipping exon 29 | P74: 1 | Q74: 3.87 | R74: 3.87 | S74: 0 | T74: 75.87 | U74: 75.87 | V74: 0 | W74: 40 | X74: 0 | Y74: 0 | Z74: 0 | AA74: 0 | AB74: 0.3175191909 | AC74: 0.06526610021 | AD74: NA | AE74: NA | AF74: c.2245-40 | AG74: c.2245-42_c.2245-39 | AH74: Yes | AI74: -0.7944499039 | AJ74: AAGTCAT | AK74: TTGTCAT | AL74: 45 | AM74: 20 | AN74: 6.557438375 | AO74: 6.557438524 | AP74: c.2245-40 | AQ74: c.2245-42_c.2245-39 | AR74: Yes | AS74: 2.269271353e-08 | AT74: 82 | AU74: 82 | AV74: cattaaatt | AW74: cattaaatt | AX74: 0.4056495 | AY74: 0.4056495 | AZ74: c.2245-75 | BA74: c.2245-77_c.2245-74 | BB74: No | BC74: 0 | BD74: 0 | BE74: 0 | BF74: 0 | BG74: No Branch Point motif found in this sequence | BH74: -40 | BI74: -35 | BJ74: 0.9651837349 | BK74: 0.4023293257 | BL74: c.2245-40 | BM74: c.2245-42_c.2245-39 | BN74: Yes | BO74: -0.5831577853 | BP74: -40 | BQ74: -35 | BR74: 98.35 | BS74: 57.37 | BT74: c.2245-40 | BU74: c.2245-42_c.2245-39 | BV74: Yes | BW74: -0.4166751398
A75: COL5A1_c.2701-25T>G | B75: chr9 | C75: + | D75: COL5A1 | E75: NM_000093 | F75: intron 32 | G75: c.2701-25 | H75: 137686903 | I75: -25 | J75: substitution | K75: 1 | L75: fibroblast | M75: Burrows NP, Nicholls AC, Richards AJ, Luccarini C, Harrison JB, Yates JRW, et al. A Point Mutation in an Intronic Branch Site Results in Aberrant Splicing of COL5A1 and in Ehlers-Danlos Syndrome Type II in Two British Families. The American Journal of Human Genetics [Internet]. 1998 Aug 1;63(2):390–8. Available from: http://www.sciencedirect.com/science/article/pii/S0002929707614827 | N75: Yes | O75: skipping exon 33 | P75: 1 | Q75: 8.04 | R75: 8.04 | S75: 0 | T75: 87.11 | U75: 87.11 | V75: =(U75-T75)/T75 -> 0 | W75: 25 | X75: 2 | Y75: 2 | Z75: 1 | AA75: 0 | AB75: 0.9661609403 | AC75: 0.9582959138 | AD75: 5 | AE75: 5 | AF75: c.2701-23 | AG75: c.2701-25_c.2701-22 | AH75: Yes | AI75: -0.008140493147 | AJ75: GACTGAC | AK75: GAGTGAC | AL75: 28 | AM75: 32 | AN75: 4.995509269 | AO75: 5.291502267 | AP75: c.2701-23 | AQ75: c.2701-25_c.2701-22 | AR75: Yes | AS75: 0.05925181635 | AT75: 30 | AU75: 34 | AV75: gactgacca | AW75: gagtgacgg | AX75: 2.1266558 | AY75: 1.2534861 | AZ75: c.2701-23 | BA75: c.2701-25_c.2701-22 | BB75: Yes | BC75: -0.4105834616 | BD75: 86.57 | BE75: 71.48 | BF75: -0.1743098071 | BH75: -23 | BI75: -27 | BJ75: 0.8963447213 | BK75: 0.6404396296 | BL75: c.2701-23 | BM75: c.2701-25_c.2701-22 | BN75: Yes | BO75: -0.2854985205 | BP75: -23 | BQ75: -27 | BR75: 90.13 | BS75: 63.41 | BT75: c.2701-23 | BU75: c.2701-25_c.2701-22 | BV75: Yes | BW75: -0.2964606679
A76: DYSF_c.3443-33A>G | B76: chr2 | C76: + | D76: DYSF | E76: NM_003494 | F76: intron 31 | G76: c.3443-33 | H76: 71817308 | I76: -33 | J76: substitution | K76: 1 | L76: RTPCR | M76: Sinnreich M, Therrien C, Karpati G. Lariat branch point mutation in the dysferlin gene with mild limb-girdle muscular dystrophy. Neurology [Internet]. 2006 Apr 11;66(7):1114–6. Available from: https://insights.ovid.com/neurology/neur/2006/04/110/lariat-branch-point-mutation-dysferlin-gene-mild/35/00006114 | N76: Yes | O76: retention intron 33 | P76: 1 | Q76: 4.44 | R76: 4.44 | S76: 0 | T76: 75.37 | U76: 75.37 | V76: 0 | W76: 33 | X76: 2 | Y76: 2 | Z76: 1 | AA76: 1 | AB76: 0.9222647903 | AC76: 0.7494508821 | AD76: 2 | AE76: 2 | AF76: c.3443-33 | AG76: c.3443-35_c.3443-32 | AH76: Yes | AI76: -0.1873799261 | AJ76: CACTCAC | AK76: CAGCCAC | AL76: 38 | AM76: 42 | AN76: 6.999796857 | AO76: 6.767601887 | AP76: c.3443-33 | AQ76: c.3443-35_c.3443-32 | AR76: Yes | AS76: -0.03317167253 | AT76: 40 | AU76: 56 | AV76: cactcactc | AW76: tcttaacca | AX76: 1.4955534 | AY76: 0.65309574 | AZ76: c.3443-33 | BA76: c.3443-35_c.3443-32 | BB76: Yes | BC76: -0.5633083112 | BD76: 93.13 | BE76: 63.15 | BF76: -0.3219156018 | BG76: Site broken | BH76: -33 | BI76: -25 | BJ76: 0.9685091376 | BK76: 0.292186141 | BL76: c.3443-33 | BM76: c.3443-35_c.3443-32 | BN76: Yes | BO76: -0.6983134906 | BP76: -33 | BQ76: -25 | BR76: 95.94 | BS76: 53.06 | BT76: c.3443-33 | BU76: c.3443-35_c.3443-32 | BV76: Yes | BW76: -0.4469460079
A77: ENG_c.1742-22T>C | B77: chr9 | C77: - | D77: ENG | E77: NM_001114753 | F77: intron 13 | G77: c.1742-22 | H77: 130578354 | I77: -22 | J77: substitution | K77: 1 | L77: RTPCR | M77: Harrison Rachel E., Berger Rolf, Haworth Sheila G., Tulloh Robert, Mache Christoph J., Morrell Nicholas W., et al. Transforming Growth Factor-β Receptor Mutations and Pulmonary Arterial Hypertension in Childhood. Circulation [Internet]. 2005 Feb 1;111(4):435–41. Available from: https://www.ahajournals.org/doi/full/10.1161/01.CIR.0000153798.78540.87 | N77: Yes | O77: skipping exon 14 | P77: 1 | Q77: 6.82 | R77: 6.82 | S77: 0 | T77: 80.73 | U77: 80.73 | V77: 0 | W77: 22 | X77: 0 | Y77: 0 | Z77: 0 | AA77: 0 | AB77: NA | AC77: NA | AD77: NA | AE77: NA | AF77: c.1742-20 | AG77: c.1742-22_c.1742-19 | AH77: Yes | AI77: NA | AJ77: TGCTGAT | AK77: TGCCGAT | AL77: 25 | AM77: 25 | AN77: 5.916079783 | AO77: 5.916079783 | AP77: c.1742-20 | AQ77: c.1742-22_c.1742-19 | AR77: Yes | AS77: -5.933119977e-13 | AT77: 27 | AU77: NA | AV77: tgctgatgg | AW77: NA | AX77: 1.4356812 | AY77: 0 | AZ77: c.1742-20 | BA77: c.1742-22_c.1742-19 | BB77: Yes | BC77: -1 | BD77: 85.07 | BE77: 76.04 | BF77: -0.1061478782 | BH77: -20 | BI77: -20 | BJ77: 0.8144236207 | BK77: 0.6707705855 | BL77: c.1742-20 | BM77: c.1742-22_c.1742-19 | BN77: Yes | BO77: -0.1763861356 | BP77: -20 | BQ77: -27 | BR77: 87.39 | BS77: 64.71 | BT77: c.1742-20 | BU77: c.1742-22_c.1742-19 | BV77: Yes | BW77: -0.2595262616
A78: FBN2_c.3974-26T>G | B78: chr5 | C78: - | D78: FBN2 | E78: NM_001999 | F78: intron 30 | G78: c.3974-26 | H78: 127670562 | I78: -26 | J78: substitution | K78: 1 | L78: fibroblast | M78: Maslen C, Babcock D, Raghunath M, Steinmann B. A Rare Branch-Point Mutation Is Associated with Missplicing of Fibrillin-2 in a Large Family with Congenital Contractural Arachnodactyly. The American Journal of Human Genetics [Internet]. 1997 Jun 1;60(6):1389–98. Available from: http://www.sciencedirect.com/science/article/pii/S0002929707642311 | N78: Yes | O78: skipping exon 31 | P78: 1 | Q78: 3.29 | R78: 3.29 | S78: 0 | T78: 68.64 | U78: 68.64 | V78: =(U78-T78)/T78 -> 0 | W78: 26 | X78: 2 | Y78: 2 | Z78: 0 | AA78: 0 | AB78: 0.8790947001 | AC78: 0.8790947001 | AD78: 3.9 | AE78: 3.9 | AF78: c.3974-24 | AG78: c.3974-26_c.3974-23 | AH78: Yes | AI78: 0 | AJ78: TACTAAG | AK78: TATTGAA | AL78: 29 | AM78: 21 | AN78: 4.832609905 | AO78: 5.656672431 | AP78: c.3974-24 | AQ78: c.3974-26_c.3974-23 | AR78: Yes | AS78: 0.1705212176 | AT78: 17 | AU78: 17 | AV78: aaataaatt | AW78: aaataaatt | AX78: 0.073969625 | AY78: 0.073969625 | AZ78: c.3974-10 | BA78: c.3974-12_c.3974-9 | BB78: No | BC78: 0 | BD78: 77.06 | BE78: 61.97 | BF78: -0.1958214378 | BG78: Site broken | BH78: -24 | BI78: -25 | BJ78: 0.8265318274 | BK78: 0.4721314609 | BL78: c.3974-24 | BM78: c.3974-26_c.3974-23 | BN78: Yes | BO78: -0.42878006 | BP78: -24 | BQ78: -25 | BR78: 91.23 | BS78: 48.91 | BT78: c.3974-24 | BU78: c.3974-26_c.3974-23 | BV78: Yes | BW78: -0.4638824948
A79: FGD1_c.2016-35del | B79: chrX | C79: - | D79: FGD1 | E79: NM_004463 | F79: intron 12 | G79: c.2016-35 | H79: 54476769 | I79: -35 | J79: del | K79: 1 | L79: LCL | M79: Aten E, Sun Y, Almomani R, Santen GWE, Messemaker T, Maas SM, et al. Exome Sequencing Identifies A Branch Point Variant in Aarskog–Scott Syndrome. Human Mutation [Internet]. 2013;34(3):430–4. Available from: https://onlinelibrary.wiley.com/doi/abs/10.1002/humu.22252 | N79: Yes | O79: skipping exon 13 | P79: 1 | Q79: 6.66 | R79: 6.66 | S79: 0 | T79: 75.79 | U79: 75.79 | V79: =(U79-T79)/T79 -> 0 | W79: 35 | X79: 1 | Y79: 0 | Z79: 0 | AA79: 0 | AB79: 0.7953102452 | AC79: 0.2387315798 | AD79: 3.3 | AE79: NA | AF79: c.2016-35 | AG79: c.2016-37_c.2016-34 | AH79: Yes | AI79: -0.6998258463 | AJ79: ACCTAAC | AK79: TTCTGAC | AL79: 40 | AM79: 90 | AN79: 10.24582326 | AO79: 8.017541841 | AP79: c.2016-35 | AQ79: c.2016-37_c.2016-34 | AR79: Yes | AS79: -0.21748193 | AT79: 93 | AU79: 92 | AV79: ttctgactc | AW79: ttctgactc | AX79: 1.7904728 | AY79: 1.7930461 | AZ79: c.2016-86 | BA79: c.2016-88_c.2016-85 | BB79: No | BC79: 0.001437218147 | BD79: 83.92 | BE79: 54.3 | BF79: -0.3529551954 | BG79: Site broken | BH79: -35 | BI79: -32 | BJ79: 0.863163352 | BK79: 0.36281389 | BL79: c.2016-35 | BM79: c.2016-37_c.2016-34 | BN79: Yes | BO79: -0.5796694923 | BP79: -35 | BQ79: -35 | BR79: 94.73 | BS79: 64.98 | BT79: c.2016-35 | BU79: c.2016-37_c.2016-34 | BV79: Yes | BW79: -0.3140504592
A80: ITGB4_c.1762-25T>A | B80: chr17 | C80: + | D80: ITGB4 | E80: NM_000213 | F80: intron 14 | G80: c.1762-25 | H80: 73732344 | I80: -25 | J80: substitution | K80: 1 | L80: Blood | M80: Masunaga T, Niizeki H, Yasuda F, Yoshida K, Amagai M, Ishiko A. Splicing abnormality of integrin β4 gene (ITGB4) due to nucleotide substitutions far from splice site underlies pyloric atresia-junctional epidermolysis bullosa syndrome. Journal of Dermatological Science [Internet]. 2015 Apr 1;78(1):61–6. Available from: https://www.jdsjournal.com/article/S0923-1811(15)00041-9/abstract | N80: Yes | O80: intron retention | P80: 1 | Q80: 8.2 | R80: 8.2 | S80: 0 | T80: 85.64 | U80: 85.64 | V80: =(U80-T80)/T80 -> 0 | W80: 25 | X80: 1 | Y80: 1 | Z80: 0 | AA80: 0 | AB80: 0.9681911095 | AC80: 0.9681911095 | AD80: 0.9 | AE80: 0.9 | AF80: c.1762-23 | AG80: c.1762-25_c.1762-22 | AH80: Yes | AI80: 0 | AJ80: GGCTCAC | AK80: TGGTGCC | AL80: 28 | AM80: 21 | AN80: 6.32455532 | AO80: 6.311198007 | AP80: c.1762-23 | AQ80: c.1762-25_c.1762-22 | AR80: Yes | AS80: -0.002111976606 | AT80: 30 | AU80: NA | AV80: ggctcactg | AW80: NA | AX80: 1.2909094 | AY80: 0 | AZ80: c.1762-23 | BA80: c.1762-25_c.1762-22 | BB80: Yes | BC80: -1 | BD80: 93.79 | BE80: 78.7 | BF80: -0.160891353 | BH80: -23 | BI80: -25 | BJ80: 0.972097218 | BK80: 0.7751120329 | BL80: c.1762-23 | BM80: c.1762-25_c.1762-22 | BN80: Yes | BO80: -0.2026393878 | BP80: -17 | BQ80: -19 | BR80: 85.4 | BS80: 69.89 | BT80: c.1762-17 | BU80: c.1762-19_c.1762-16 | BV80: No | BW80: -0.1816159251
A81: ITGB4_c.3977-19T>A | B81: chr17 | C81: + | D81: ITGB4 | E81: NM_000213 | F81: intron 31 | G81: c.3977-19 | H81: 73748508 | I81: -19 | J81: substitution | K81: 1 | L81: keratinocytes | M81: Chavanas S, Gache Y, Vailly J, Kanitakis J, Pulkkinen L, Uitto J, et al. Splicing Modulation of Integrin (β4 Pre-mRNA Carrying a Branch Point Mutation Underlies Epidermolysis Bullosa with Pyloric Atresia Undergoing Spontaneous Amelioration With Ageing. Hum Mol Genet [Internet]. 1999 Oct 1;8(11):2097–105. Available from: https://academic.oup.com/hmg/article/8/11/2097/2527136 | N81: Yes | O81: use of 3 ss 38 nt downstream of physiological ss | P81: 1 | Q81: 8.74 | R81: 8.3 | S81: -0.05034324943 | T81: 80.41 | U81: 80.41 | V81: 0 | W81: 19 | X81: 0 | Y81: 1 | Z81: 0 | AA81: 1 | AB81: 0.2415155672 | AC81: 0.6137359417 | AD81: NA | AE81: 0 | AF81: c.3977-30 | AG81: c.3977-32_c.3977-29 | AH81: No | AI81: 1.541185849 | AJ81: GGCTCAC | AK81: CAGCCAG | AL81: 22 | AM81: 35 | AN81: 6.164407288 | AO81: 6.164414003 | AP81: c.3977-17 | AQ81: c.3977-19_c.3977-16 | AR81: Yes | AS81: 1.089346561e-06 | AT81: 24 | AU81: 74 | AV81: ggctcactc | AW81: aggtgaggg | AX81: 1.5608381 | AY81: -3.0679616 | AZ81: c.3977-17 | BA81: c.3977-19_c.3977-16 | BB81: Yes | BC81: -2.965586053 | BD81: 93.79 | BE81: 78.7 | BF81: -0.160891353 | BH81: -17 | BI81: -19 | BJ81: 0.8506858349 | BK81: 0.4833268821 | BL81: c.3977-17 | BM81: c.3977-19_c.3977-16 | BN81: Yes | BO81: -0.431838568 | BP81: -23 | BQ81: -25 | BR81: 94.5 | BS81: 63.8 | BT81: c.3977-23 | BU81: c.3977-25_c.3977-22 | BV81: No | BW81: -0.3248677249
A82: KCNH2_c.2399-28A>G | B82: chr7 | C82: - | D82: KCNH2 | E82: NM_000238 | F82: intron 9 | G82: c.2399-28 | H82: 150646165 | I82: -28 | J82: substitution | K82: 1 | L82: minigene | M82: Crotti L, Lewandowska MA, Schwartz PJ, Insolia R, Pedrazzini M, Bussani E, et al. A KCNH2 branch point mutation causing aberrant splicing contributes to an explanation of genotype-negative long QT syndrome. Heart Rhythm [Internet]. 2009 Feb 1;6(2):212–8. Available from: http://www.sciencedirect.com/science/article/pii/S1547527108010813 | N82: Yes | O82: use of 3 ss 147 upstream of physiological ss | P82: 1 | Q82: 6.64 | R82: 6.64 | S82: 0 | T82: 85.75 | U82: 85.75 | V82: =(U82-T82)/T82 -> 0 | W82: 28 | X82: 1 | Y82: 1 | Z82: 0 | AA82: 0 | AB82: 0.9208258054 | AC82: 0.9208258054 | AD82: 1.9 | AE82: 1.9 | AF82: c.2399-28 | AG82: c.2399-30_c.2399-27 | AH82: Yes | AI82: 0 | AJ82: GGCTGAG | AK82: TCTCCAT | AL82: 33 | AM82: 16 | AN82: 6 | AO82: 8.484967396 | AP82: c.2399-28 | AQ82: c.2399-30_c.2399-27 | AR82: Yes | AS82: 0.4141612327 | AT82: 35 | AU82: NA | AV82: ggctgagct | AW82: NA | AX82: 1.2452021 | AY82: 0 | AZ82: c.2399-28 | BA82: c.2399-30_c.2399-27 | BB82: Yes | BC82: -1 | BD82: 86.13 | BE82: 56.5 | BF82: -0.3440148613 | BG82: Site broken | BH82: -28 | BI82: -23 | BJ82: 0.8061791658 | BK82: 0.637689054 | BL82: c.2399-28 | BM82: c.2399-30_c.2399-27 | BN82: Yes | BO82: -0.2089983455 | BP82: -28 | BQ82: -47 | BR82: 92.96 | BS82: 52.3 | BT82: c.2399-28 | BU82: c.2399-30_c.2399-27 | BV82: Yes | BW82: -0.4373924269
A83: L1CAM_c.2432-19A>C | B83: chrX | C83: - | D83: L1CAM | E83: NM_000425 | F83: intron 18 | G83: c.2432-19 | H83: 153131293 | I83: -19 | J83: substitution | K83: 1 | L83: lymphocytes | M83: Rosenthal A, Jouet M, Kenwrick S. Aberrant splicing of neural cell adhesion molecule L1 mRNA in a family with X–linked hydrocephalus. Nature Genetics [Internet]. 1992 Oct;2(2):107–12. Available from: https://www.nature.com/articles/ng1092-107 | N83: Yes | O83: use of 3 ss 69 nt upstream of physiological ss | P83: 1 | Q83: 3.72 | R83: 6.1 | S83: 0.6397849462 | T83: 80.61 | U83: 80.61 | V83: 0 | W83: 19 | X83: 0 | Y83: 0 | Z83: 0 | AA83: 0 | AB83: NA | AC83: NA | AD83: NA | AE83: NA | AF83: c.2432-24 | AG83: c.2432-26_c.2432-23 | AH83: No | AI83: NA | AJ83: AAGTCAC | AK83: ACGTCAC | AL83: 20 | AM83: 20 | AN83: 5.195839053 | AO83: 5.552623424 | AP83: c.2432-15 | AQ83: c.2432-17_c.2432-14 | AR83: No | AS83: 0.06866732545 | AT83: 22 | AU83: 46 | AV83: aagtcactg | AW83: gggtgagag | AX83: -0.69387728 | AY83: -0.45981615 | AZ83: c.2432-15 | BA83: c.2432-17_c.2432-14 | BB83: No | BC83: -0.337323525 | BD83: 68.8 | BE83: 39.17 | BF83: -0.4306686047 | BG83: Site broken | BH83: -24 | BI83: -24 | BJ83: 0.6788539886 | BK83: 0.611497283 | BL83: c.2432-24 | BM83: c.2432-26_c.2432-23 | BN83: No | BO83: -0.09922119748 | BP83: -24 | BQ83: -24 | BR83: 81.35 | BS83: 77.67 | BT83: c.2432-24 | BU83: c.2432-26_c.2432-23 | BV83: No | BW83: -0.04523663184
A84: LCAT_c.524-19C>A | B84: chr16 | C84: - | D84: LCAT | E84: NM_000229 | F84: intron 4 | G84: c.524-19 | H84: 67976509 | I84: -19 | J84: substitution | K84: 1 | L84: minigene | M84: Li M, Pritchard PH. Characterization of the Effects of Mutations in the Putative Branchpoint Sequence of Intron 4 on the Splicing within the Human Lecithin:cholesterol Acyltransferase Gene. J Biol Chem [Internet]. 2000 Jun 16;275(24):18079–84. Available from: http://www.jbc.org/content/275/24/18079 | N84: Yes | O84: intron 4 retention | P84: 1 | Q84: 8.3 | R84: 6.97 | S84: -0.1602409639 | T84: 86.2 | U84: 86.2 | V84: =(U84-T84)/T84 -> 0 | W84: 19 | X84: 2 | Y84: 2 | Z84: 1 | AA84: 0 | AB84: 0.8947487446 | AC84: 0.8959247948 | AD84: 4.8 | AE84: 6.6 | AF84: c.524-20 | AG84: c.524-22_c.524-19 | AH84: Yes | AI84: 0.001314391544 | AJ84: CCCTGAC | AK84: CCCTGAA | AL84: 25 | AM84: 25 | AN84: 6.164403905 | AO84: 6.164334227 | AP84: c.524-20 | AQ84: c.524-22_c.524-19 | AR84: Yes | AS84: -1.130331009e-05 | AT84: 27 | AU84: 27 | AV84: ccctgaccc | AW84: ccctgaacc | AX84: 2.4620276 | AY84: 1.5163543 | AZ84: c.524-20 | BA84: c.524-22_c.524-19 | BB84: Yes | BC84: -0.384103452 | BD84: 95.07 | BE84: 88.45 | BF84: -0.06963290207 | BH84: -25 | BI84: -25 | BJ84: 0.7522791624 | BK84: 0.8019466996 | BL84: c.524-25 | BM84: c.524-27_c.524-24 | BN84: No | BO84: 0.06602274753 | BP84: -20 | BQ84: -30 | BR84: 62.94 | BS84: 37.16 | BT84: c.524-20 | BU84: c.524-22_c.524-19 | BV84: Yes | BW84: -0.4095964411
A85: LCAT_c.524-20A>C | B85: chr16 | C85: - | D85: LCAT | E85: NM_000229 | F85: intron 4 | G85: c.524-20 | H85: 67976510 | I85: -20 | J85: substitution | K85: 1 | L85: minigene | M85: Li M, Pritchard PH. Characterization of the Effects of Mutations in the Putative Branchpoint Sequence of Intron 4 on the Splicing within the Human Lecithin:cholesterol Acyltransferase Gene. J Biol Chem [Internet]. 2000 Jun 16;275(24):18079–84. Available from: http://www.jbc.org/content/275/24/18079 | N85: Yes | O85: intron 4 retention | P85: 1 | Q85: 8.3 | R85: 8.65 | S85: 0.0421686747 | T85: 86.2 | U85: 86.2 | V85: 0 | W85: 20 | X85: 2 | Y85: 1 | Z85: 0 | AA85: 0 | AB85: 0.8947487446 | AC85: 0.7339383315 | AD85: 4.8 | AE85: 4.8 | AF85: c.524-20 | AG85: c.524-22_c.524-19 | AH85: Yes | AI85: -0.1797268944 | AJ85: CCCTGAC | AK85: ACCCCAG | AL85: 25 | AM85: 35 | AN85: 6.164403905 | AO85: 4.610217388 | AP85: c.524-20 | AQ85: c.524-22_c.524-19 | AR85: Yes | AS85: -0.2521227585 | AT85: 27 | AU85: 87 | AV85: ccctgaccc | AW85: cggtgagtg | AX85: 2.4620276 | AY85: 0.81974053 | AZ85: c.524-20 | BA85: c.524-22_c.524-19 | BB85: Yes | BC85: -0.6670465717 | BD85: 95.07 | BE85: 65.44 | BF85: -0.3116650889 | BG85: Site broken | BH85: -25 | BI85: -25 | BJ85: 0.7522791624 | BK85: 0.8033687472 | BL85: c.524-25 | BM85: c.524-27_c.524-24 | BN85: No | BO85: 0.06791306656 | BP85: -20 | BQ85: -30 | BR85: 62.94 | BS85: 71.88 | BT85: c.524-20 | BU85: c.524-22_c.524-19 | BV85: Yes | BW85: 0.1420400381
A86: LCAT_c.524-21G>C | B86: chr16 | C86: - | D86: LCAT | E86: NM_000229 | F86: intron 4 | G86: c.524-21 | H86: 67976511 | I86: -21 | J86: substitution | K86: 1 | L86: minigene | M86: Li M, Pritchard PH. Characterization of the Effects of Mutations in the Putative Branchpoint Sequence of Intron 4 on the Splicing within the Human Lecithin:cholesterol Acyltransferase Gene. J Biol Chem [Internet]. 2000 Jun 16;275(24):18079–84. Available from: http://www.jbc.org/content/275/24/18079 | N86: Yes | O86: intron 4 retention | P86: 1 | Q86: 8.3 | R86: 8.3 | S86: 0 | T86: 86.2 | U86: 86.2 | V86: 0 | W86: 21 | X86: 2 | Y86: 1 | Z86: 0 | AA86: 1 | AB86: 0.8947487446 | AC86: 0.8947487446 | AD86: 4.8 | AE86: 3.3 | AF86: c.524-20 | AG86: c.524-22_c.524-19 | AH86: Yes | AI86: 0 | AJ86: CCCTGAC | AK86: CCCTCAC | AL86: 25 | AM86: 25 | AN86: 6.164403905 | AO86: 6.164251787 | AP86: c.524-20 | AQ86: c.524-22_c.524-19 | AR86: Yes | AS86: -2.467688788e-05 | AT86: 27 | AU86: 27 | AV86: ccctgaccc | AW86: ccctcaccc | AX86: 2.4620276 | AY86: 2.0069241 | AZ86: c.524-20 | BA86: c.524-22_c.524-19 | BB86: Yes | BC86: -0.1848490651 | BD86: 95.07 | BE86: 100 | BF86: 0.05185652677 | BH86: -25 | BI86: -25 | BJ86: 0.7522791624 | BK86: 0.8155633211 | BL86: c.524-25 | BM86: c.524-27_c.524-24 | BN86: No | BO86: 0.08412323758 | BP86: -20 | BQ86: -20 | BR86: 62.94 | BS86: 68.27 | BT86: c.524-20 | BU86: c.524-22_c.524-19 | BV86: Yes | BW86: 0.08468382587
A87: LCAT_c.524-22T>C | B87: chr16 | C87: - | D87: LCAT | E87: NM_000229 | F87: intron 4 | G87: c.524-22 | H87: 67976512 | I87: -22 | J87: substitution | K87: 1 | L87: minigene | M87: Kuivenhoven JA, Weibusch H, Pritchard PH, Funke H, Benne R, Assmann G, et al. An intronic mutation in a lariat branchpoint sequence is a direct cause of an inherited human disorder (fish-eye disease). J Clin Invest [Internet]. 1996 Jul 15;98(2):358–64. Available from: https://www.ncbi.nlm.nih.gov/pmc/articles/PMC507438/ | N87: Yes | O87: intron 4 retention | P87: 1 | Q87: 8.3 | R87: 8.3 | S87: 0 | T87: 86.2 | U87: 86.2 | V87: 0 | W87: 22 | X87: 2 | Y87: 2 | Z87: 0 | AA87: 0 | AB87: 0.8947487446 | AC87: 0.8947487446 | AD87: 4.8 | AE87: 4.8 | AF87: c.524-20 | AG87: c.524-22_c.524-19 | AH87: Yes | AI87: 0 | AJ87: CCCTGAC | AK87: CCCCGAC | AL87: 25 | AM87: 25 | AN87: 6.164403905 | AO87: 6.145338518 | AP87: c.524-20 | AQ87: c.524-22_c.524-19 | AR87: Yes | AS87: -0.003092819197 | AT87: 27 | AU87: 87 | AV87: ccctgaccc | AW87: cggtgagtg | AX87: 2.4620276 | AY87: 0.81580187 | AZ87: c.524-20 | BA87: c.524-22_c.524-19 | BB87: Yes | BC87: -0.6686463344 | BD87: 95.07 | BE87: 86.03 | BF87: -0.09508783002 | BH87: -25 | BI87: -25 | BJ87: 0.7522791624 | BK87: 0.8380224705 | BL87: c.524-25 | BM87: c.524-27_c.524-24 | BN87: No | BO87: 0.1139780448 | BP87: -20 | BQ87: -30 | BR87: 62.94 | BS87: 63.93 | BT87: c.524-20 | BU87: c.524-22_c.524-19 | BV87: Yes | BW87: 0.01572926597
A88: LCAT_c.524-23C>A | B88: chr16 | C88: - | D88: LCAT | E88: NM_000229 | F88: intron 4 | G88: c.524-23 | H88: 67976513 | I88: -23 | J88: substitution | K88: 1 | L88: minigene | M88: Li M, Pritchard PH. Characterization of the Effects of Mutations in the Putative Branchpoint Sequence of Intron 4 on the Splicing within the Human Lecithin:cholesterol Acyltransferase Gene. J Biol Chem [Internet]. 2000 Jun 16;275(24):18079–84. Available from: http://www.jbc.org/content/275/24/18079 | N88: Yes | O88: intron 4 retention | P88: 1 | Q88: 8.3 | R88: 8.3 | S88: 0 | T88: 86.2 | U88: 86.2 | V88: 0 | W88: 23 | X88: 2 | Y88: 3 | Z88: 0 | AA88: 1 | AB88: 0.8947487446 | AC88: 0.9465241147 | AD88: 4.8 | AE88: 4.8 | AF88: c.524-20 | AG88: c.524-22_c.524-19 | AH88: No | AI88: 0.05786582035 | AJ88: CCCTGAC | AK88: CCATGAC | AL88: 25 | AM88: 25 | AN88: 6.164403905 | AO88: 6.164256586 | AP88: c.524-20 | AQ88: c.524-22_c.524-19 | AR88: No | AS88: -2.389829988e-05 | AT88: 27 | AU88: 27 | AV88: ccctgaccc | AW88: ccatgaccc | AX88: 2.4620276 | AY88: 1.6280772 | AZ88: c.524-20 | BA88: c.524-22_c.524-19 | BB88: No | BC88: -0.3387250411 | BD88: 95.07 | BE88: 69.34 | BF88: -0.2706426843 | BH88: -25 | BI88: -25 | BJ88: 0.7522791624 | BK88: 0.7801362872 | BL88: c.524-25 | BM88: c.524-27_c.524-24 | BN88: No | BO88: 0.03703030231 | BP88: -20 | BQ88: -23 | BR88: 62.94 | BS88: 75.55 | BT88: c.524-20 | BU88: c.524-22_c.524-19 | BV88: No | BW88: 0.2003495392
A89: LCAT_c.524-24C>A | B89: chr16 | C89: - | D89: LCAT | E89: NM_000229 | F89: intron 4 | G89: c.524-24 | H89: 67976514 | I89: -24 | J89: substitution | K89: 1 | L89: minigene | M89: Li M, Pritchard PH. Characterization of the Effects of Mutations in the Putative Branchpoint Sequence of Intron 4 on the Splicing within the Human Lecithin:cholesterol Acyltransferase Gene. J Biol Chem [Internet]. 2000 Jun 16;275(24):18079–84. Available from: http://www.jbc.org/content/275/24/18079 | N89: Yes | O89: no effect | P89: 0 | Q89: 8.3 | R89: 8.3 | S89: 0 | T89: 86.2 | U89: 86.2 | V89: 0 | W89: 24 | X89: 2 | Y89: 2 | Z89: 1 | AA89: 0 | AB89: 0.8947487446 | AC89: 0.8947487446 | AD89: 4.8 | AE89: 4.8 | AF89: c.524-20 | AG89: c.524-22_c.524-19 | AH89: No | AI89: 0 | AJ89: CCCTGAC | AK89: CACTGAC | AL89: 25 | AM89: 25 | AN89: 6.164403905 | AO89: 6.164412294 | AP89: c.524-20 | AQ89: c.524-22_c.524-19 | AR89: No | AS89: 1.360825303e-06 | AT89: 27 | AU89: 27 | AV89: ccctgaccc | AW89: cactgaccc | AX89: 2.4620276 | AY89: 2.4304063 | AZ89: c.524-20 | BA89: c.524-22_c.524-19 | BB89: No | BC89: -0.01284360094 | BD89: 95.07 | BE89: 88.2 | BF89: -0.07226254339 | BH89: -25 | BI89: -24 | BJ89: 0.7522791624 | BK89: 0.7783830166 | BL89: c.524-25 | BM89: c.524-27_c.524-24 | BN89: Yes | BO89: 0.0346996906 | BP89: -20 | BQ89: -24 | BR89: 62.94 | BS89: 76.06 | BT89: c.524-20 | BU89: c.524-22_c.524-19 | BV89: No | BW89: 0.2084524944
A90: LCAT_c.524-25C>A | B90: chr16 | C90: - | D90: LCAT | E90: NM_000229 | F90: intron 4 | G90: c.524-25 | H90: 67976515 | I90: -25 | J90: substitution | K90: 1 | L90: minigene | M90: Li M, Pritchard PH. Characterization of the Effects of Mutations in the Putative Branchpoint Sequence of Intron 4 on the Splicing within the Human Lecithin:cholesterol Acyltransferase Gene. J Biol Chem [Internet]. 2000 Jun 16;275(24):18079–84. Available from: http://www.jbc.org/content/275/24/18079 | N90: Yes | O90: no effect | P90: 0 | Q90: 8.3 | R90: 8.3 | S90: 0 | T90: 86.2 | U90: 86.2 | V90: 0 | W90: 25 | X90: 2 | Y90: 2 | Z90: 1 | AA90: 1 | AB90: 0.8947487446 | AC90: 0.8959247948 | AD90: 4.8 | AE90: 6.6 | AF90: c.524-20 | AG90: c.524-22_c.524-19 | AH90: No | AI90: 0.001314391544 | AJ90: CCCTGAC | AK90: AGCTGAC | AL90: 25 | AM90: 30 | AN90: 6.164403905 | AO90: 5.865187827 | AP90: c.524-20 | AQ90: c.524-22_c.524-19 | AR90: No | AS90: -0.04853933693 | AT90: 27 | AU90: 32 | AV90: ccctgaccc | AW90: agctgacct | AX90: 2.4620276 | AY90: 2.0686032 | AZ90: c.524-20 | BA90: c.524-22_c.524-19 | BB90: No | BC90: -0.1597969089 | BD90: 95.07 | BE90: 90.82 | BF90: -0.04470390239 | BH90: -25 | BI90: -25 | BJ90: 0.7522791624 | BK90: 0.7728512883 | BL90: c.524-25 | BM90: c.524-27_c.524-24 | BN90: Yes | BO90: 0.0273463987 | BP90: -20 | BQ90: -25 | BR90: 62.94 | BS90: 86.15 | BT90: c.524-20 | BU90: c.524-22_c.524-19 | BV90: No | BW90: 0.3687639021
A91: LDLR_c.1359-30C>T | B91: chr19 | C91: + | D91: LDLR | E91: NM_000527 | F91: intron 9 | G91: c.1359-30 | H91: 11224181 | I91: -30 | J91: substitution | K91: 1 | L91: LCL | M91: Webb JC, Patel DD, Shoulders CC, Knight BL, Soutar AK. Genetic Variation at a Splicing Branch Point in Intron 9 of the Low Density Lipoprotein (LDL)-Receptor Gene: A Rare Mutation that Disrupts mRNA Splicing in a Patient with Familial Hypercholesterolaemia and a Common Polymorphism. Hum Mol Genet [Internet]. 1996 Sep 1;5(9):1325–31. Available from: https://academic.oup.com/hmg/article/5/9/1325/606661 | N91: Yes | O91: no effect | P91: 0 | Q91: 6.76 | R91: 6.76 | S91: 0 | T91: 81.72 | U91: 81.72 | V91: 0 | W91: 30 | X91: 1 | Y91: 1 | Z91: 0 | AA91: 0 | AB91: 0.9211338652 | AC91: 0.9211338652 | AD91: 2.5 | AE91: 2.5 | AF91: c.1359-25 | AG91: c.1359-27_c.1359-24 | AH91: No | AI91: 0 | AJ91: CGCTGAT | AK91: TGCTGAT | AL91: 30 | AM91: 30 | AN91: 6.998210449 | AO91: 6.997933313 | AP91: c.1359-25 | AQ91: c.1359-27_c.1359-24 | AR91: No | AS91: -3.960099332e-05 | AT91: 32 | AU91: 32 | AV91: cgctgatgc | AW91: tgctgatgc | AX91: 2.4191642 | AY91: 2.2088309 | AZ91: c.1359-25 | BA91: c.1359-27_c.1359-24 | BB91: No | BC91: -0.086944615 | BD91: 86.59 | BE91: 85.07 | BF91: -0.01755399007 | BH91: -25 | BI91: -25 | BJ91: 0.8472695947 | BK91: 0.7658178806 | BL91: c.1359-25 | BM91: c.1359-27_c.1359-24 | BN91: No | BO91: -0.09613435269 | BP91: -25 | BQ91: -25 | BR91: 93.13 | BS91: 94.77 | BT91: c.1359-25 | BU91: c.1359-27_c.1359-24 | BV91: No | BW91: 0.01760979276
A92: LDLR_c.1359-31_1359-23delinsCGGCT | B92: chr19 | C92: + | D92: LDLR | E92: NM_000527 | F92: intron 9 | G92: c.1359-31_1359-23 | H92: 11224180 | I92: -23 | J92: delins | K92: 1 | L92: LCL | M92: Webb JC, Patel DD, Shoulders CC, Knight BL, Soutar AK. Genetic Variation at a Splicing Branch Point in Intron 9 of the Low Density Lipoprotein (LDL)-Receptor Gene: A Rare Mutation that Disrupts mRNA Splicing in a Patient with Familial Hypercholesterolaemia and a Common Polymorphism. Hum Mol Genet [Internet]. 1996 Sep 1;5(9):1325–31. Available from: https://academic.oup.com/hmg/article/5/9/1325/606661 | N92: Yes | O92: retention intron 9 | P92: 1 | Q92: 6.76 | R92: 6.76 | S92: 0 | T92: 81.72 | U92: 81.72 | V92: 0 | W92: 31 | X92: 0 | Y92: 0 | Z92: 0 | AA92: 0 | AB92: NA | AC92: NA | AD92: NA | AE92: NA | AF92: c.1359-25 | AG92: c.1359-27_c.1359-24 | AH92: Yes | AI92: NA | AJ92: CGCTGAT | AK92: AGATGAG | AL92: 30 | AM92: 42 | AN92: 6.998210449 | AO92: 6.519548111 | AP92: c.1359-25 | AQ92: c.1359-27_c.1359-24 | AR92: Yes | AS92: -0.06839781996 | AT92: 32 | AU92: 85 | AV92: cgctgatgc | AW92: aggtgagcg | AX92: 2.4191642 | AY92: 0.42977161 | AZ92: c.1359-25 | BA92: c.1359-27_c.1359-24 | BB92: Yes | BC92: -0.8223470693 | BD92: 95.64 | BE92: 0 | BF92: -1 | BG92: Site broken | BH92: -25 | BI92: -22 | BJ92: 0.8472695947 | BK92: 0.4244424403 | BL92: c.1359-25 | BM92: c.1359-27_c.1359-24 | BN92: Yes | BO92: -0.4990467698 | BP92: -25 | BQ92: -26 | BR92: 93.13 | BS92: 68.47 | BT92: c.1359-25 | BU92: c.1359-27_c.1359-24 | BV92: Yes | BW92: -0.2647911522
A93: LMX1B_c.140-33_140-29del | B93: chr9 | C93: + | D93: LMX1B | E93: NM_002316 | F93: intron 1 | G93: c.140-33_140-29 | H93: 129377629 | I93: -29 | J93: del | K93: 1 | L93: fibroblasts | M93: Hamlington JD, Clough MV, Dunston JA, McIntosh I. Deletion of a branch-point consensus sequence in the LMX1B gene causes exon skipping in a family with nail patella syndrome. European Journal of Human Genetics [Internet]. 2000 Apr;8(4):311–4. Available from: https://www.nature.com/articles/5200448 | N93: Yes | O93: skipping exon 2 | P93: 1 | Q93: 7.91 | R93: 7.91 | S93: 0 | T93: 86.13 | U93: 86.13 | V93: 0 | W93: 33 | X93: 0 | Y93: 0 | Z93: 0 | AA93: 0 | AB93: NA | AC93: NA | AD93: NA | AE93: NA | AF93: c.140-30 | AG93: =IF(FIND("-",AF93)=3,"c.-"&MID(AF93,FIND("-",AF93)+1,FIND("-",MID(AF93,FIND("-",AF93)+1,LEN(AF93))))&VALUE(RIGHT(AF93,2))+2&"_"&"c.-"&MID(AF93,FIND("-",AF93)+1,FIND("-",MID(AF93,FIND("-",AF93)+1,LEN(AF93))))&VALUE(RIGHT(AF93,2))-1,MID(AF93,1,FIND("-",AF93))&VALUE(RIGHT(AF93,2))+2&"_"&MID(AF93,1,FIND("-",AF93))&VALUE(RIGHT(AF93,2))-1) -> c.140-32_c.140-29 | AH93: =IF(AND(VALUE(RIGHT(G93,2))>=VALUE(RIGHT(AG93,2)),VALUE(RIGHT(G93,2))<=VALUE(MID(AG93,FIND("_",AG93)-2,2))),"Yes",IF(NOT(ISERROR(FIND("_",G93))),IF(OR(AND(VALUE(RIGHT(G93,2))<VALUE(RIGHT(AG93,2)),VALUE(MID(G93,FIND("_",G93)-2,2))>=VALUE(MID(AG93,FIND("_",AG93)-2,2))),AND(VALUE(MID(G93,FIND("_",G93)-2,2))>=VALUE(RIGHT(AG93,2)),VALUE(MID(G93,FIND("_",G93)-2,2))<=VALUE(MID(AG93,FIND("_",AG93)-2,2)))),"Yes","No"),"No")) -> Yes | AI93: NA | AJ93: CGCTGAC | AK93: GTGCGAC | AL93: 35 | AM93: 63 | AN93: 9.539391982 | AO93: 7.633805719 | AP93: c.140-30 | AQ93: c.140-32_c.140-29 | AR93: Yes | AS93: -0.1997597191 | AT93: 37 | AU93: NA | AV93: cgctgacgg | AW93: NA | AX93: 1.8547702 | AY93: 0 | AZ93: c.140-30 | BA93: c.140-32_c.140-29 | BB93: Yes | BC93: -1 | BD93: 90.49 | BE93: 22.26 | BF93: -0.7540059675 | BG93: Site broken | BH93: -30 | BI93: -58 | BJ93: 0.915253222 | BK93: 0.1706356704 | BL93: c.140-30 | BM93: c.140-32_c.140-29 | BN93: Yes | BO93: -0.8135645236 | BP93: -30 | BQ93: -58 | BR93: 85.85 | BS93: 16.61 | BT93: c.140-30 | BU93: c.140-32_c.140-29 | BV93: Yes | BW93: -0.8065230052
A94: MLH1_c.117-44_117-40del | B94: chr3 | C94: + | D94: MLH1 | E94: NM_000249 | F94: intron 1 | G94: c.117-44_117-40 | H94: 37038066 | I94: -40 | J94: del | K94: 1 | L94: minigene | M94: Inserm U1245 | N94: No | O94: no effect | P94: 0 | Q94: 7.22 | R94: 7.22 | S94: 0 | T94: 80.4 | U94: 80.4 | V94: =(U94-T94)/T94 -> 0 | W94: 44 | X94: 0 | Y94: 0 | Z94: 0 | AA94: 0 | AB94: NA | AC94: NA | AD94: NA | AE94: NA | AF94: c.117-28 | AG94: c.117-30_c.117-27 | AH94: No | AI94: NA | AJ94: GACTGAT | AK94: GACTGAT | AL94: 33 | AM94: 33 | AN94: 6.44767992 | AO94: 6.447705898 | AP94: c.117-28 | AQ94: c.117-30_c.117-27 | AR94: No | AS94: 4.029095765e-06 | AT94: 35 | AU94: 35 | AV94: gactgataa | AW94: gactgataa | AX94: 0.89895965 | AY94: 0.89895965 | AZ94: c.117-28 | BA94: c.117-30_c.117-27 | BB94: No | BC94: 0 | BD94: 82.67 | BE94: 6.23 | BF94: -0.9246401355 | BG94: Site broken | BH94: -28 | BI94: -28 | BJ94: 0.6780443192 | BK94: 0.7458522916 | BL94: c.117-28 | BM94: c.117-30_c.117-27 | BN94: No | BO94: 0.1000052217 | BP94: -28 | BQ94: -28 | BR94: 81.12 | BS94: 76.26 | BT94: c.117-28 | BU94: c.117-30_c.117-27 | BV94: No | BW94: -0.0599112426
A95: MLH1_c.1559-36C>T | B95: chr3 | C95: + | D95: MLH1 | E95: NM_000249 | F95: intron 13 | G95: c.1559-36 | H95: 37081641 | I95: -36 | J95: substitution | K95: 1 | L95: minigene | M95: Inserm U1245 | N95: No | O95: no effect | P95: 0 | Q95: 10.44 | R95: 10.44 | S95: 0 | T95: 92.68 | U95: 92.68 | V95: 0 | W95: 36 | X95: 1 | Y95: 1 | Z95: 0 | AA95: 0 | AB95: 0.6620056231 | AC95: 0.6620056231 | AD95: 1.3 | AE95: 1.3 | AF95: c.1559-33 | AG95: c.1559-35_c.1559-32 | AH95: No | AI95: 0 | AJ95: TACTTAC | AK95: TATTTAC | AL95: 38 | AM95: 38 | AN95: 7.456283235 | AO95: 7.39127537 | AP95: c.1559-33 | AQ95: c.1559-35_c.1559-32 | AR95: No | AS95: -0.008718534804 | AT95: 40 | AU95: 40 | AV95: tacttacct | AW95: tatttacct | AX95: 1.5771712 | AY95: 0.82395042 | AZ95: c.1559-33 | BA95: c.1559-35_c.1559-32 | BB95: No | BC95: -0.4775770569 | BD95: 79.78 | BE95: 55.94 | BF95: -0.2988217598 | BG95: Site broken | BH95: -33 | BI95: -33 | BJ95: 0.9499815702 | BK95: 0.955596149 | BL95: c.1559-33 | BM95: c.1559-35_c.1559-32 | BN95: No | BO95: 0.005910197524 | BP95: -33 | BQ95: -33 | BR95: 97.25 | BS95: 96.28 | BT95: c.1559-33 | BU95: c.1559-35_c.1559-32 | BV95: No | BW95: -0.009974293059
A96: MLH1_c.1668-19A>G | B96: chr3 | C96: + | D96: MLH1 | E96: NM_000249 | F96: intron 14 | G96: c.1668-19 | H96: 37083740 | I96: -19 | J96: substitution | K96: 1 | L96: minigene | M96: Inserm U1245 | N96: No | O96: no effect | P96: 0 | Q96: 8.17 | R96: 8.76 | S96: 0.07221542228 | T96: 92.78 | U96: 92.78 | V96: 0 | W96: 19 | X96: 2 | Y96: 2 | Z96: 0 | AA96: 1 | AB96: 0.8902039218 | AC96: 0.8902039218 | AD96: 0.9 | AE96: 0.9 | AF96: c.1668-25 | AG96: c.1668-27_c.1668-24 | AH96: No | AI96: 0 | AJ96: AAGTCAC | AK96: CCTTAAA | AL96: 24 | AM96: 29 | AN96: 4.936414571 | AO96: 4.916354764 | AP96: c.1668-19 | AQ96: c.1668-21_c.1668-18 | AR96: Yes | AS96: -0.004063639064 | AT96: 26 | AU96: 31 | AV96: aagtcactt | AW96: ccttaaagt | AX96: 0.47340942 | AY96: 0.46115534 | AZ96: c.1668-19 | BA96: c.1668-21_c.1668-18 | BB96: Yes | BC96: -0.02588474053 | BD96: 68.02 | BE96: 70.64 | BF96: 0.03851808292 | BH96: -25 | BI96: -25 | BJ96: 0.8835228086 | BK96: 0.9099612832 | BL96: c.1668-25 | BM96: c.1668-27_c.1668-24 | BN96: No | BO96: 0.02992392998 | BP96: -25 | BQ96: -25 | BR96: 90.76 | BS96: 93.94 | BT96: c.1668-25 | BU96: c.1668-27_c.1668-24 | BV96: No | BW96: 0.03503746144
A97: MLH1_c.1732-19T>A | B97: chr3 | C97: + | D97: MLH1 | E97: NM_000249 | F97: intron 15 | G97: c.1732-19 | H97: 37088991 | I97: -19 | J97: substitution | K97: 1 | L97: minigene | M97: Inserm U1245 | N97: No | O97: skipping exon 16 | P97: 1 | Q97: 9.34 | R97: 6.35 | S97: -0.3201284797 | T97: 86.28 | U97: 86.28 | V97: 0 | W97: 19 | X97: 0 | Y97: 0 | Z97: 0 | AA97: 0 | AB97: 0.425313646 | AC97: 0.425313646 | AD97: NA | AE97: NA | AF97: c.1732-20 | AG97: c.1732-22_c.1732-19 | AH97: Yes | AI97: 0 | AJ97: CGTTAAA | AK97: CCTTCAA | AL97: 39 | AM97: 25 | AN97: 4.682435463 | AO97: 5.193113248 | AP97: c.1732-34 | AQ97: c.1732-36_c.1732-33 | AR97: No | AS97: 0.1090624288 | AT97: 41 | AU97: 41 | AV97: cgttaaagc | AW97: cgttaaagc | AX97: 1.1069924 | AY97: 0.78128226 | AZ97: c.1732-34 | BA97: c.1732-36_c.1732-33 | BB97: No | BC97: -0.2942297888 | BD97: 72.27 | BE97: 69.54 | BF97: -0.03777501038 | BH97: -20 | BI97: -20 | BJ97: 0.7035936713 | BK97: 0.7389819622 | BL97: c.1732-20 | BM97: c.1732-22_c.1732-19 | BN97: Yes | BO97: 0.05029648833 | BP97: -34 | BQ97: -20 | BR97: 45.8 | BS97: 85.79 | BT97: c.1732-34 | BU97: c.1732-36_c.1732-33 | BV97: No | BW97: 0.8731441048
A98: MLH1_c.1732-19T>C | B98: chr3 | C98: + | D98: MLH1 | E98: NM_000249 | F98: intron 15 | G98: c.1732-19 | H98: 37088991 | I98: -19 | J98: substitution | K98: 1 | L98: minigene | M98: Inserm U1245 | N98: No | O98: no effect | P98: 0 | Q98: 9.34 | R98: 9.15 | S98: -0.02034261242 | T98: 86.28 | U98: 86.28 | V98: 0 | W98: 19 | X98: 0 | Y98: 0 | Z98: 0 | AA98: 0 | AB98: 0.425313646 | AC98: 0.425313646 | AD98: NA | AE98: NA | AF98: c.1732-20 | AG98: c.1732-22_c.1732-19 | AH98: Yes | AI98: 0 | AJ98: CGTTAAA | AK98: CCTTCAC | AL98: 39 | AM98: 25 | AN98: 4.682435463 | AO98: 5.788354475 | AP98: c.1732-34 | AQ98: c.1732-36_c.1732-33 | AR98: No | AS98: 0.2361845712 | AT98: 41 | AU98: 27 | AV98: cgttaaagc | AW98: ccttcacgt | AX98: 1.1069924 | AY98: 1.2507871 | AZ98: c.1732-34 | BA98: c.1732-36_c.1732-33 | BB98: No | BC98: 0.1298967364 | BD98: 72.27 | BE98: 76.16 | BF98: 0.05382593054 | BH98: -20 | BI98: -20 | BJ98: 0.7035936713 | BK98: 0.7728705406 | BL98: c.1732-20 | BM98: c.1732-22_c.1732-19 | BN98: Yes | BO98: 0.09846147304 | BP98: -34 | BQ98: -20 | BR98: 45.8 | BS98: 56.35 | BT98: c.1732-34 | BU98: c.1732-36_c.1732-33 | BV98: No | BW98: 0.230349345
A99: MLH1_c.1732-22T>C | B99: chr3 | C99: + | D99: MLH1 | E99: NM_000249 | F99: intron 15 | G99: c.1732-22 | H99: 37088988 | I99: -22 | J99: substitution | K99: 1 | L99: minigene | M99: Inserm U1245 | N99: No | O99: no effect | P99: 0 | Q99: 9.34 | R99: 9.34 | S99: 0 | T99: 86.28 | U99: 86.28 | V99: 0 | W99: 22 | X99: 0 | Y99: 1 | Z99: 0 | AA99: 0 | AB99: 0.425313646 | AC99: 0.6635106496 | AD99: NA | AE99: 0.9 | AF99: c.1732-20 | AG99: c.1732-22_c.1732-19 | AH99: Yes | AI99: 0.560050226 | AJ99: CGTTAAA | AK99: CGTTAAA | AL99: 39 | AM99: 39 | AN99: 4.682435463 | AO99: 6.389791827 | AP99: c.1732-34 | AQ99: c.1732-36_c.1732-33 | AR99: No | AS99: 0.3646299831 | AT99: 41 | AU99: 41 | AV99: cgttaaagc | AW99: cgttaaagc | AX99: 1.1069924 | AY99: 1.0976765 | AZ99: c.1732-34 | BA99: c.1732-36_c.1732-33 | BB99: No | BC99: -0.00841550493 | BD99: 72.27 | BE99: 63.23 | BF99: -0.1250864813 | BG99: Site broken | BH99: -20 | BI99: -25 | BJ99: 0.7035936713 | BK99: 0.3668192625 | BL99: c.1732-20 | BM99: c.1732-22_c.1732-19 | BN99: Yes | BO99: -0.4786490023 | BP99: -34 | BQ99: -34 | BR99: 45.8 | BS99: 56.86 | BT99: c.1732-34 | BU99: c.1732-36_c.1732-33 | BV99: No | BW99: 0.2414847162
A100: MLH1_c.1732-38G>A | B100: chr3 | C100: + | D100: MLH1 | E100: NM_000249 | F100: intron 15 | G100: c.1732-38 | H100: 37088972 | I100: -38 | J100: substitution | K100: 1 | L100: minigene | M100: Inserm U1245 | N100: No | O100: no effect | P100: 0 | Q100: 9.34 | R100: 9.34 | S100: 0 | T100: 86.28 | U100: 86.28 | V100: 0 | W100: 38 | X100: 0 | Y100: 1 | Z100: 0 | AA100: 1 | AB100: 0.425313646 | AC100: 0.5302180647 | AD100: NA | AE100: 4.5 | AF100: c.1732-20 | AG100: c.1732-22_c.1732-19 | AH100: No | AI100: 0.2466518996 | AJ100: CGTTAAA | AK100: CATTAAA | AL100: 39 | AM100: 39 | AN100: 4.682435463 | AO100: 5.305299342 | AP100: c.1732-34 | AQ100: c.1732-36_c.1732-33 | AR100: No | AS100: 0.1330213484 | AT100: 41 | AU100: 41 | AV100: cgttaaagc | AW100: cattaaagc | AX100: 1.1069924 | AY100: 0.95105659 | AZ100: c.1732-34 | BA100: c.1732-36_c.1732-33 | BB100: No | BC100: -0.1408643908 | BD100: 0 | BE100: 0 | BF100: 0 | BG100: No difference between mutant and reference sequence was found with this matrice | BH100: -20 | BI100: -20 | BJ100: 0.7035936713 | BK100: 0.6004194021 | BL100: c.1732-20 | BM100: c.1732-22_c.1732-19 | BN100: No | BO100: -0.1466389955 | BP100: -34 | BQ100: -34 | BR100: 45.8 | BS100: 51.94 | BT100: c.1732-34 | BU100: c.1732-36_c.1732-33 | BV100: No | BW100: 0.1340611354
A101: MLH1_c.1897-34T>C | B101: chr3 | C101: + | D101: MLH1 | E101: NM_000249 | F101: intron 16 | G101: c.1897-34 | H101: 37089974 | I101: -34 | J101: substitution | K101: 1 | L101: minigene | M101: Inserm U1245 | N101: No | O101: no effect | P101: 0 | Q101: 6.53 | R101: 6.53 | S101: =(R101-Q101)/Q101 -> 0 | T101: 86.55 | U101: 86.55 | V101: 0 | W101: 34 | X101: 0 | Y101: 0 | Z101: 0 | AA101: 0 | AB101: 0.5056847667 | AC101: 0.5056847667 | AD101: NA | AE101: NA | AF101: c.1897-35 | AG101: c.1897-37_c.1897-34 | AH101: Yes | AI101: =IF(AB101="NA","NA",(AC101-AB101)/AB101) -> 0 | AJ101: CTATGAC | AK101: CTATGAC | AL101: 48 | AM101: 48 | AN101: 6.85815362 | AO101: 6.129139616 | AP101: c.1897-43 | AQ101: =IF(FIND("-",AP101)=3,"c.-"&MID(AP101,FIND("-",AP101)+1,FIND("-",MID(AP101,FIND("-",AP101)+1,LEN(AP101))))&VALUE(RIGHT(AP101,2))+2&"_"&"c.-"&MID(AP101,FIND("-",AP101)+1,FIND("-",MID(AP101,FIND("-",AP101)+1,LEN(AP101))))&VALUE(RIGHT(AP101,2))-1,MID(AP101,1,FIND("-",AP101))&VALUE(RIGHT(AP101,2))+2&"_"&MID(AP101,1,FIND("-",AP101))&VALUE(RIGHT(AP101,2))-1) -> c.1897-45_c.1897-42 | AR101: =IF(AND(VALUE(RIGHT(G101,2))>=VALUE(RIGHT(AQ101,2)),VALUE(RIGHT(G101,2))<=VALUE(MID(AQ101,FIND("_",AQ101)-2,2))),"Yes",IF(NOT(ISERROR(FIND("_",G101))),IF(OR(AND(VALUE(RIGHT(G101,2))<VALUE(RIGHT(AQ101,2)),VALUE(MID(G101,FIND("_",G101)-2,2))>=VALUE(MID(AQ101,FIND("_",AQ101)-2,2))),AND(VALUE(MID(G101,FIND("_",G101)-2,2))>=VALUE(RIGHT(AQ101,2)),VALUE(MID(G101,FIND("_",G101)-2,2))<=VALUE(MID(AQ101,FIND("_",AQ101)-2,2)))),"Yes","No"),"No")) -> No | AS101: =(AO101-AN101)/AN101 -> -0.1062988736 | AT101: 50 | AU101: 50 | AV101: ctatgacag | AW101: ctatgacag | AX101: 1.0101493 | AY101: 1.0008335 | AZ101: c.1897-43 | BA101: =IF(FIND("-",AZ101)=3,"c.-"&MID(AZ101,FIND("-",AZ101)+1,FIND("-",MID(AZ101,FIND("-",AZ101)+1,LEN(AZ101))))&VALUE(RIGHT(AZ101,2))+2&"_"&"c.-"&MID(AZ101,FIND("-",AZ101)+1,FIND("-",MID(AZ101,FIND("-",AZ101)+1,LEN(AZ101))))&VALUE(RIGHT(AZ101,2))-1,MID(AZ101,1,FIND("-",AZ101))&VALUE(RIGHT(AZ101,2))+2&"_"&MID(AZ101,1,FIND("-",AZ101))&VALUE(RIGHT(AZ101,2))-1) -> c.1897-45_c.1897-42 | BB101: =IF(AND(VALUE(RIGHT(G101,2))>=VALUE(RIGHT(BA101,2)),VALUE(RIGHT(G101,2))<=VALUE(MID(BA101,FIND("_",BA101)-2,2))),"Yes",IF(NOT(ISERROR(FIND("_",G101))),IF(OR(AND(VALUE(RIGHT(G101,2))<VALUE(RIGHT(BA101,2)),VALUE(MID(G101,FIND("_",G101)-2,2))>=VALUE(MID(BA101,FIND("_",BA101)-2,2))),AND(VALUE(MID(G101,FIND("_",G101)-2,2))>=VALUE(RIGHT(BA101,2)),VALUE(MID(G101,FIND("_",G101)-2,2))<=VALUE(MID(BA101,FIND("_",BA101)-2,2)))),"Yes","No"),"No")) -> No | BC101: =(AY101-AX101)/AX101 -> -0.009222201114 | BD101: 0 | BE101: 0 | BF101: 0 | BG101: No Branch Point motif found in this sequence | BH101: -38 | BI101: -31 | BJ101: 0.6597443223 | BK101: 0.5646443367 | BL101: c.1897-38 | BM101: =IF(FIND("-",BL101)=3,"c.-"&MID(BL101,FIND("-",BL101)+1,FIND("-",MID(BL101,FIND("-",BL101)+1,LEN(BL101))))&VALUE(RIGHT(BL101,2))+2&"_"&"c.-"&MID(BL101,FIND("-",BL101)+1,FIND("-",MID(BL101,FIND("-",BL101)+1,LEN(BL101))))&VALUE(RIGHT(BL101,2))-1,MID(BL101,1,FIND("-",BL101))&VALUE(RIGHT(BL101,2))+2&"_"&MID(BL101,1,FIND("-",BL101))&VALUE(RIGHT(BL101,2))-1) -> c.1897-40_c.1897-37 | BN101: =IF(AND(VALUE(RIGHT(G101,2))>=VALUE(RIGHT(BM101,2)),VALUE(RIGHT(G101,2))<=VALUE(MID(BM101,FIND("_",BM101)-2,2))),"Yes",IF(NOT(ISERROR(FIND("_",G101))),IF(OR(AND(VALUE(RIGHT(G101,2))<VALUE(RIGHT(BM101,2)),VALUE(MID(G101,FIND("_",G101)-2,2))>=VALUE(MID(BM101,FIND("_",BM101)-2,2))),AND(VALUE(MID(G101,FIND("_",G101)-2,2))>=VALUE(RIGHT(BM101,2)),VALUE(MID(G101,FIND("_",G101)-2,2))<=VALUE(MID(BM101,FIND("_",BM101)-2,2)))),"Yes","No"),"No")) -> No | BO101: =IF(BJ101="","NA",(BK101-BJ101)/BJ101) -> -0.1441467283 | BP101: -38 | BQ101: -38 | BR101: 78.66 | BS101: 70.92 | BT101: c.1897-38 | BU101: =IF(FIND("-",BT101)=3,"c.-"&MID(BT101,FIND("-",BT101)+1,FIND("-",MID(BT101,FIND("-",BT101)+1,LEN(BT101))))&VALUE(RIGHT(BT101,2))+2&"_"&"c.-"&MID(BT101,FIND("-",BT101)+1,FIND("-",MID(BT101,FIND("-",BT101)+1,LEN(BT101))))&VALUE(RIGHT(BT101,2))-1,MID(BT101,1,FIND("-",BT101))&VALUE(RIGHT(BT101,2))+2&"_"&MID(BT101,1,FIND("-",BT101))&VALUE(RIGHT(BT101,2))-1) -> c.1897-40_c.1897-37 | BV101: =IF(AND(VALUE(RIGHT(G101,2))>=VALUE(RIGHT(BU101,2)),VALUE(RIGHT(G101,2))<=VALUE(MID(BU101,FIND("_",BU101)-2,2))),"Yes",IF(NOT(ISERROR(FIND("_",G101))),IF(OR(AND(VALUE(RIGHT(G101,2))<VALUE(RIGHT(BU101,2)),VALUE(MID(G101,FIND("_",G101)-2,2))>=VALUE(MID(BU101,FIND("_",BU101)-2,2))),AND(VALUE(MID(G101,FIND("_",G101)-2,2))>=VALUE(RIGHT(BU101,2)),VALUE(MID(G101,FIND("_",G101)-2,2))<=VALUE(MID(BU101,FIND("_",BU101)-2,2)))),"Yes","No"),"No")) -> No | BW101: =IF(BR101="","NA",(BS101-BR101)/BR101) -> -0.09839816934
A102: MLH1_c.307-19A>G | B102: chr3 | C102: + | D102: MLH1 | E102: NM_000249 | F102: intron 3 | G102: c.307-19 | H102: 37045873 | I102: -19 | J102: substitution | K102: 1 | L102: minigene | M102: Inserm U1245 | N102: No | O102: no effect | P102: 0 | Q102: 10.9 | R102: 11.67 | S102: 0.07064220183 | T102: 87.72 | U102: 87.72 | V102: 0 | W102: 19 | X102: 1 | Y102: 1 | Z102: 0 | AA102: 1 | AB102: 0.7166843309 | AC102: 0.7166843309 | AD102: 0.5 | AE102: 0.5 | AF102: c.307-24 | AG102: c.307-26_c.307-23 | AH102: No | AI102: 0 | AJ102: CTTTCAG | AK102: CTTTCAG | AL102: 29 | AM102: 29 | AN102: 5.640448201 | AO102: 5.656854249 | AP102: c.307-24 | AQ102: c.307-26_c.307-23 | AR102: No | AS102: 0.002908642715 | AT102: 54 | AU102: 54 | AV102: gggtgaccc | AW102: gggtgaccc | AX102: 1.3882753 | AY102: 1.3882753 | AZ102: c.307-47 | BA102: c.307-49_c.307-46 | BB102: No | BC102: 0 | BD102: 0 | BE102: 0 | BF102: 0 | BG102: No difference between mutant and reference sequence was found with this matrice | BH102: -24 | BI102: -24 | BJ102: 0.7270557284 | BK102: 0.7738515735 | BL102: c.307-24 | BM102: c.307-26_c.307-23 | BN102: No | BO102: 0.06436349127 | BP102: -24 | BQ102: -24 | BR102: 86.19 | BS102: 89.77 | BT102: c.307-24 | BU102: c.307-26_c.307-23 | BV102: No | BW102: 0.04153614108
A103: MLH1_c.307-29C>A | B103: chr3 | C103: + | D103: MLH1 | E103: NM_000249 | F103: intron 3 | G103: c.307-29 | H103: 37045863 | I103: -29 | J103: substitution | K103: 1 | L103: minigene | M103: Inserm U1245 | N103: No | O103: no effect | P103: 0 | Q103: 10.9 | R103: 10.9 | S103: 0 | T103: 87.72 | U103: 87.72 | V103: 0 | W103: 29 | X103: 1 | Y103: 1 | Z103: 0 | AA103: 0 | AB103: 0.7166843309 | AC103: 0.7166843309 | AD103: 0.5 | AE103: 0.5 | AF103: c.307-24 | AG103: c.307-26_c.307-23 | AH103: No | AI103: 0 | AJ103: CTTTCAG | AK103: TTTTTAT | AL103: 29 | AM103: 34 | AN103: 5.640448201 | AO103: 5.320947086 | AP103: c.307-24 | AQ103: c.307-26_c.307-23 | AR103: No | AS103: -0.05664463238 | AT103: 54 | AU103: 85 | AV103: gggtgaccc | AW103: agataacct | AX103: 1.3882753 | AY103: 1.1667507 | AZ103: c.307-47 | BA103: c.307-49_c.307-46 | BB103: No | BC103: -0.1595682067 | BD103: 70.07 | BE103: 65.82 | BF103: =IF(BD103=0,0,(BE103-BD103)/BD103) -> -0.06065363208 | BG103: Site broken | BH103: -24 | BI103: -29 | BJ103: 0.7270557284 | BK103: 0.7684113979 | BL103: c.307-24 | BM103: c.307-26_c.307-23 | BN103: No | BO103: 0.05688101734 | BP103: -24 | BQ103: -24 | BR103: 86.19 | BS103: 84.78 | BT103: c.307-24 | BU103: c.307-26_c.307-23 | BV103: No | BW103: -0.0163592064
A104: MLH1_c.381-43C>G | B104: chr3 | C104: + | D104: MLH1 | E104: NM_000249 | F104: intron 4 | G104: c.381-43 | H104: 37048439 | I104: -43 | J104: substitution | K104: 1 | L104: minigene | M104: Inserm U1245 | N104: No | O104: no effect | P104: 0 | Q104: 7.22 | R104: 7.22 | S104: 0 | T104: 84.08 | U104: 84.08 | V104: 0 | W104: 43 | X104: 1 | Y104: 2 | Z104: 0 | AA104: 1 | AB104: 0.7685234387 | AC104: 0.7509249538 | AD104: 1.5 | AE104: 0.5 | AF104: c.381-22 | AG104: c.381-24_c.381-21 | AH104: No | AI104: -0.02289908673 | AJ104: TATTAAT | AK104: TATTAAT | AL104: 27 | AM104: 27 | AN104: 7.480004934 | AO104: 7.480002997 | AP104: c.381-22 | AQ104: c.381-24_c.381-21 | AR104: No | AS104: -2.590319855e-07 | AT104: 84 | AU104: 84 | AV104: tgttgatat | AW104: tgttgatat | AX104: 0.76498603 | AY104: 0.76089779 | AZ104: c.381-77 | BA104: c.381-79_c.381-76 | BB104: No | BC104: -0.005344202168 | BD104: 0 | BE104: 0 | BF104: 0 | BG104: No Branch Point motif found in this sequence | BH104: -22 | BI104: -22 | BJ104: 0.8354420662 | BK104: 0.8303493857 | BL104: c.381-22 | BM104: c.381-24_c.381-21 | BN104: No | BO104: -0.006095791272 | BP104: -22 | BQ104: -22 | BR104: 89.24 | BS104: 89.42 | BT104: c.381-22 | BU104: c.381-24_c.381-21 | BV104: No | BW104: 0.002017032721
A105: MLH1_c.589-25G>A | B105: chr3 | C105: + | D105: MLH1 | E105: NM_000249 | F105: intron 7 | G105: c.589-25 | H105: 37053477 | I105: -25 | J105: substitution | K105: 1 | L105: minigene | M105: Inserm U1245 | N105: No | O105: no effect | P105: 0 | Q105: 7.35 | R105: 7.35 | S105: 0 | T105: 86.51 | U105: 86.51 | V105: 0 | W105: 25 | X105: 0 | Y105: 1 | Z105: 0 | AA105: 1 | AB105: 0.311019041 | AC105: 0.730899971 | AD105: NA | AE105: 0.1 | AF105: c.589-32 | AG105: c.589-34_c.589-31 | AH105: No | AI105: 1.350016799 | AJ105: CAATAAA | AK105: CAATAAA | AL105: 37 | AM105: 37 | AN105: 6.895369403 | AO105: 6.492197308 | AP105: c.589-32 | AQ105: c.589-34_c.589-31 | AR105: No | AS105: -0.0584699776 | AT105: 39 | AU105: 39 | AV105: caataaatc | AW105: caataaatc | AX105: 0.94450049 | AY105: 0.94450049 | AZ105: c.589-32 | BA105: c.589-34_c.589-31 | BB105: No | BC105: 0 | BD105: 0 | BE105: 0 | BF105: 0 | BG105: No Branch Point motif found in this sequence | BH105: -33 | BI105: -25 | BJ105: 0.4102713764 | BK105: 0.9024969339 | BL105: c.589-33 | BM105: c.589-35_c.589-32 | BN105: No | BO105: 1.19975603 | BP105: -33 | BQ105: -25 | BR105: 57.43 | BS105: 91.28 | BT105: c.589-33 | BU105: c.589-35_c.589-32 | BV105: No | BW105: 0.5894131987
A106: MLH1_c.885-24T>A | B106: chr3 | C106: + | D106: MLH1 | E106: NM_000249 | F106: intron 10 | G106: c.885-24 | H106: 37061777 | I106: -24 | J106: substitution | K106: 1 | L106: minigene | M106: Inserm U1245 | N106: No | O106: no effect | P106: 0 | Q106: 10.46 | R106: 10.46 | S106: 0 | T106: 89.4 | U106: 89.4 | V106: 0 | W106: 24 | X106: 2 | Y106: 2 | Z106: 0 | AA106: 0 | AB106: 0.8250573496 | AC106: 0.8250573496 | AD106: 1.5 | AE106: 1.5 | AF106: c.885-26 | AG106: c.885-28_c.885-25 | AH106: No | AI106: 0 | AJ106: AGGTAAT | AK106: AGGTAAT | AL106: 31 | AM106: 31 | AN106: 5.993833509 | AO106: 5.442328181 | AP106: c.885-26 | AQ106: c.885-28_c.885-25 | AR106: No | AS106: -0.09201212007 | AT106: 33 | AU106: 33 | AV106: aggtaattg | AW106: aggtaatag | AX106: 1.0217749 | AY106: 0.74464868 | AZ106: c.885-26 | BA106: c.885-28_c.885-25 | BB106: No | BC106: -0.2712204224 | BD106: 0 | BE106: 0 | BF106: 0 | BG106: No difference between mutant and reference sequence was found with this matrice | BH106: -26 | BI106: -24 | BJ106: 0.6163420081 | BK106: 0.5490098 | BL106: c.885-26 | BM106: c.885-28_c.885-25 | BN106: No | BO106: -0.1092448791 | BP106: -26 | BQ106: -26 | BR106: 73.07 | BS106: 74.26 | BT106: c.885-26 | BU106: c.885-28_c.885-25 | BV106: No | BW106: 0.01628575339
A107: MSH2_c.1662-43C>T | B107: chr2 | C107: + | D107: MSH2 | E107: NM_000251 | F107: intron 10 | G107: c.1662-43 | H107: 47698061 | I107: -43 | J107: substitution | K107: 1 | L107: minigene | M107: Inserm U1245 | N107: No | O107: no effect | P107: 0 | Q107: 8.01 | R107: 8.01 | S107: 0 | T107: 85.46 | U107: 85.46 | V107: 0 | W107: 43 | X107: 1 | Y107: 1 | Z107: 0 | AA107: 0 | AB107: 0.6876242441 | AC107: 0.6876242441 | AD107: 0.8 | AE107: 0.8 | AF107: c.1662-25 | AG107: c.1662-27_c.1662-24 | AH107: No | AI107: 0 | AJ107: TTTTAAT | AK107: TTTTAAT | AL107: 39 | AM107: 39 | AN107: 6.537695239 | AO107: 6.537696231 | AP107: c.1662-34 | AQ107: c.1662-36_c.1662-33 | AR107: No | AS107: 1.517070363e-07 | AT107: 41 | AU107: 41 | AV107: ttttaatat | AW107: ttttaatat | AX107: 0.41767524 | AY107: 0.41767524 | AZ107: c.1662-34 | BA107: c.1662-36_c.1662-33 | BB107: No | BC107: 0 | BD107: 72.63 | BE107: 48.78 | BF107: -0.3283767038 | BG107: Site broken | BH107: -25 | BI107: -25 | BJ107: 0.5070436597 | BK107: 0.5638605952 | BL107: c.1662-25 | BM107: c.1662-27_c.1662-24 | BN107: No | BO107: 0.1120553121 | BP107: -25 | BQ107: -25 | BR107: 56.71 | BS107: 61.33 | BT107: c.1662-25 | BU107: c.1662-27_c.1662-24 | BV107: No | BW107: 0.08146711338
A108: MSH6_c.3173-18T>A | B108: chr2 | C108: + | D108: MSH6 | E108: NM_000179 | F108: intron 4 | G108: c.3173-18 | H108: 48030541 | I108: -18 | J108: substitution | K108: 1 | L108: minigene | M108: Inserm U1245 | N108: No | O108: no effect | P108: 0 | Q108: 12.58 | R108: 11.67 | S108: -0.07233704293 | T108: 88.43 | U108: 88.43 | V108: 0 | W108: 18 | X108: 1 | Y108: 2 | Z108: 0 | AA108: 0 | AB108: 0.9010829371 | AC108: 0.8691927704 | AD108: 0.2 | AE108: 2 | AF108: c.3173-23 | AG108: c.3173-25_c.3173-22 | AH108: No | AI108: -0.03539093396 | AJ108: GCCTCAC | AK108: CTTTAAC | AL108: 28 | AM108: 22 | AN108: 5.733176023 | AO108: 4.540830076 | AP108: c.3173-23 | AQ108: c.3173-25_c.3173-22 | AR108: No | AS108: -0.2079730227 | AT108: 30 | AU108: 24 | AV108: gcctcactt | AW108: ctttaaccc | AX108: 1.5063536 | AY108: 1.5531974 | AZ108: c.3173-23 | BA108: c.3173-25_c.3173-22 | BB108: No | BC108: 0.03109747937 | BD108: 0 | BE108: 0 | BF108: 0 | BG108: No difference between mutant and reference sequence was found with this matrice | BH108: -23 | BI108: -23 | BJ108: 0.919858098 | BK108: 0.8943249583 | BL108: c.3173-23 | BM108: c.3173-25_c.3173-22 | BN108: No | BO108: -0.02775769411 | BP108: -23 | BQ108: -23 | BR108: 93.98 | BS108: 91.7 | BT108: c.3173-23 | BU108: c.3173-25_c.3173-22 | BV108: No | BW108: -0.02426048095
A109: MSH6_c.3557-40T>A | B109: chr2 | C109: + | D109: MSH6 | E109: NM_000179 | F109: intron 6 | G109: c.3557-40 | H109: 48032717 | I109: -40 | J109: substitution | K109: 1 | L109: minigene | M109: Inserm U1245 | N109: No | O109: no effect | P109: 0 | Q109: 10.29 | R109: 10.29 | S109: 0 | T109: 89.4 | U109: 89.4 | V109: 0 | W109: 40 | X109: 1 | Y109: 1 | Z109: 1 | AA109: 0 | AB109: 0.8893303868 | AC109: 0.8893303868 | AD109: 0.5 | AE109: 0.5 | AF109: c.3557-24 | AG109: c.3557-26_c.3557-23 | AH109: No | AI109: 0 | AJ109: TTGTGAT | AK109: TTGTGAT | AL109: 22 | AM109: 22 | AN109: 4.268271079 | AO109: 4.268299356 | AP109: c.3557-17 | AQ109: c.3557-19_c.3557-16 | AR109: No | AS109: 6.624936579e-06 | AT109: 24 | AU109: 24 | AV109: ttgtgattt | AW109: ttgtgattt | AX109: 0.73875692 | AY109: 0.73875692 | AZ109: c.3557-17 | BA109: c.3557-19_c.3557-16 | BB109: No | BC109: 0 | BD109: 0 | BE109: 0 | BF109: 0 | BG109: No Branch Point motif found in this sequence | BH109: -24 | BI109: -24 | BJ109: 0.9418051839 | BK109: 0.9405915141 | BL109: c.3557-24 | BM109: c.3557-26_c.3557-23 | BN109: No | BO109: -0.0012886633 | BP109: -24 | BQ109: -24 | BR109: 97.03 | BS109: 96.67 | BT109: c.3557-24 | BU109: c.3557-26_c.3557-23 | BV109: No | BW109: -0.003710192724
A110: NPC1_c.882-28A>G | B110: chr18 | C110: - | D110: NPC1 | E110: NM_000271 | F110: intron 6 | G110: c.882-28 | H110: 21137182 | I110: -28 | J110: substitution | K110: 1 | L110: minigene | M110: Leo ED, Panico F, Tarugi P, Battisti C, Federico A, Calandra S. A point mutation in the lariat branch point of intron 6 of NPC1 as the cause of abnormal pre-mRNA splicing in Niemann-Pick type C disease. Human Mutation [Internet]. 2004;24(5):440–440. Available from: https://www.onlinelibrary.wiley.com/doi/abs/10.1002/humu.9287 | N110: Yes | O110: skipping exon 7 | P110: 1 | Q110: 9.58 | R110: 9.58 | S110: 0 | T110: 91.36 | U110: 91.36 | V110: 0 | W110: 28 | X110: 1 | Y110: 1 | Z110: 0 | AA110: 0 | AB110: 0.8620556485 | AC110: 0.8620556485 | AD110: 5.2 | AE110: 5.2 | AF110: c.882-28 | AG110: c.882-30_c.882-27 | AH110: Yes | AI110: 0 | AJ110: CACTAAT | AK110: TCTTCAC | AL110: 33 | AM110: 20 | AN110: 6.696727782 | AO110: 6.078608164 | AP110: c.882-28 | AQ110: c.882-30_c.882-27 | AR110: Yes | AS110: -0.09230173869 | AT110: 35 | AU110: 22 | AV110: cactaatgc | AW110: tcttcactt | AX110: 2.1183852 | AY110: 0.66092579 | AZ110: c.882-28 | BA110: c.882-30_c.882-27 | BB110: Yes | BC110: -0.6880049058 | BD110: 77.41 | BE110: 47.79 | BF110: -0.3826379021 | BG110: Site broken | BH110: -28 | BI110: -23 | BJ110: 0.8395700455 | BK110: 0.7106869221 | BL110: c.882-28 | BM110: c.882-30_c.882-27 | BN110: Yes | BO110: -0.1535108644 | BP110: -28 | BQ110: -23 | BR110: 93.22 | BS110: 76.76 | BT110: c.882-28 | BU110: c.882-30_c.882-27 | BV110: Yes | BW110: -0.1765715512
A111: NTRK1_c.851-33T>A | B111: chr1 | C111: + | D111: NTRK1 | E111: NM_002529 | F111: intron 7 | G111: c.851-33 | H111: 156843392 | I111: -33 | J111: substitution | K111: 1 | L111: minigene | M111: Miura Y, Mardy S, Awaya Y, Nihei K, Endo F, Matsuda I, et al. Mutation and polymorphism analysis of the TRKA (NTRK1) gene encoding a high-affinity receptor for nerve growth factor in congenital insensitivity to pain with anhidrosis (CIPA) families. Hum Genet [Internet]. 2000 Jan 1;106(1):116–24. Available from: https://doi.org/10.1007/s004399900205 | N111: Yes | O111: use of 3 ss 137 nt upstream of physiological ss | P111: 1 | Q111: 9.07 | R111: 9.07 | S111: 0 | T111: 84.48 | U111: 84.48 | V111: 0 | W111: 33 | X111: 1 | Y111: 2 | Z111: 1 | AA111: 1 | AB111: 0.9123948225 | AC111: 0.868489459 | AD111: 3.3 | AE111: 3.3 | AF111: c.851-31 | AG111: c.851-33_c.851-30 | AH111: Yes | AI111: -0.04812101339 | AJ111: CCCTGAC | AK111: CGCCCAG | AL111: 36 | AM111: 38 | AN111: 7.141428426 | AO111: 6.403124237 | AP111: c.851-31 | AQ111: c.851-33_c.851-30 | AR111: Yes | AS111: -0.1033832653 | AT111: 38 | AU111: NA | AV111: ccctgacct | AW111: NA | AX111: 2.5896148 | AY111: 0 | AZ111: c.851-31 | BA111: c.851-33_c.851-30 | BB111: Yes | BC111: -1 | BD111: 95.07 | BE111: 79.98 | BF111: -0.1587251499 | BH111: -31 | BI111: -27 | BJ111: 0.9326406121 | BK111: 0.5262904763 | BL111: c.851-31 | BM111: c.851-33_c.851-30 | BN111: Yes | BO111: -0.4356985215 | BP111: -31 | BQ111: -31 | BR111: 93.8 | BS111: 61.52 | BT111: c.851-31 | BU111: c.851-33_c.851-30 | BV111: Yes | BW111: -0.3441364606
A112: PALB2_c.2515-39A>G | B112: chr16 | C112: - | D112: PALB2 | E112: NM_024675 | F112: intron 5 | G112: c.2515-39 | H112: 23640635 | I112: -39 | J112: substitution | K112: 1 | L112: Paxgene | M112: CFB | N112: No | O112: no effect | P112: 0 | Q112: 9.47 | R112: 9.47 | S112: 0 | T112: 93.46 | U112: 93.46 | V112: =(U112-T112)/T112 -> 0 | W112: 39 | X112: 2 | Y112: 2 | Z112: 1 | AA112: 0 | AB112: 0.9574879243 | AC112: 0.9574879243 | AD112: 3.3 | AE112: 3.3 | AF112: c.2515-24 | AG112: c.2515-26_c.2515-23 | AH112: No | AI112: 0 | AJ112: GACTAAT | AK112: GACTAAT | AL112: 29 | AM112: 29 | AN112: 5.891564391 | AO112: 5.891573541 | AP112: c.2515-24 | AQ112: c.2515-26_c.2515-23 | AR112: No | AS112: 1.553079924e-06 | AT112: 23 | AU112: 23 | AV112: atgtgactt | AW112: atgtgactt | AX112: 1.0656345 | AY112: 1.0656345 | AZ112: c.2515-16 | BA112: c.2515-18_c.2515-15 | BB112: No | BC112: 0 | BD112: 0 | BE112: 0 | BF112: 0 | BG112: No difference between mutant and reference sequence was found with this matrice | BH112: -24 | BI112: -24 | BJ112: 0.9131002426 | BK112: 0.9120703936 | BL112: c.2515-24 | BM112: c.2515-26_c.2515-23 | BN112: No | BO112: -0.001127859796 | BP112: -24 | BQ112: -24 | BR112: 93.99 | BS112: 94.11 | BT112: c.2515-24 | BU112: c.2515-26_c.2515-23 | BV112: No | BW112: 0.001276731567
A113: PALB2_c.2587-36A>G | B113: chr16 | C113: - | D113: PALB2 | E113: NM_024675 | F113: intron 6 | G113: c.2587-36 | H113: 23637754 | I113: -36 | J113: substitution | K113: 1 | L113: paxgene | M113: CFB | N113: No | O113: no effect | P113: 0 | Q113: 3.31 | R113: 3.31 | S113: 0 | T113: 76.19 | U113: 76.19 | V113: =(U113-T113)/T113 -> 0 | W113: 36 | X113: 2 | Y113: 2 | Z113: 0 | AA113: 0 | AB113: 0.829104806 | AC113: 0.8803760454 | AD113: 3.2 | AE113: 3.2 | AF113: c.2587-24 | AG113: c.2587-26_c.2587-23 | AH113: No | AI113: 0.06183927421 | AJ113: CTTTAAC | AK113: CTTTAAC | AL113: 29 | AM113: 29 | AN113: 5.474926977 | AO113: 5.474926977 | AP113: c.2587-24 | AQ113: c.2587-26_c.2587-23 | AR113: No | AS113: 0 | AT113: 31 | AU113: 31 | AV113: ctttaacag | AW113: ctttaacag | AX113: 0.63247539 | AY113: 0.63247539 | AZ113: c.2587-24 | BA113: c.2587-26_c.2587-23 | BB113: No | BC113: 0 | BD113: 0 | BE113: 0 | BF113: 0 | BG113: No Branch Point motif found in this sequence | BH113: -24 | BI113: -24 | BJ113: 0.7826480269 | BK113: 0.7824649811 | BL113: c.2587-24 | BM113: c.2587-26_c.2587-23 | BN113: No | BO113: -0.0002338801833 | BP113: -24 | BQ113: -24 | BR113: 81.49 | BS113: 80.13 | BT113: c.2587-24 | BU113: c.2587-26_c.2587-23 | BV113: No | BW113: -0.01668916431
A114: PTEN_c.210-39A>G | B114: chr10 | C114: + | D114: PTEN | E114: NM_000314 | F114: intron 3 | G114: c.210-39 | H114: 89690764 | I114: -39 | J114: substitution | K114: 1 | L114: minigene | M114: Inserm U1245 | N114: No | O114: no effect | P114: 0 | Q114: 8.39 | R114: 8.39 | S114: 0 | T114: 80.88 | U114: 80.88 | V114: =(U114-T114)/T114 -> 0 | W114: 39 | X114: 1 | Y114: 1 | Z114: 0 | AA114: 1 | AB114: 0.5774213917 | AC114: 0.5775222078 | AD114: 0.8 | AE114: 0.8 | AF114: c.210-26 | AG114: c.210-28_c.210-25 | AH114: No | AI114: 0.0001745970527 | AJ114: AGATAAC | AK114: AGATAAC | AL114: 36 | AM114: 36 | AN114: 6.524548428 | AO114: 6.524548144 | AP114: c.210-31 | AQ114: c.210-33_c.210-30 | AR114: No | AS114: -4.350284355e-08 | AT114: 21 | AU114: 21 | AV114: ttttaaact | AW114: ttttaaact | AX114: 0.55824981 | AY114: 0.55824981 | AZ114: c.210-14 | BA114: c.210-16_c.210-13 | BB114: No | BC114: 0 | BD114: 0 | BE114: 0 | BF114: 0 | BG114: No difference between mutant and reference sequence was found with this matrice | BH114: -31 | BI114: -26 | BJ114: 0.4921385646 | BK114: 0.5208095312 | BL114: c.210-31 | BM114: c.210-33_c.210-30 | BN114: No | BO114: 0.05825791492 | BP114: -31 | BQ114: -31 | BR114: 74.07 | BS114: 64.04 | BT114: c.210-31 | BU114: c.210-33_c.210-30 | BV114: No | BW114: -0.1354124477
A115: RAD51C_c.572-23_572-20del | B115: chr17 | C115: + | D115: RAD51C | E115: NM_058216 | F115: intron 3 | G115: c.572-23_572-20 | H115: 56780534 | I115: -23 | J115: del | K115: 1 | L115: Paxgene | M115: CFB | N115: No | O115: skipping Exon 4 | P115: 1 | Q115: 7.43 | R115: 7.43 | S115: 0 | T115: 94.73 | U115: 94.73 | V115: =(U115-T115)/T115 -> 0 | W115: 23 | X115: 0 | Y115: 0 | Z115: 0 | AA115: 0 | AB115: NA | AC115: NA | AD115: NA | AE115: NA | AF115: c.572-24 | AG115: c.572-26_c.572-23 | AH115: Yes | AI115: NA | AJ115: AACTAAT | AK115: AACTAAG | AL115: 29 | AM115: 25 | AN115: 5.088627306 | AO115: 4.484879457 | AP115: c.572-24 | AQ115: c.572-26_c.572-23 | AR115: Yes | AS115: -0.1186465057 | AT115: 31 | AU115: 27 | AV115: aactaatta | AW115: aactaagag | AX115: 0.44195572 | AY115: 0.48304916 | AZ115: c.572-24 | BA115: c.572-26_c.572-23 | BB115: Yes | BC115: 0.09298089863 | BD115: 68.44 | BE115: 4.25 | BF115: -0.9379018118 | BG115: Site broken | BH115: -24 | BI115: -20 | BJ115: 0.898183167 | BK115: 0.6975656748 | BL115: c.572-24 | BM115: c.572-26_c.572-23 | BN115: Yes | BO115: -0.2233592207 | BP115: -24 | BQ115: -20 | BR115: 96.63 | BS115: 81.75 | BT115: c.572-24 | BU115: c.572-26_c.572-23 | BV115: Yes | BW115: -0.1539894443
A116: RAD51C_c.838-25A>G | B116: chr17 | C116: + | D116: RAD51C | E116: NM_058216 | F116: intron 5 | G116: c.838-25 | H116: 56798082 | I116: -25 | J116: substitution | K116: 1 | L116: Paxgene | M116: CFB | N116: No | O116: no effect | P116: 0 | Q116: 10.17 | R116: 10.17 | S116: 0 | T116: 91.79 | U116: 91.79 | V116: =(U116-T116)/T116 -> 0 | W116: 25 | X116: 2 | Y116: 2 | Z116: 1 | AA116: 0 | AB116: 0.8742740741 | AC116: 0.870558338 | AD116: 1.6 | AE116: 1.6 | AF116: c.838-30 | AG116: c.838-32_c.838-29 | AH116: No | AI116: -0.004250081534 | AJ116: ACCTAAT | AK116: GACTCAC | AL116: 30 | AM116: 35 | AN116: 4.70773814 | AO116: 5.743057362 | AP116: c.838-25 | AQ116: c.838-27_c.838-24 | AR116: Yes | AS116: 0.2199186086 | AT116: 37 | AU116: 37 | AV116: gactcacct | AW116: gactcacct | AX116: 1.9764705 | AY116: 1.9764705 | AZ116: c.838-30 | BA116: c.838-32_c.838-29 | BB116: No | BC116: 0 | BD116: 80.03 | BE116: 50.4 | BF116: -0.3702361614 | BG116: Site broken | BH116: -30 | BI116: -30 | BJ116: 0.7669395208 | BK116: 0.9500525594 | BL116: c.838-30 | BM116: c.838-32_c.838-29 | BN116: No | BO116: 0.2387581205 | BP116: -30 | BQ116: -30 | BR116: 88.09 | BS116: 97.61 | BT116: c.838-30 | BU116: c.838-32_c.838-29 | BV116: No | BW116: 0.1080712907
A117: RB1_c.2326-26A>C | B117: chr13 | C117: + | D117: RB1 | E117: NM_000321 | F117: intron 22 | G117: c.2326-26 | H117: 49039315 | I117: -26 | J117: substitution | K117: 1 | L117: LCL | M117: Houdayer C, Dehainault C, Mattler C, Michaux D, Caux‐Moncoutier V, Pagès‐Berhouet S, et al. Evaluation of in silico splice tools for decision-making in molecular diagnosis. Human Mutation [Internet]. 2008;29(7):975–82. Available from: https://onlinelibrary.wiley.com/doi/abs/10.1002/humu.20765 | N117: Yes | O117: skipping Exon 24 | P117: 1 | Q117: 9.26 | R117: 9.26 | S117: 0 | T117: 84.58 | U117: 84.58 | V117: 0 | W117: 26 | X117: 1 | Y117: 0 | Z117: 0 | AA117: 1 | AB117: 0.5205189487 | AC117: 0.4849822875 | AD117: 0 | AE117: NA | AF117: c.2326-25 | AG117: c.2326-27_c.2326-24 | AH117: Yes | AI117: -0.06827159947 | AJ117: AAATAAT | AK117: CATTAAA | AL117: 30 | AM117: 38 | AN117: 8.351648197 | AO117: 6.499360729 | AP117: c.2326-25 | AQ117: c.2326-27_c.2326-24 | AR117: Yes | AS117: -0.2217870563 | AT117: 32 | AU117: 36 | AV117: aaataatct | AW117: aaataaatc | AX117: 1.0151518 | AY117: 0.67392832 | AZ117: c.2326-25 | BA117: c.2326-27_c.2326-24 | BB117: Yes | BC117: -0.3361304979 | BD117: 0 | BE117: 0 | BF117: 0 | BG117: No Branch Point motif found in this sequence | BH117: -33 | BI117: -25 | BJ117: 0.3002012372 | BK117: 0.4279704094 | BL117: c.2326-33 | BM117: c.2326-35_c.2326-32 | BN117: No | BO117: 0.4256117442 | BP117: -25 | BQ117: -25 | BR117: 46.59 | BS117: 48.78 | BT117: c.2326-25 | BU117: c.2326-27_c.2326-24 | BV117: Yes | BW117: 0.04700579524
A118: RHD_c.1154-31T>C | B118: chr1 | C118: + | D118: RHD | E118: NM_016124 | F118: intron 8 | G118: c.1154-31 | H118: 25648349 | I118: -31 | J118: substitution | K118: 1 | L118: minigene | M118: Inserm U1078 | N118: No | O118: no effect | P118: 0 | Q118: 6.15 | R118: 6.15 | S118: 0 | T118: 76.54 | U118: 76.54 | V118: 0 | W118: 31 | X118: 2 | Y118: 2 | Z118: 0 | AA118: 0 | AB118: 0.7693146325 | AC118: 0.7693146325 | AD118: 3 | AE118: 3 | AF118: c.1154-24 | AG118: c.1154-26_c.1154-23 | AH118: No | AI118: 0 | AJ118: GATTAAA | AK118: GATTAAT | AL118: 54 | AM118: 66 | AN118: 6.818542759 | AO118: 5.718916048 | AP118: c.1154-49 | AQ118: c.1154-51_c.1154-48 | AR118: No | AS118: -0.161270047 | AT118: 56 | AU118: 56 | AV118: gattaaaaa | AW118: gattaaaaa | AX118: -0.025100142 | AY118: -0.025100142 | AZ118: c.1154-49 | BA118: c.1154-51_c.1154-48 | BB118: No | BC118: 0 | BD118: 67.67 | BE118: 71.56 | BF118: 0.05748485296 | BH118: -24 | BI118: -24 | BJ118: 0.8069232106 | BK118: 0.7917679548 | BL118: c.1154-24 | BM118: c.1154-26_c.1154-23 | BN118: No | BO118: -0.0187815341 | BP118: -24 | BQ118: -24 | BR118: 84.98 | BS118: 86.97 | BT118: c.1154-24 | BU118: c.1154-26_c.1154-23 | BV118: No | BW118: 0.02341727465
A119: SLC40A1_c.112-28del | B119: chr2 | C119: - | D119: SLC40A1 | E119: NM_014585 | F119: intron 2 | G119: c.112-28 | H119: 190440074 | I119: -28 | J119: del | K119: 1 | L119: minigene | M119: Inserm U1078 | N119: No | O119: no effect | P119: 0 | Q119: 9.41 | R119: 9.41 | S119: 0 | T119: 87.62 | U119: 87.62 | V119: 0 | W119: 28 | X119: 0 | Y119: 0 | Z119: 0 | AA119: 0 | AB119: NA | AC119: NA | AD119: NA | AE119: NA | AF119: c.112-28 | AG119: c.112-30_c.112-27 | AH119: Yes | AI119: NA | AJ119: CCATCAA | AK119: TCCTCAA | AL119: 30 | AM119: 30 | AN119: 7.177640841 | AO119: 7.271714954 | AP119: c.112-25 | AQ119: c.112-27_c.112-24 | AR119: No | AS119: 0.0131065506 | AT119: 32 | AU119: 32 | AV119: ccatcaaaa | AW119: tcctcaaaa | AX119: -0.46016428 | AY119: 0.41829289 | AZ119: c.112-25 | BA119: c.112-27_c.112-24 | BB119: No | BC119: -1.909007735 | BD119: 67.66 | BE119: 48.68 | BF119: -0.2805202483 | BG119: Site broken | BH119: -28 | BI119: -25 | BJ119: 0.7386062145 | BK119: 0.8456351161 | BL119: c.112-28 | BM119: c.112-30_c.112-27 | BN119: Yes | BO119: 0.1449065814 | BP119: -28 | BQ119: -25 | BR119: 89.03 | BS119: 81.32 | BT119: c.112-28 | BU119: c.112-30_c.112-27 | BV119: Yes | BW119: -0.08660002246
A120: TH_c.1198-24T>A | B120: chr11 | C120: - | D120: TH | E120: NM_199292 | F120: intron 11 | G120: c.1198-24 | H120: 2187017 | I120: -24 | J120: substitution | K120: 1 | L120: fibroblasts | M120: Janssen RJRJ, Wevers RA, Häussler M, Luyten J a. FM, Steenbergen‐Spanjers GCH, Hoffmann GF, et al. A branch site mutation leading to aberrant splicing of the human tyrosine hydroxylase gene in a child with a severe extrapyramidal movement disorder. Annals of Human Genetics [Internet]. 2000;64(5):375–82. Available from: https://onlinelibrary.wiley.com/doi/abs/10.1046/j.1469-1809.2000.6450375.x | N120: Yes | O120: use of 3 ss 36 nt upstream of physiological ss and skipping exon 12 | P120: 1 | Q120: 8.59 | R120: 8.59 | S120: 0 | T120: 80.46 | U120: 80.46 | V120: =(U120-T120)/T120 -> 0 | W120: 24 | X120: 0 | Y120: 0 | Z120: 0 | AA120: 0 | AB120: NA | AC120: NA | AD120: NA | AE120: NA | AF120: c.1198-22 | AG120: c.1198-24_c.1198-21 | AH120: Yes | AI120: NA | AJ120: GGCTGAT | AK120: TGCTGCC | AL120: 27 | AM120: 21 | AN120: 6.782329983 | AO120: 5.54282824 | AP120: c.1198-22 | AQ120: c.1198-24_c.1198-21 | AR120: Yes | AS120: -0.1827545616 | AT120: 29 | AU120: 69 | AV120: ggctgatgc | AW120: gggtgacca | AX120: 1.6290138 | AY120: -1.2512133 | AZ120: c.1198-22 | BA120: c.1198-24_c.1198-21 | BB120: Yes | BC120: -1.768080234 | BD120: 84.96 | BE120: 69.88 | BF120: -0.1774952919 | BH120: -22 | BI120: -16 | BJ120: 0.8561471105 | BK120: 0.7647055984 | BL120: c.1198-22 | BM120: c.1198-24_c.1198-21 | BN120: Yes | BO120: -0.1068058409 | BP120: -22 | BQ120: -15 | BR120: 89.93 | BS120: 42.37 | BT120: c.1198-22 | BU120: c.1198-24_c.1198-21 | BV120: Yes | BW120: -0.5288557767
A121: TSC2_c.4760-18A>G | B121: chr16 | C121: + | D121: TSC2 | E121: NM_001318827 | F121: intron 36 | G121: c.4760-18 | H121: 2138031 | I121: -18 | J121: substitution | K121: 1 | L121: LCL | M121: Mayer K, Ballhausen W, Leistner W, Rott H-D. Three novel types of splicing aberrations in the tuberous sclerosis TSC2 gene caused by mutations apart from splice consensus sequences11Accession numbers and URLs for data in this article are as follows: Online Mendelian Inheritance in Man: http://www.ncbi.nlm.nih.gov/omim. For TSC1 (MIM 191100) and TSC2 (MIM 191092). The Human Gene Mutation Data Base, Cardiff (HGMD): http://www.uwcm.acuk/uwcm/mg. For TSC1 120735 and for TSC2 120466. TSC Variation Database: http://www.expmed.bwh.harvard.edu/projects/tsc_database. GenBank: http://www.ncbi.nlm.nih.gov/Genbank. For TSC2 cDNA X75621 and TSC2 complete genomic sequence AC005600. Biochimica et Biophysica Acta (BBA) - Molecular Basis of Disease [Internet]. 2000 Nov 15;1502(3):495–507. Available from: http://www.sciencedirect.com/science/article/pii/S0925443900000727 | N121: Yes | O121: retention intron 38 and use of 3 ss 74 nt downstream of physiological ss | P121: 1 | Q121: 1.19 | R121: 0.36 | S121: -0.6974789916 | T121: 0 | U121: 0 | V121: 0 | W121: 18 | X121: 1 | Y121: 1 | Z121: 1 | AA121: 0 | AB121: 0.8325371953 | AC121: 0.8325371953 | AD121: 1.5 | AE121: 1.5 | AF121: c.4760-18 | AG121: c.4760-20_c.4760-17 | AH121: Yes | AI121: 0 | AJ121: GCGTGAC | AK121: CACCAAG | AL121: 23 | AM121: 16 | AN121: 4.358515127 | AO121: 3.474870595 | AP121: c.4760-18 | AQ121: c.4760-20_c.4760-17 | AR121: Yes | AS121: -0.2027398108 | AT121: 25 | AU121: NA | AV121: gcgtgacca | AW121: NA | AX121: 0.016293255 | AY121: 0 | AZ121: c.4760-18 | BA121: c.4760-20_c.4760-17 | BB121: Yes | BC121: -1 | BD121: 67.71 | BE121: 38.08 | BF121: -0.437601536 | BG121: Site broken | BH121: -18 | BI121: -15 | BJ121: 0.8841502666 | BK121: 0.1907659471 | BL121: c.4760-18 | BM121: c.4760-20_c.4760-17 | BN121: Yes | BO121: -0.7842380936 | BP121: -18 | BQ121: -15 | BR121: 90.38 | BS121: 22.39 | BT121: c.4760-18 | BU121: c.4760-20_c.4760-17 | BV121: Yes | BW121: -0.7522682009
A122: UROS_c.661-31T>G | B122: chr10 | C122: - | D122: UROS | E122: NM_000375 | F122: intron 9 | G122: c.661-31 | H122: 127477605 | I122: -31 | J122: substitution | K122: 1 | L122: LCL | M122: Bishop DF, Schneider-Yin X, Clavero S, Yoo H-W, Minder EI, Desnick RJ. Congenital erythropoietic porphyria: a novel uroporphyrinogen III synthase branchpoint mutation reveals underlying wild-type alternatively spliced transcripts. Blood [Internet]. 2010 Feb 4;115(5):1062–9. Available from: http://www.bloodjournal.org/content/115/5/1062 | N122: Yes | O122: multiple effect increase alternative splicing | P122: 1 | Q122: 10.29 | R122: 10.29 | S122: 0 | T122: 82.76 | U122: 82.76 | V122: =(U122-T122)/T122 -> 0 | W122: 31 | X122: 0 | Y122: 0 | Z122: 0 | AA122: 0 | AB122: NA | AC122: NA | AD122: NA | AE122: NA | AF122: c.661-29 | AG122: c.661-31_c.661-28 | AH122: Yes | AI122: NA | AJ122: TGCTGAA | AK122: GTGTGCG | AL122: 34 | AM122: 37 | AN122: 6 | AO122: 5.942842881 | AP122: c.661-29 | AQ122: c.661-31_c.661-28 | AR122: Yes | AS122: -0.009526186572 | AT122: 36 | AU122: 90 | AV122: tgctgaagc | AW122: ggctgacgg | AX122: 1.4685099 | AY122: 0.83415491 | AZ122: c.661-29 | BA122: c.661-31_c.661-28 | BB122: Yes | BC122: -0.4319718852 | BD122: 82.34 | BE122: 67.26 | BF122: -0.1831430653 | BH122: -28 | BI122: -29 | BJ122: 0.7524053454 | BK122: 0.4035767615 | BL122: c.661-28 | BM122: c.661-30_c.661-27 | BN122: No | BO122: -0.463617897 | BP122: -29 | BQ122: -29 | BR122: 84.09 | BS122: 50.63 | BT122: c.661-29 | BU122: c.661-31_c.661-28 | BV122: Yes | BW122: -0.3979070044
A123: VWF_c.6599-20A>T | B123: chr12 | C123: - | D123: VWF | E123: NM_000552 | F123: intron 37 | G123: c.6599-20 | H123: 6101204 | I123: -20 | J123: substitution | K123: 1 | L123: Blood | M123: Hawke L, Bowman ML, Poon M-C, Scully M-F, Rivard G-E, James PD. Characterization of aberrant splicing of von Willebrand factor (VWF) in von Willebrand disease (VWD): an under-recognized mechanism. Blood [Internet]. 2016 Jan 1;blood-2015-10-678052. Available from: http://www.bloodjournal.org/content/early/2016/06/17/blood-2015-10-678052 | N123: Yes | O123: skipping exon 38 | P123: 1 | Q123: 11.17 | R123: 10.91 | S123: -0.02327663384 | T123: 89.06 | U123: 89.06 | V123: =(U123-T123)/T123 -> 0 | W123: 20 | X123: 2 | Y123: 1 | Z123: 0 | AA123: 0 | AB123: 0.727435645 | AC123: 0.7054261445 | AD123: 2.8 | AE123: 2.8 | AF123: c.6599-20 | AG123: c.6599-22_c.6599-19 | AH123: Yes | AI123: -0.03025628547 | AJ123: AAGTGAC | AK123: TTGCAAG | AL123: 25 | AM123: 29 | AN123: 5.656851493 | AO123: 5.656854249 | AP123: c.6599-20 | AQ123: c.6599-22_c.6599-19 | AR123: Yes | AS123: 4.872312935e-07 | AT123: 27 | AU123: 84 | AV123: aagtgacct | AW123: gattaacca | AX123: 1.566012 | AY123: 0.43190937 | AZ123: c.6599-20 | BA123: c.6599-22_c.6599-19 | BB123: Yes | BC123: -0.724197918 | BD123: 0 | BE123: 0 | BF123: 0 | BG123: No Branch Point motif found in this sequence | BH123: -20 | BI123: -25 | BJ123: 0.7152069807 | BK123: 0.658259511 | BL123: c.6599-20 | BM123: c.6599-22_c.6599-19 | BN123: Yes | BO123: -0.07962376102 | BP123: -20 | BQ123: -25 | BR123: 84.47 | BS123: 64.56 | BT123: c.6599-20 | BU123: c.6599-22_c.6599-19 | BV123: Yes | BW123: -0.235704984
A124: XPC_c.413-24A>G | B124: chr3 | C124: - | D124: XPC | E124: NM_004628 | F124: intron 3 | G124: c.413-24 | H124: 14209904 | I124: -24 | J124: substitution | K124: 1 | L124: LCL | M124: Khan SG, Yamanegi K, Zheng Z-M, Boyle J, Imoto K, Oh K-S, et al. XPC branch-point sequence mutations disrupt U2 snRNP binding, resulting in abnormal pre-mRNA splicing in xeroderma pigmentosum patients. Human Mutation [Internet]. 2010;31(2):167–75. Available from: https://onlinelibrary.wiley.com/doi/abs/10.1002/humu.21166 | N124: Yes | O124: skipping Exon 4 | P124: 1 | Q124: 3.09 | R124: 3.09 | S124: 0 | T124: 71.97 | U124: 71.97 | V124: 0 | W124: 24 | X124: 0 | Y124: 0 | Z124: 0 | AA124: 0 | AB124: NA | AC124: NA | AD124: NA | AE124: NA | AF124: c.413-24 | AG124: c.413-26_c.413-23 | AH124: Yes | AI124: NA | AJ124: TACTGAT | AK124: TTATTAC | AL124: 29 | AM124: 39 | AN124: 7.657625473 | AO124: 4.644046714 | AP124: c.413-24 | AQ124: c.413-26_c.413-23 | AR124: Yes | AS124: -0.3935395861 | AT124: 31 | AU124: 77 | AV124: tactgattt | AW124: ccttgattc | AX124: 1.0276313 | AY124: 0.76640625 | AZ124: c.413-24 | BA124: c.413-26_c.413-23 | BB124: Yes | BC124: -0.254201142 | BD124: 82.78 | BE124: 53.15 | BF124: -0.3579366997 | BG124: Site broken | BH124: -24 | BI124: -31 | BJ124: 0.7628671527 | BK124: 0.5319896936 | BL124: c.413-24 | BM124: c.413-26_c.413-23 | BN124: Yes | BO124: -0.3026443834 | BP124: -24 | BQ124: -31 | BR124: 82.97 | BS124: 82.12 | BT124: c.413-24 | BU124: c.413-26_c.413-23 | BV124: Yes | BW124: -0.01024466675

Sheet Column_Header_Info
A1: General information | B1: ID | C1: Name of variant
B2: chr | C2: Chromosome
B3: strand | C3: Strand of transcript (+: forward, -: reverse)
B4: gene | C4: Gene Name
B5: transcript | C5: Transcript ID (RefSeq)
B6: intron | C6: Intron number
B7: cNomen | C7: Transcriptomic coordinate
B8: gNomen | C8: Genomic coordinate (hg19)
B9: distSS | C9: Distance between variant and Acceptor site
B10: varType | C10: Type of mutation
B11: nb_analyse | C11: Number of study for the variant
B12: Assay.Method | C12: Materiel and Method used
B13: Authora | C13: The contributor
B14: published | C14: If the RNA studies were published or not
B15: Result | C15: Overall impact of variant on splicing
B16: class_effect | C16: Class of splicing alteration (0: no impact, 1: splicing alteration)
A17: Acceptor consensus score | B17: MES_wt | C17: MES score of acceptor splice site (wildType)
B18: MES_mut | C18: MES score of acceptor splice site (mutated)
B19: delta_MES | C19: Delta MES score
B20: SSF_wt | C20: SSF-like score of acceptor splice site (wildType)
B21: SSF_mut | C21: SSF-like score of acceptor splice site (mutated)
B22: delta_SSF | C22: Delta SSF-like score
A23: Branchpointer scores | B23: to_3prime | C23: Distance between variant and Acceptor site
B24: BP_num_REF | C24: Number of branch point found by branchpointer (wildType)
B25: BP_num_ALT | C25: Number of branch point found by branchpointer (mutated)
B26: deleted_n | C26: Number of deleted branch points (branchpointer)
B27: created_n | C27: Number of created branch points (branchpointer)
B28: max_prob_REF | C28: Branchpointer score, maximal value (wildType)
B29: max_prob_ALT | C29: Branchpointer score, maximal value (mutated)
B30: max_U2_REF | C30: U2 score (acceptor site, wildType)
B31: max_U2_ALT | C31: U2 score (acceptor site, mutated)
B32: PosPB_Branch | C32: Position of branch point with maximal score
B33: ProbPBarea_Branch | C33: Interval of 4-mer motif of branch point
B34: MutInPBarea_Branch | C34: If variant was in the 4-mer of branch point
B35: Delta_prob | C35: Delta Branchpointer score
A36: BPP score | B36: bps_WT | C36: Sequence of wildType Branch point with maximal score
B37: bps_MUT | C37: Sequence of mutated Branch point with maximal score
B38: bp_pos_WT | C38: Relative position of branch point to the acceptor site (wildType)
B39: bp_pos_MUT | C39: Relative position of branch point to the acceptor site (mutated)
B40: zsc_WT | C40: BPP score (wildType)
B41: zsc_MUT | C41: BPP score (mutated)
B42: PosPB_BPP | C42: Position of branch point with maximal score
B43: ProbPBarea_BPP | C43: Interval of 4-mer motif of branch point
B44: MutInPBarea_BPP | C44: If variant was in the 4-mer of branch point
B45: Delta_BPP | C45: Delta score of BPP
A46: SVM BPfinder score | B46: ss_dist_WT | C46: Relative position of branch point to the acceptor site (wildType)
B47: ss_dist_MUT | C47: Relative position of branch point to the acceptor site (mutated)
B48: bp_seq_WT | C48: Sequence of wildType Branch point with maximal score
B49: bp_seq_MUT | C49: Sequence of mutated Branch point with maximal score
B50: svm_scr_WT | C50: SVM-BPfinder score (wildType)
B51: svm_scr_MUT | C51: SVM-BPfinder score (mutated)
B52: PosPB_SVM | C52: Position of branch point with maximal score
B53: ProbPBarea_SVM | C53: Interval of 4-mer motif of branch point
B54: MutInPBarea_SVM | C54: If variant was in the 4-mer of branch point
B55: Delta_SVM | C55: Delta score of SVM-BPfinder
A56: HSF3 | B56: score_wt | C56: HSF score (wildType)
B57: score_mut | C57: HSF score (mutated)
B58: delta_HSF | C58: Delta score of HSF
B59: interpret | C59: Overall prediction of HSF
A60: LaBranchoR | B60: LB_pos_WT | C60: Relative position of branch point to the acceptor site (wildType)
B61: LB_pos_MUT | C61: Relative position of branch point to the acceptor site (mutated)
B62: LB_score_WT | C62: LaBranchoR score (wildType)
B63: LB_score_MUT | C63: LaBranchoR score (mutated)
B64: PosPB_LB | C64: Position of branch point with maximal score
B65: ProbPBarea_LB | C65: Interval of 4-mer motif of branch point
B66: MutInPBarea_LB | C66: If variant was in the 4-mer of branch point
B67: Delta_LB | C67: Delta score of LaBranchor
A68: RNABPS | B68: RBPS_posA_WT | C68: Relative position of branch point to the acceptor site (wildType)
B69: RBPS_posA_MUT | C69: Relative position of branch point to the acceptor site (mutated)
B70: RBPS_score_WT | C70: RNABPS score (wildType)
B71: RBPS_score_MUT | C71: RNABPS score (mutated)
B72: PosPB_RBPS | C72: Position of branch point with maximal score
B73: ProbPBarea_RBPS | C73: Interval of 4-mer motif of branch point
B74: MutInPBarea_RBPS | C74: If variant was in the 4-mer of branch point
B75: Delta_RBPS | C75: Delta score of RNABPS
A77: a Authors: | B77: CBCS | C77: Centre for Genomic Medicine, Rigshospitalet, University of Copenhagen, Copenhagen, Denmark
B78: CFB | C78: Laboratoire de Biologie Clinique et Oncologique, Centre François Baclesse, France
B79: CPS | C79: Laboratoire d’Oncogénétique, Centre Paul Strauss, Strasbourg, France
B80: IB | C80: Inserm U916, Département de Pathologie, Laboratoire de Génétique Constitutionnelle, Institut Bergonié, Bordeaux, France
B81: IC | C81: Service de Génétique, Institut Curie, Paris, France
B82: IGR | C82: Service de Génétique, Institut Gustave Roussy, Villejuif, France
B83: Inserm U1028 | C83: Lyon Neuroscience Research Center–CRNL, Inserm U1028, CNRS UMR 5292, University of Lyon, Lyon, France
B84: Inserm U1078 | C84: Inserm UMR1078, Genetics, Functional Genomics and Biotechnology, Université de Bretagne Occidentale, Brest, France
B85: Inserm U1245 | C85: Genetics Department, F76000 and Normandy University, UNIROUEN, Inserm U1245, Normandy Centre for Genomic and Personalized Medicine, Rouen University Hospital, Rouen, France
A16385: General information
A16401: Acceptor consensus score
A16407: Branchpointer scores
A16420: BPP score
A16430: SVM BPfinder score
A16440: HSF3
A16444: LaBranchoR
A16452: RNABPS
A32769: General information
A32785: Acceptor consensus score
A32791: Branchpointer scores
A32804: BPP score
A32814: SVM BPfinder score
A32824: HSF3
A32828: LaBranchoR
A32836: RNABPS
A49153: General information
A49169: Acceptor consensus score
A49175: Branchpointer scores
A49188: BPP score
A49198: SVM BPfinder score
A49208: HSF3
A49212: LaBranchoR
A49220: RNABPS
A65537: General information
A65553: Acceptor consensus score
A65559: Branchpointer scores
A65572: BPP score
A65582: SVM BPfinder score
A65592: HSF3
A65596: LaBranchoR
A65604: RNABPS
A81921: General information
A81937: Acceptor consensus score
A81943: Branchpointer scores
A81956: BPP score
A81966: SVM BPfinder score
A81976: HSF3
A81980: LaBranchoR
A81988: RNABPS
A98305: General information
A98321: Acceptor consensus score
A98327: Branchpointer scores
A98340: BPP score
A98350: SVM BPfinder score
A98360: HSF3
A98364: LaBranchoR
A98372: RNABPS
A114689: General information
A114705: Acceptor consensus score
A114711: Branchpointer scores
A114724: BPP score
A114734: SVM BPfinder score
A114744: HSF3
A114748: LaBranchoR
A114756: RNABPS
A131073: General information
A131089: Acceptor consensus score
A131095: Branchpointer scores
A131108: BPP score
A131118: SVM BPfinder score
A131128: HSF3
A131132: LaBranchoR
A131140: RNABPS
A147457: General information
A147473: Acceptor consensus score
A147479: Branchpointer scores
A147492: BPP score
A147502: SVM BPfinder score
A147512: HSF3
A147516: LaBranchoR
A147524: RNABPS
A163841: General information
A163857: Acceptor consensus score
A163863: Branchpointer scores
A163876: BPP score
A163886: SVM BPfinder score
A163896: HSF3
A163900: LaBranchoR
A163908: RNABPS
A180225: General information
A180241: Acceptor consensus score
A180247: Branchpointer scores
A180260: BPP score
A180270: SVM BPfinder score
A180280: HSF3
A180284: LaBranchoR
A180292: RNABPS
A196609: General information
A196625: Acceptor consensus score
A196631: Branchpointer scores
A196644: BPP score
A196654: SVM BPfinder score
A196664: HSF3
A196668: LaBranchoR
A196676: RNABPS
A212993: General information
A213009: Acceptor consensus score
A213015: Branchpointer scores
A213028: BPP score
A213038: SVM BPfinder score
A213048: HSF3
A213052: LaBranchoR
A213060: RNABPS
A229377: General information
A229393: Acceptor consensus score
A229399: Branchpointer scores
A229412: BPP score
A229422: SVM BPfinder score
A229432: HSF3
A229436: LaBranchoR
A229444: RNABPS
A245761: General information
A245777: Acceptor consensus score
A245783: Branchpointer scores
A245796: BPP score
... 388 more rows
